 Batch Number,Vendor Name,Invoice Number, Line,Line Amount,Account Description,Issue Date ,Total Amount Paid
190313G,ADVANCED FURNITURE============,0000049929,1,405.00,OFFICE FURNITURE,03/04/13,405.00
270313E,ENTEL UK LTD==================,0000124857,1,319.98,RADIO,03/04/13,717.20
270313E,ENTEL UK LTD==================,0000124857,2,55.03,RADIO,03/04/13,
270313E,ENTEL UK LTD==================,0000124857,3,47.10,RADIO,03/04/13,
270313E,ENTEL UK LTD==================,0000124857,4,68.50,RADIO,03/04/13,
270313E,ENTEL UK LTD==================,0000124857,5,91.86,RADIO,03/04/13,
270313E,ENTEL UK LTD==================,0000124857,6,46.98,RADIO,03/04/13,
270313E,ENTEL UK LTD==================,0000124857,7,38.38,RADIO,03/04/13,
270313E,ENTEL UK LTD==================,0000124857,8,40.37,RADIO,03/04/13,
270313E,ENTEL UK LTD==================,0000124857,9,9.00,RADIO,03/04/13,
250313C,*OCS GROUP UK LTD,0000155861,1,"4,000.00",CATERING FIXTURES,03/04/13,"4,000.00"
280313G,TURNER & TOWNSEND PROJECT MNGT,000536329,1,"22,565.03",PROFESSIONAL FEES - MISC,03/04/13,"22,565.03"
140152,OGILVIE FLEET LTD=============,00229394,1,247.93,LEASE CAR CHARGES,03/04/13,"4,309.20"
140152,OGILVIE FLEET LTD=============,00229394,2,"4,061.27",P/PAYMTS-CAR LEASG-RENTAL,03/04/13,
140152,OGILVIE FLEET LTD=============,00229394,3,-371.20,VAT CAR LEASING,03/04/13,
140152,OGILVIE FLEET LTD=============,00229394,4,371.20,LEASE CAR CHARGES,03/04/13,
140152,OGILVIE FLEET LTD=============,00229592,1,176.62,LEASE CAR CHARGES,03/04/13,"3,581.40"
140152,OGILVIE FLEET LTD=============,00229592,2,"3,404.78",P/PAYMTS-CAR LEASG-RENTAL,03/04/13,
140152,OGILVIE FLEET LTD=============,00229592,3,-308.74,VAT CAR LEASING,03/04/13,
140152,OGILVIE FLEET LTD=============,00229592,4,308.74,LEASE CAR CHARGES,03/04/13,
270313C,SLIPALERT LLP,04538,1,"3,100.00",OPERATIONAL EQUIP-PURCHASE,03/04/13,"3,100.00"
270313C,*PRINCIPAL CATERING CONSULTNTS,051514,1,"1,297.50",REFRESHMENTS,03/04/13,"1,612.50"
270313C,*PRINCIPAL CATERING CONSULTNTS,051514,2,315.00,REFRESHMENTS,03/04/13,
260313H,*PRINCIPAL CATERING CONSULTNTS,051518,1,821.00,REFRESHMENTS,03/04/13,821.00
260313H,*PRINCIPAL CATERING CONSULTNTS,051529,1,64.00,REFRESHMENTS,03/04/13,410.00
260313H,*PRINCIPAL CATERING CONSULTNTS,051529,2,346.00,REFRESHMENTS,03/04/13,
260313H,*PRINCIPAL CATERING CONSULTNTS,051533,1,36.80,REFRESHMENTS,03/04/13,272.55
260313H,*PRINCIPAL CATERING CONSULTNTS,051533,2,36.80,REFRESHMENTS,03/04/13,
260313H,*PRINCIPAL CATERING CONSULTNTS,051533,3,198.95,REFRESHMENTS,03/04/13,
140152,THAMES WATER UTILITIES LTD====,0592996051V,1,863.88,WATER & SEWERAGE RATES,03/04/13,863.88
210313E,HAYS ACCOUNTANCY & FINANCE====,1002997973,1,696.00,FRS STAFF AGENCY,03/04/13,696.00
270313C,MOOLANDS LTD,10314,1,463.00,STRATEGIC (NON CYCLICAL),03/04/13,463.00
800018337,AZTEC COMPUTING LTD===========,10407,1,"7,000.00",TELECOMMUNICATIONS,03/04/13,"7,000.00"
800018338,AZTEC COMPUTING LTD===========,10408,1,"8,500.00",CONSULTANTS,03/04/13,"8,500.00"
280313G,*SPRUE SAFETY PRODUCTS LTD====,1044491,1,"1,516.80",FIRE DETECTORS,03/04/13,"1,516.80"
190313C,*SPRUE SAFETY PRODUCTS LTD====,1044853,1,505.60,FIRE DETECTORS,03/04/13,505.60
190313C,*SPRUE SAFETY PRODUCTS LTD====,1044854,1,379.20,FIRE DETECTORS,03/04/13,379.20
190313C,*SPRUE SAFETY PRODUCTS LTD====,1044855,1,758.40,FIRE DETECTORS,03/04/13,758.40
190313C,*SPRUE SAFETY PRODUCTS LTD====,1044856,1,"3,160.00",FIRE DETECTORS,03/04/13,"3,160.00"
140159,MS SAMANTHA COOPER,111056,1,562.50,COUNSELS FEES,03/04/13,562.50
140159,MS SAMANTHA COOPER,111930,1,480.00,COUNSELS FEES,03/04/13,480.00
260313H,BT GLOBAL SERVICES============,1125100,1,541.66,TELECOMMUNICATIONS,03/04/13,541.66
210313H,AUXQUIMIA S.A.================,113123,1,"1,300.00",OPERATIONAL EQUIP-PURCHASE,03/04/13,"1,300.00"
280313G,P J HARTE(DECORATING CONT) LTD,11472PH,1,"3,515.75",STRATEGIC (NON CYCLICAL),03/04/13,"3,515.75"
140159,ARTESIAN LAW,123563,1,"5,420.00",COUNSELS FEES,03/04/13,"5,420.00"
200313H,BUREAU VERITAS HS&E LTD=======,13004495,1,"92,627.22",SCIENTIFIC SERVICES,03/04/13,"92,627.22"
260313C,WERNICK EVENT HIRE LTD========,13136,1,716.90,OPERATIONAL EQUIP-PURCHASE,03/04/13,716.90
270313E,DRON & WRIGHT=================,16297,1,"4,208.26",PROFESSIONAL SERVICES,03/04/13,"31,669.53"
270313E,DRON & WRIGHT=================,16297,2,556.50,PROFESSIONAL SERVICES,03/04/13,
270313E,DRON & WRIGHT=================,16297,3,"6,881.00",PROFESSIONAL SERVICES,03/04/13,
270313E,DRON & WRIGHT=================,16297,4,967.50,PROFESSIONAL SERVICES,03/04/13,
270313E,DRON & WRIGHT=================,16297,5,250.00,PROFESSIONAL SERVICES,03/04/13,
270313E,DRON & WRIGHT=================,16297,6,500.80,PROFESSIONAL SERVICES,03/04/13,
270313E,DRON & WRIGHT=================,16297,7,271.70,PROFESSIONAL SERVICES,03/04/13,
270313E,DRON & WRIGHT=================,16297,8,"3,195.10",PROFESSIONAL SERVICES,03/04/13,
270313E,DRON & WRIGHT=================,16297,9,"3,514.10",PROFESSIONAL SERVICES,03/04/13,
270313E,DRON & WRIGHT=================,16297,10,"1,886.32",PROFESSIONAL SERVICES,03/04/13,
270313E,DRON & WRIGHT=================,16297,11,570.68,PROFESSIONAL SERVICES,03/04/13,
270313E,DRON & WRIGHT=================,16297,12,416.67,PROFESSIONAL SERVICES,03/04/13,
270313E,DRON & WRIGHT=================,16297,13,175.00,PROFESSIONAL FEES - MISC,03/04/13,
270313E,DRON & WRIGHT=================,16297,14,"4,386.60",DISPOSAL COSTS - ESTATE AGENTS,03/04/13,
270313E,DRON & WRIGHT=================,16297,15,"1,051.30",DISPOSAL COSTS - ESTATE AGENTS,03/04/13,
270313E,DRON & WRIGHT=================,16297,16,175.00,PROFESSIONAL FEES - MISC,03/04/13,
270313E,DRON & WRIGHT=================,16297,17,52.00,PROFESSIONAL FEES - MISC,03/04/13,
270313E,DRON & WRIGHT=================,16297,18,609.00,PROFESSIONAL FEES - MISC,03/04/13,
270313E,DRON & WRIGHT=================,16297,19,42.00,PROFESSIONAL FEES - MISC,03/04/13,
270313E,DRON & WRIGHT=================,16297,20,"1,960.00",PROFESSIONAL SERVICES,03/04/13,
140161,B NOKES CONTRACTS LTD,1703,1,"4,830.00",STRATEGIC (NON CYCLICAL),03/04/13,"8,652.00"
140161,B NOKES CONTRACTS LTD,1703,2,"3,822.00",STRATEGIC (NON CYCLICAL),03/04/13,
140161,B NOKES CONTRACTS LTD,1711,1,"1,800.00",OFFICE FURNITURE,03/04/13,"2,000.00"
140161,B NOKES CONTRACTS LTD,1711,2,200.00,OFFICE FURNITURE,03/04/13,
140161,B NOKES CONTRACTS LTD,1712,1,608.90,STRATEGIC (NON CYCLICAL),03/04/13,"1,280.90"
140161,B NOKES CONTRACTS LTD,1712,2,672.00,STRATEGIC (NON CYCLICAL),03/04/13,
260313C,AUTOGLASS LIMITED=============,20847577,1,978.32,WINDSCREEN & TYRE CHARGES,03/04/13,978.32
260313C,AUTOGLASS LIMITED=============,20868962,1,600.77,WINDSCREEN & TYRE CHARGES,03/04/13,600.77
270313E,BRISTOL UNIFORMS LTD==========,213383,1,"192,411.72",CLOTHING,03/04/13,"192,411.72"
270313E,BRISTOL UNIFORMS LTD==========,213397,1,725.99,CLOTHING,03/04/13,725.99
270313E,BRISTOL UNIFORMS LTD==========,213399,1,"1,784.10",CLOTHING,03/04/13,"1,784.10"
180313E,PROPERTY DATA SOLUTIONS LTD===,215,1,"20,354.55",CONSULTANTS,03/04/13,"20,354.55"
250313E,STORM TECHNOLOGIES============,216225,1,44.75,PRINTING,03/04/13,"3,140.42"
250313E,STORM TECHNOLOGIES============,216225,2,43.82,PRINTING,03/04/13,
250313E,STORM TECHNOLOGIES============,216225,3,102.10,PRINTING,03/04/13,
250313E,STORM TECHNOLOGIES============,216225,4,"2,101.98",PRINTING,03/04/13,
250313E,STORM TECHNOLOGIES============,216225,5,847.77,PRINTING,03/04/13,
140159,MR CHARLES GIBSON QC,224038,1,"10,512.50",CONSULTANTS,03/04/13,"10,512.50"
270313E,FIRE SERVICES YOUTH TRAIN.ASS.,2288,1,402.96,PROFESSIONAL DEVELOPMENT,03/04/13,402.96
140159,MISS BO-EUN JUNG==============,228800,1,"1,540.00",PROFESSIONAL FEES ENFORCEMENT,03/04/13,"1,540.00"
140159,MISS SARAH LE FEVRE===========,230176,1,980.00,PROFESSIONAL FEES ENFORCEMENT,03/04/13,980.00
140159,MISS SABA NAQSHBANDI==========,230697B,1,"16,286.67",PROFESSIONAL FEES GENERAL,03/04/13,"16,286.67"
270313E,ARKAS LIMITED=================,23604,1,232.75,STRATEGIC (CYCLICAL),03/04/13,"1,537.64"
270313E,ARKAS LIMITED=================,23604,2,635.80,STRATEGIC (CYCLICAL),03/04/13,
270313E,ARKAS LIMITED=================,23604,3,175.75,STRATEGIC (CYCLICAL),03/04/13,
270313E,ARKAS LIMITED=================,23604,4,493.34,TACTICAL DAY TO DAY,03/04/13,
270313E,ARKAS LIMITED=================,23605,1,297.46,TACTICAL DAY TO DAY,03/04/13,"2,233.38"
270313E,ARKAS LIMITED=================,23605,2,346.75,STRATEGIC (CYCLICAL),03/04/13,
270313E,ARKAS LIMITED=================,23605,3,279.60,STRATEGIC (CYCLICAL),03/04/13,
270313E,ARKAS LIMITED=================,23605,4,"1,309.57",STRATEGIC (CYCLICAL),03/04/13,
270313E,ARKAS LIMITED=================,23606,1,393.71,TACTICAL DAY TO DAY,03/04/13,"1,231.85"
270313E,ARKAS LIMITED=================,23606,2,218.50,STRATEGIC (CYCLICAL),03/04/13,
270313E,ARKAS LIMITED=================,23606,3,367.97,STRATEGIC (CYCLICAL),03/04/13,
270313E,ARKAS LIMITED=================,23606,4,251.67,TACTICAL DAY TO DAY,03/04/13,
270313E,ARKAS LIMITED=================,23607,1,289.75,TACTICAL DAY TO DAY,03/04/13,"1,350.21"
270313E,ARKAS LIMITED=================,23607,2,510.85,STRATEGIC (CYCLICAL),03/04/13,
270313E,ARKAS LIMITED=================,23607,3,345.36,STRATEGIC (CYCLICAL),03/04/13,
270313E,ARKAS LIMITED=================,23607,4,204.25,TACTICAL DAY TO DAY,03/04/13,
270313E,ARKAS LIMITED=================,23608,1,161.50,TACTICAL DAY TO DAY,03/04/13,"1,447.33"
270313E,ARKAS LIMITED=================,23608,2,147.25,STRATEGIC (CYCLICAL),03/04/13,
270313E,ARKAS LIMITED=================,23608,3,472.90,TACTICAL DAY TO DAY,03/04/13,
270313E,ARKAS LIMITED=================,23608,4,665.68,STRATEGIC (CYCLICAL),03/04/13,
270313E,ARKAS LIMITED=================,23609,1,182.47,STRATEGIC (CYCLICAL),03/04/13,927.34
270313E,ARKAS LIMITED=================,23609,2,179.62,TACTICAL DAY TO DAY,03/04/13,
270313E,ARKAS LIMITED=================,23609,3,204.25,STRATEGIC (CYCLICAL),03/04/13,
270313E,ARKAS LIMITED=================,23609,4,361.00,STRATEGIC (CYCLICAL),03/04/13,
270313E,ARKAS LIMITED=================,23610,1,289.75,STRATEGIC (CYCLICAL),03/04/13,"1,175.35"
270313E,ARKAS LIMITED=================,23610,2,175.75,STRATEGIC (CYCLICAL),03/04/13,
270313E,ARKAS LIMITED=================,23610,3,548.35,STRATEGIC (CYCLICAL),03/04/13,
270313E,ARKAS LIMITED=================,23610,4,161.50,TACTICAL DAY TO DAY,03/04/13,
270313E,ARKAS LIMITED=================,23611,1,161.50,STRATEGIC (CYCLICAL),03/04/13,753.44
270313E,ARKAS LIMITED=================,23611,2,193.43,STRATEGIC (CYCLICAL),03/04/13,
270313E,ARKAS LIMITED=================,23611,3,208.51,TACTICAL DAY TO DAY,03/04/13,
270313E,ARKAS LIMITED=================,23611,4,190.00,STRATEGIC (CYCLICAL),03/04/13,
270313E,ARKAS LIMITED=================,23612,1,204.25,STRATEGIC (CYCLICAL),03/04/13,745.75
270313E,ARKAS LIMITED=================,23612,2,190.00,STRATEGIC (CYCLICAL),03/04/13,
270313E,ARKAS LIMITED=================,23612,3,190.00,STRATEGIC (CYCLICAL),03/04/13,
270313E,ARKAS LIMITED=================,23612,4,161.50,STRATEGIC (CYCLICAL),03/04/13,
270313E,ARKAS LIMITED=================,23613,1,161.50,STRATEGIC (CYCLICAL),03/04/13,771.06
270313E,ARKAS LIMITED=================,23613,2,243.81,STRATEGIC (CYCLICAL),03/04/13,
270313E,ARKAS LIMITED=================,23613,3,175.75,STRATEGIC (CYCLICAL),03/04/13,
270313E,ARKAS LIMITED=================,23613,4,190.00,STRATEGIC (CYCLICAL),03/04/13,
270313E,ARKAS LIMITED=================,23614,1,161.50,STRATEGIC (CYCLICAL),03/04/13,"1,320.03"
270313E,ARKAS LIMITED=================,23614,2,161.50,STRATEGIC (CYCLICAL),03/04/13,
270313E,ARKAS LIMITED=================,23614,3,613.43,STRATEGIC (CYCLICAL),03/04/13,
270313E,ARKAS LIMITED=================,23614,4,383.60,STRATEGIC (CYCLICAL),03/04/13,
270313E,ARKAS LIMITED=================,23615,1,195.15,STRATEGIC (CYCLICAL),03/04/13,881.86
270313E,ARKAS LIMITED=================,23615,2,218.50,STRATEGIC (CYCLICAL),03/04/13,
270313E,ARKAS LIMITED=================,23615,3,161.50,STRATEGIC (CYCLICAL),03/04/13,
270313E,ARKAS LIMITED=================,23615,4,306.71,STRATEGIC (CYCLICAL),03/04/13,
270313E,ARKAS LIMITED=================,23616,1,560.50,STRATEGIC (CYCLICAL),03/04/13,"1,146.88"
270313E,ARKAS LIMITED=================,23616,2,218.50,STRATEGIC (CYCLICAL),03/04/13,
270313E,ARKAS LIMITED=================,23616,3,206.38,STRATEGIC (CYCLICAL),03/04/13,
270313E,ARKAS LIMITED=================,23616,4,161.50,STRATEGIC (CYCLICAL),03/04/13,
270313E,ARKAS LIMITED=================,23617,1,175.75,STRATEGIC (CYCLICAL),03/04/13,849.76
270313E,ARKAS LIMITED=================,23617,2,232.75,STRATEGIC (CYCLICAL),03/04/13,
270313E,ARKAS LIMITED=================,23617,3,190.00,STRATEGIC (CYCLICAL),03/04/13,
270313E,ARKAS LIMITED=================,23617,4,251.26,STRATEGIC (CYCLICAL),03/04/13,
270313E,ARKAS LIMITED=================,23622,1,"96,691.00",DEVELOPMENT EXP - CONTRACTORS,03/04/13,"96,691.00"
270313E,ARKAS LIMITED=================,23623,1,"3,567.04",STRATEGIC (CYCLICAL),03/04/13,"3,567.04"
270313E,ARKAS LIMITED=================,23646,1,500.00,TACTICAL DAY TO DAY,03/04/13,500.00
270313E,ARKAS LIMITED=================,23648,1,"14,172.70",STRATEGIC (CYCLICAL),03/04/13,"14,172.70"
140152,THAMES WATER UTILITIES LTD====,2574700531Y,1,491.06,WATER & SEWERAGE RATES,03/04/13,491.06
270313H,BISHOP CREIGHTON HSE SETTLEMNT,2599,1,"1,225.00",COMMUNITY RELATIONS,03/04/13,"1,225.00"
190313H,RIDGEWAY TEXTILES LIMITED=====,26304,1,"1,183.75",OPERATIONAL EQUIP-PURCHASE,03/04/13,"1,183.75"
800018263,ADECCO UK LIMITED=============,26354194,1,588.35,FRS STAFF AGENCY,03/04/13,588.35
800018264,ADECCO UK LIMITED=============,26354195,1,588.35,FRS STAFF AGENCY,03/04/13,588.35
800018265,ADECCO UK LIMITED=============,26354196,1,397.95,FRS STAFF AGENCY,03/04/13,397.95
800018266,ADECCO UK LIMITED=============,26354197,1,963.60,FRS STAFF AGENCY,03/04/13,963.60
800018267,ADECCO UK LIMITED=============,26354198,1,479.63,FRS STAFF AGENCY,03/04/13,479.63
800018268,ADECCO UK LIMITED=============,26354199,1,178.48,FRS STAFF AGENCY,03/04/13,"1,115.50"
800018268,ADECCO UK LIMITED=============,26354199,2,937.02,FRS STAFF AGENCY,03/04/13,
800018269,ADECCO UK LIMITED=============,26354200,1,"1,114.75",FRS STAFF AGENCY,03/04/13,"1,114.75"
800018270,ADECCO UK LIMITED=============,26354201,1,586.38,FRS STAFF AGENCY,03/04/13,586.38
800018271,ADECCO UK LIMITED=============,26354202,1,470.68,FRS STAFF AGENCY,03/04/13,470.68
800018272,ADECCO UK LIMITED=============,26354203,1,302.58,FRS STAFF AGENCY,03/04/13,302.58
800018273,ADECCO UK LIMITED=============,26354204,1,588.35,FRS STAFF AGENCY,03/04/13,588.35
800018274,ADECCO UK LIMITED=============,26354205,1,920.50,FRS STAFF AGENCY,03/04/13,920.50
800018275,ADECCO UK LIMITED=============,26354206,1,588.35,FRS STAFF AGENCY,03/04/13,588.35
800018276,ADECCO UK LIMITED=============,26354207,1,"1,073.54",FRS STAFF AGENCY,03/04/13,"1,073.54"
800018277,ADECCO UK LIMITED=============,26354208,1,587.65,FRS STAFF AGENCY,03/04/13,587.65
270313E,MACE LIMITED,26915/0313588,1,260.00,STRATEGIC (NON CYCLICAL),03/04/13,260.00
260313C,CORDIS BRIGHT LTD,2692,1,"9,490.75",CONSULTANTS,03/04/13,"9,490.75"
270313E,CANON (UK) LTD===============,300699519,1,300.00,OFFICE EQUIPMENT,03/04/13,300.00
140147,REACTIVE ROOFING (UK) LIMITED,3019,1,"1,991.00",STRATEGIC (NON CYCLICAL),03/04/13,"2,735.00"
140147,REACTIVE ROOFING (UK) LIMITED,3019,2,744.00,STRATEGIC (NON CYCLICAL),03/04/13,
140147,REACTIVE ROOFING (UK) LIMITED,3020,1,"1,096.40",STRATEGIC (NON CYCLICAL),03/04/13,"1,280.40"
140147,REACTIVE ROOFING (UK) LIMITED,3020,2,184.00,STRATEGIC (NON CYCLICAL),03/04/13,
140157,THAMES WATER UTILITIES LTD====,3367365430B,1,329.18,WATER & SEWERAGE RATES,03/04/13,329.18
190313C,ARGENT FM LTD=================,3471,1,"71,778.13",DEVELOPMENT EXP - CONTRACTORS,03/04/13,"71,778.13"
270313E,BRUEL & KJAER UK LTD==========,3901659,1,753.00,OPERATIONAL EQUIP-PURCHASE,03/04/13,753.00
270313E,LOCAL GOVERNMENT ASSOCIATION==,40129387,1,279.00,PROFESSIONAL DEVELOPMENT,03/04/13,279.00
140157,THAMES WATER UTILITIES LTD====,4626421532B,1,419.10,WATER & SEWERAGE RATES,03/04/13,419.10
280313G,EUROVIA INFRASTRUCTURE LIMITED,5055.2.0077000001,1,"1,474.64",STRATEGIC (NON CYCLICAL),03/04/13,"1,474.64"
140157,SUTTON & EAST SURREY WATER PLC,514285-8Q,1,378.99,WATER & SEWERAGE RATES,03/04/13,378.99
800018037,*GREENHAM TRADING LTD=========,5578713,1,105.00,STATIONERY CONSUMABLES,03/04/13,442.50
800018037,*GREENHAM TRADING LTD=========,5578713,2,337.50,STATIONERY CONSUMABLES,03/04/13,
800017979,*GREENHAM TRADING LTD=========,5578909,1,16.80,HYGIENE,03/04/13,340.29
800017979,*GREENHAM TRADING LTD=========,5578909,2,4.20,HYGIENE,03/04/13,
800017979,*GREENHAM TRADING LTD=========,5578909,3,28.10,HYGIENE,03/04/13,
800017979,*GREENHAM TRADING LTD=========,5578909,4,58.00,HYGIENE,03/04/13,
800017979,*GREENHAM TRADING LTD=========,5578909,5,9.88,HYGIENE,03/04/13,
800017979,*GREENHAM TRADING LTD=========,5578909,6,3.77,HYGIENE,03/04/13,
800017979,*GREENHAM TRADING LTD=========,5578909,7,20.10,HYGIENE,03/04/13,
800017979,*GREENHAM TRADING LTD=========,5578909,8,6.70,HYGIENE,03/04/13,
800017979,*GREENHAM TRADING LTD=========,5578909,9,6.42,HYGIENE,03/04/13,
800017979,*GREENHAM TRADING LTD=========,5578909,10,26.00,HYGIENE,03/04/13,
800017979,*GREENHAM TRADING LTD=========,5578909,11,28.05,HYGIENE,03/04/13,
800017979,*GREENHAM TRADING LTD=========,5578909,12,38.85,HYGIENE,03/04/13,
800017979,*GREENHAM TRADING LTD=========,5578909,13,14.65,HYGIENE,03/04/13,
800017979,*GREENHAM TRADING LTD=========,5578909,14,50.26,HYGIENE,03/04/13,
800017979,*GREENHAM TRADING LTD=========,5578909,15,5.20,HYGIENE,03/04/13,
800017979,*GREENHAM TRADING LTD=========,5578909,16,23.31,HYGIENE,03/04/13,
140162,ESSEX & SUFFOLK WATER PLC=====,602518200017N,1,"1,291.42",WATER & SEWERAGE RATES,03/04/13,"1,291.42"
140150,BRITISH GAS BUSINESS==========,6078202021,1,738.37,ELECTRICITY,03/04/13,"14,989.29"
140150,BRITISH GAS BUSINESS==========,6078202021,2,441.42,ELECTRICITY,03/04/13,
140150,BRITISH GAS BUSINESS==========,6078202021,3,643.54,ELECTRICITY,03/04/13,
140150,BRITISH GAS BUSINESS==========,6078202021,4,644.52,ELECTRICITY,03/04/13,
140150,BRITISH GAS BUSINESS==========,6078202021,5,530.91,ELECTRICITY,03/04/13,
140150,BRITISH GAS BUSINESS==========,6078202021,6,340.01,ELECTRICITY,03/04/13,
140150,BRITISH GAS BUSINESS==========,6078202021,7,472.71,ELECTRICITY,03/04/13,
140150,BRITISH GAS BUSINESS==========,6078202021,8,333.19,ELECTRICITY,03/04/13,
140150,BRITISH GAS BUSINESS==========,6078202021,9,"1,511.50",ELECTRICITY,03/04/13,
140150,BRITISH GAS BUSINESS==========,6078202021,10,537.26,ELECTRICITY,03/04/13,
140150,BRITISH GAS BUSINESS==========,6078202021,11,269.93,ELECTRICITY,03/04/13,
140150,BRITISH GAS BUSINESS==========,6078202021,12,401.42,ELECTRICITY,03/04/13,
140150,BRITISH GAS BUSINESS==========,6078202021,13,472.97,ELECTRICITY,03/04/13,
140150,BRITISH GAS BUSINESS==========,6078202021,14,472.87,ELECTRICITY,03/04/13,
140150,BRITISH GAS BUSINESS==========,6078202021,15,602.73,ELECTRICITY,03/04/13,
140150,BRITISH GAS BUSINESS==========,6078202021,16,323.32,ELECTRICITY,03/04/13,
140150,BRITISH GAS BUSINESS==========,6078202021,17,264.75,ELECTRICITY,03/04/13,
140150,BRITISH GAS BUSINESS==========,6078202021,18,215.83,ELECTRICITY,03/04/13,
140150,BRITISH GAS BUSINESS==========,6078202021,19,576.81,ELECTRICITY,03/04/13,
140150,BRITISH GAS BUSINESS==========,6078202021,20,120.22,ELECTRICITY,03/04/13,
140150,BRITISH GAS BUSINESS==========,6078202021,21,47.22,ELECTRICITY,03/04/13,
140150,BRITISH GAS BUSINESS==========,6078202021,22,30.91,ELECTRICITY,03/04/13,
140150,BRITISH GAS BUSINESS==========,6078202021,23,38.05,ELECTRICITY,03/04/13,
140150,BRITISH GAS BUSINESS==========,6078202021,24,45.70,ELECTRICITY,03/04/13,
140150,BRITISH GAS BUSINESS==========,6078202021,25,469.57,ELECTRICITY,03/04/13,
140150,BRITISH GAS BUSINESS==========,6078202021,26,45.80,ELECTRICITY,03/04/13,
140150,BRITISH GAS BUSINESS==========,6078202021,27,23.44,ELECTRICITY,03/04/13,
140150,BRITISH GAS BUSINESS==========,6078202021,28,19.98,ELECTRICITY,03/04/13,
140150,BRITISH GAS BUSINESS==========,6078202021,29,"1,496.74",ELECTRICITY,03/04/13,
140150,BRITISH GAS BUSINESS==========,6078202021,30,"1,165.21",ELECTRICITY,03/04/13,
140150,BRITISH GAS BUSINESS==========,6078202021,31,743.68,ELECTRICITY,03/04/13,
140150,BRITISH GAS BUSINESS==========,6078202021,32,414.43,ELECTRICITY,03/04/13,
140150,BRITISH GAS BUSINESS==========,6078202021,33,309.48,ELECTRICITY,03/04/13,
140150,BRITISH GAS BUSINESS==========,6078202021,34,224.80,ELECTRICITY,03/04/13,
140153,BRITISH GAS BUSINESS==========,6078202022,1,318.91,ELECTRICITY,03/04/13,"15,036.91"
140153,BRITISH GAS BUSINESS==========,6078202022,2,665.06,ELECTRICITY,03/04/13,
140153,BRITISH GAS BUSINESS==========,6078202022,3,85.70,ELECTRICITY,03/04/13,
140153,BRITISH GAS BUSINESS==========,6078202022,4,502.99,ELECTRICITY,03/04/13,
140153,BRITISH GAS BUSINESS==========,6078202022,5,523.79,ELECTRICITY,03/04/13,
140153,BRITISH GAS BUSINESS==========,6078202022,6,22.00,ELECTRICITY,03/04/13,
140153,BRITISH GAS BUSINESS==========,6078202022,7,14.51,ELECTRICITY,03/04/13,
140153,BRITISH GAS BUSINESS==========,6078202022,8,276.12,ELECTRICITY,03/04/13,
140153,BRITISH GAS BUSINESS==========,6078202022,9,488.54,ELECTRICITY,03/04/13,
140153,BRITISH GAS BUSINESS==========,6078202022,10,382.39,ELECTRICITY,03/04/13,
140153,BRITISH GAS BUSINESS==========,6078202022,11,661.27,ELECTRICITY,03/04/13,
140153,BRITISH GAS BUSINESS==========,6078202022,12,23.26,ELECTRICITY,03/04/13,
140153,BRITISH GAS BUSINESS==========,6078202022,13,17.07,ELECTRICITY,03/04/13,
140153,BRITISH GAS BUSINESS==========,6078202022,14,99.35,ELECTRICITY,03/04/13,
140153,BRITISH GAS BUSINESS==========,6078202022,15,810.32,ELECTRICITY,03/04/13,
140153,BRITISH GAS BUSINESS==========,6078202022,16,20.32,ELECTRICITY,03/04/13,
140153,BRITISH GAS BUSINESS==========,6078202022,17,351.58,ELECTRICITY,03/04/13,
140153,BRITISH GAS BUSINESS==========,6078202022,18,585.98,ELECTRICITY,03/04/13,
140153,BRITISH GAS BUSINESS==========,6078202022,19,433.26,ELECTRICITY,03/04/13,
140153,BRITISH GAS BUSINESS==========,6078202022,20,204.60,ELECTRICITY,03/04/13,
140153,BRITISH GAS BUSINESS==========,6078202022,21,31.79,ELECTRICITY,03/04/13,
140153,BRITISH GAS BUSINESS==========,6078202022,22,"2,712.23",ELECTRICITY,03/04/13,
140153,BRITISH GAS BUSINESS==========,6078202022,23,21.68,ELECTRICITY,03/04/13,
140153,BRITISH GAS BUSINESS==========,6078202022,24,691.92,ELECTRICITY,03/04/13,
140153,BRITISH GAS BUSINESS==========,6078202022,25,57.01,ELECTRICITY,03/04/13,
140153,BRITISH GAS BUSINESS==========,6078202022,26,390.54,ELECTRICITY,03/04/13,
140153,BRITISH GAS BUSINESS==========,6078202022,27,172.53,ELECTRICITY,03/04/13,
140153,BRITISH GAS BUSINESS==========,6078202022,28,487.51,ELECTRICITY,03/04/13,
140153,BRITISH GAS BUSINESS==========,6078202022,29,363.34,ELECTRICITY,03/04/13,
140153,BRITISH GAS BUSINESS==========,6078202022,30,689.46,ELECTRICITY,03/04/13,
140153,BRITISH GAS BUSINESS==========,6078202022,31,216.81,ELECTRICITY,03/04/13,
140153,BRITISH GAS BUSINESS==========,6078202022,32,448.61,ELECTRICITY,03/04/13,
140153,BRITISH GAS BUSINESS==========,6078202022,33,789.08,ELECTRICITY,03/04/13,
140153,BRITISH GAS BUSINESS==========,6078202022,34,517.45,ELECTRICITY,03/04/13,
140153,BRITISH GAS BUSINESS==========,6078202022,35,708.83,ELECTRICITY,03/04/13,
140153,BRITISH GAS BUSINESS==========,6078202022,36,251.10,ELECTRICITY,03/04/13,
140154,BRITISH GAS BUSINESS==========,6078202023,1,113.61,ELECTRICITY,03/04/13,"15,804.13"
140154,BRITISH GAS BUSINESS==========,6078202023,2,486.95,ELECTRICITY,03/04/13,
140154,BRITISH GAS BUSINESS==========,6078202023,3,686.83,ELECTRICITY,03/04/13,
140154,BRITISH GAS BUSINESS==========,6078202023,4,13.91,ELECTRICITY,03/04/13,
140154,BRITISH GAS BUSINESS==========,6078202023,5,387.51,ELECTRICITY,03/04/13,
140154,BRITISH GAS BUSINESS==========,6078202023,6,409.50,ELECTRICITY,03/04/13,
140154,BRITISH GAS BUSINESS==========,6078202023,7,283.49,ELECTRICITY,03/04/13,
140154,BRITISH GAS BUSINESS==========,6078202023,8,41.76,ELECTRICITY,03/04/13,
140154,BRITISH GAS BUSINESS==========,6078202023,9,30.82,ELECTRICITY,03/04/13,
140154,BRITISH GAS BUSINESS==========,6078202023,10,300.30,ELECTRICITY,03/04/13,
140154,BRITISH GAS BUSINESS==========,6078202023,11,392.38,ELECTRICITY,03/04/13,
140154,BRITISH GAS BUSINESS==========,6078202023,12,50.66,ELECTRICITY,03/04/13,
140154,BRITISH GAS BUSINESS==========,6078202023,13,358.68,ELECTRICITY,03/04/13,
140154,BRITISH GAS BUSINESS==========,6078202023,14,995.86,ELECTRICITY,03/04/13,
140154,BRITISH GAS BUSINESS==========,6078202023,15,637.48,ELECTRICITY,03/04/13,
140154,BRITISH GAS BUSINESS==========,6078202023,16,443.74,ELECTRICITY,03/04/13,
140154,BRITISH GAS BUSINESS==========,6078202023,17,222.77,ELECTRICITY,03/04/13,
140154,BRITISH GAS BUSINESS==========,6078202023,18,"2,201.74",ELECTRICITY,03/04/13,
140154,BRITISH GAS BUSINESS==========,6078202023,19,247.75,ELECTRICITY,03/04/13,
140154,BRITISH GAS BUSINESS==========,6078202023,20,487.68,ELECTRICITY,03/04/13,
140154,BRITISH GAS BUSINESS==========,6078202023,21,218.96,ELECTRICITY,03/04/13,
140154,BRITISH GAS BUSINESS==========,6078202023,22,239.74,ELECTRICITY,03/04/13,
140154,BRITISH GAS BUSINESS==========,6078202023,23,313.37,ELECTRICITY,03/04/13,
140154,BRITISH GAS BUSINESS==========,6078202023,24,460.86,ELECTRICITY,03/04/13,
140154,BRITISH GAS BUSINESS==========,6078202023,25,363.69,ELECTRICITY,03/04/13,
140154,BRITISH GAS BUSINESS==========,6078202023,26,586.42,ELECTRICITY,03/04/13,
140154,BRITISH GAS BUSINESS==========,6078202023,27,234.84,ELECTRICITY,03/04/13,
140154,BRITISH GAS BUSINESS==========,6078202023,28,"1,041.86",ELECTRICITY,03/04/13,
140154,BRITISH GAS BUSINESS==========,6078202023,29,362.25,ELECTRICITY,03/04/13,
140154,BRITISH GAS BUSINESS==========,6078202023,30,480.80,ELECTRICITY,03/04/13,
140154,BRITISH GAS BUSINESS==========,6078202023,31,621.86,ELECTRICITY,03/04/13,
140154,BRITISH GAS BUSINESS==========,6078202023,32,303.59,ELECTRICITY,03/04/13,
140154,BRITISH GAS BUSINESS==========,6078202023,33,573.45,ELECTRICITY,03/04/13,
140154,BRITISH GAS BUSINESS==========,6078202023,34,328.26,ELECTRICITY,03/04/13,
140154,BRITISH GAS BUSINESS==========,6078202023,35,880.76,ELECTRICITY,03/04/13,
140155,BRITISH GAS BUSINESS==========,6078202024,1,412.06,ELECTRICITY,03/04/13,"15,948.89"
140155,BRITISH GAS BUSINESS==========,6078202024,2,536.58,ELECTRICITY,03/04/13,
140155,BRITISH GAS BUSINESS==========,6078202024,3,852.31,ELECTRICITY,03/04/13,
140155,BRITISH GAS BUSINESS==========,6078202024,4,26.77,ELECTRICITY,03/04/13,
140155,BRITISH GAS BUSINESS==========,6078202024,5,29.06,ELECTRICITY,03/04/13,
140155,BRITISH GAS BUSINESS==========,6078202024,6,21.57,ELECTRICITY,03/04/13,
140155,BRITISH GAS BUSINESS==========,6078202024,7,374.93,ELECTRICITY,03/04/13,
140155,BRITISH GAS BUSINESS==========,6078202024,8,412.31,ELECTRICITY,03/04/13,
140155,BRITISH GAS BUSINESS==========,6078202024,9,707.86,ELECTRICITY,03/04/13,
140155,BRITISH GAS BUSINESS==========,6078202024,10,419.81,ELECTRICITY,03/04/13,
140155,BRITISH GAS BUSINESS==========,6078202024,11,280.12,ELECTRICITY,03/04/13,
140155,BRITISH GAS BUSINESS==========,6078202024,12,341.87,ELECTRICITY,03/04/13,
140155,BRITISH GAS BUSINESS==========,6078202024,13,163.21,ELECTRICITY,03/04/13,
140155,BRITISH GAS BUSINESS==========,6078202024,14,440.22,ELECTRICITY,03/04/13,
140155,BRITISH GAS BUSINESS==========,6078202024,15,540.96,ELECTRICITY,03/04/13,
140155,BRITISH GAS BUSINESS==========,6078202024,16,"1,753.88",ELECTRICITY,03/04/13,
140155,BRITISH GAS BUSINESS==========,6078202024,17,321.89,ELECTRICITY,03/04/13,
140155,BRITISH GAS BUSINESS==========,6078202024,18,60.90,ELECTRICITY,03/04/13,
140155,BRITISH GAS BUSINESS==========,6078202024,19,189.07,ELECTRICITY,03/04/13,
140155,BRITISH GAS BUSINESS==========,6078202024,20,429.39,ELECTRICITY,03/04/13,
140155,BRITISH GAS BUSINESS==========,6078202024,21,597.94,ELECTRICITY,03/04/13,
140155,BRITISH GAS BUSINESS==========,6078202024,22,566.42,ELECTRICITY,03/04/13,
140155,BRITISH GAS BUSINESS==========,6078202024,23,436.38,ELECTRICITY,03/04/13,
140155,BRITISH GAS BUSINESS==========,6078202024,24,"1,139.76",ELECTRICITY,03/04/13,
140155,BRITISH GAS BUSINESS==========,6078202024,25,"1,125.32",ELECTRICITY,03/04/13,
140155,BRITISH GAS BUSINESS==========,6078202024,26,393.85,ELECTRICITY,03/04/13,
140155,BRITISH GAS BUSINESS==========,6078202024,27,273.11,ELECTRICITY,03/04/13,
140155,BRITISH GAS BUSINESS==========,6078202024,28,658.08,ELECTRICITY,03/04/13,
140155,BRITISH GAS BUSINESS==========,6078202024,29,45.72,ELECTRICITY,03/04/13,
140155,BRITISH GAS BUSINESS==========,6078202024,30,14.34,ELECTRICITY,03/04/13,
140155,BRITISH GAS BUSINESS==========,6078202024,31,41.77,ELECTRICITY,03/04/13,
140155,BRITISH GAS BUSINESS==========,6078202024,32,42.46,ELECTRICITY,03/04/13,
140155,BRITISH GAS BUSINESS==========,6078202024,33,421.40,ELECTRICITY,03/04/13,
140155,BRITISH GAS BUSINESS==========,6078202024,34,"1,877.57",ELECTRICITY,03/04/13,
140156,BRITISH GAS BUSINESS==========,6078202025,1,420.96,ELECTRICITY,03/04/13,"1,663.35"
140156,BRITISH GAS BUSINESS==========,6078202025,2,232.58,ELECTRICITY,03/04/13,
140156,BRITISH GAS BUSINESS==========,6078202025,3,373.87,ELECTRICITY,03/04/13,
140156,BRITISH GAS BUSINESS==========,6078202025,4,348.91,ELECTRICITY,03/04/13,
140156,BRITISH GAS BUSINESS==========,6078202025,5,272.60,ELECTRICITY,03/04/13,
140156,BRITISH GAS BUSINESS==========,6078202025,6,14.43,ELECTRICITY,03/04/13,
270313H,PREMIER HOSE TECHNOLOGIES LTD=,621529,1,742.00,PROTECTIVE EQUIPT - PARTS,03/04/13,925.70
270313H,PREMIER HOSE TECHNOLOGIES LTD=,621529,2,169.20,PROTECTIVE EQUIPT - PARTS,03/04/13,
270313H,PREMIER HOSE TECHNOLOGIES LTD=,621529,3,14.50,REPAIR & MAINTENANCE,03/04/13,
140157,THAMES WATER UTILITIES LTD====,6395955189A,1,260.01,WATER & SEWERAGE RATES,03/04/13,260.01
250313H,PA GROUP (UK) LTD=============,6619,1,770.00,DEVELOPMENT EXP - CONTRACTORS,03/04/13,770.00
270313C,MOORE STEPHENS CONSULTING LTD=,673143,1,"5,560.00",MAINTENANCE & SUPPORT,03/04/13,"5,560.00"
270313E,TWO SERVICES LTD==============,69745,1,645.50,CATERING EQUIPMENT,03/04/13,645.50
270313C,PETER JONES (ILG) LTD=========,72120,1,262.50,PROTECTIVE EQUIPMENT R & D,03/04/13,268.45
270313C,PETER JONES (ILG) LTD=========,72120,2,5.95,PROTECTIVE EQUIPMENT R & D,03/04/13,
140159,MR STEPHEN WALSH,7878/230697,1,"27,083.33",PROFESSIONAL FEES GENERAL,03/04/13,"27,083.33"
260313C,SUPPORTPLAN (UK) LTD==========,81217,1,185.00,PRINTING,03/04/13,"1,265.00"
260313C,SUPPORTPLAN (UK) LTD==========,81217,2,"1,080.00",PRINTING,03/04/13,
260313C,SUPPORTPLAN (UK) LTD==========,81222,1,450.00,PRINTING,03/04/13,450.00
140157,THAMES WATER UTILITIES LTD====,8204330850B,1,385.54,WATER & SEWERAGE RATES,03/04/13,385.54
260313G,L B OF TOWER HAMLETS==========,84209825,1,411.08,COMMUNITY RELATIONS,03/04/13,411.08
260313G,L B OF TOWER HAMLETS==========,84209867,1,448.76,COMMUNITY RELATIONS,03/04/13,448.76
270313E,G4S TECHNOLOGY LIMITED========,842660,1,"1,909.32",STRATEGIC (CYCLICAL),03/04/13,"84,213.12"
270313E,G4S TECHNOLOGY LIMITED========,842660,2,"11,590.92",STRATEGIC (CYCLICAL),03/04/13,
270313E,G4S TECHNOLOGY LIMITED========,842660,3,182.76,STRATEGIC (CYCLICAL),03/04/13,
270313E,G4S TECHNOLOGY LIMITED========,842660,4,499.20,STRATEGIC (CYCLICAL),03/04/13,
270313E,G4S TECHNOLOGY LIMITED========,842660,5,197.40,STRATEGIC (CYCLICAL),03/04/13,
270313E,G4S TECHNOLOGY LIMITED========,842660,6,262.44,STRATEGIC (CYCLICAL),03/04/13,
270313E,G4S TECHNOLOGY LIMITED========,842660,7,535.44,STRATEGIC (CYCLICAL),03/04/13,
270313E,G4S TECHNOLOGY LIMITED========,842660,8,984.60,STRATEGIC (CYCLICAL),03/04/13,
270313E,G4S TECHNOLOGY LIMITED========,842660,9,496.20,STRATEGIC (CYCLICAL),03/04/13,
270313E,G4S TECHNOLOGY LIMITED========,842660,10,294.60,STRATEGIC (CYCLICAL),03/04/13,
270313E,G4S TECHNOLOGY LIMITED========,842660,11,"15,248.76",STRATEGIC (CYCLICAL),03/04/13,
270313E,G4S TECHNOLOGY LIMITED========,842660,12,"4,262.76",STRATEGIC (CYCLICAL),03/04/13,
270313E,G4S TECHNOLOGY LIMITED========,842660,13,880.92,STRATEGIC (CYCLICAL),03/04/13,
270313E,G4S TECHNOLOGY LIMITED========,842660,14,"3,661.44",STRATEGIC (CYCLICAL),03/04/13,
270313E,G4S TECHNOLOGY LIMITED========,842660,15,"1,149.84",STRATEGIC (CYCLICAL),03/04/13,
270313E,G4S TECHNOLOGY LIMITED========,842660,16,"2,208.00",STRATEGIC (CYCLICAL),03/04/13,
270313E,G4S TECHNOLOGY LIMITED========,842660,17,369.72,STRATEGIC (CYCLICAL),03/04/13,
270313E,G4S TECHNOLOGY LIMITED========,842660,18,361.56,STRATEGIC (CYCLICAL),03/04/13,
270313E,G4S TECHNOLOGY LIMITED========,842660,19,549.96,STRATEGIC (CYCLICAL),03/04/13,
270313E,G4S TECHNOLOGY LIMITED========,842660,20,297.48,STRATEGIC (CYCLICAL),03/04/13,
270313E,G4S TECHNOLOGY LIMITED========,842660,21,269.04,STRATEGIC (CYCLICAL),03/04/13,
270313E,G4S TECHNOLOGY LIMITED========,842660,22,861.84,STRATEGIC (CYCLICAL),03/04/13,
270313E,G4S TECHNOLOGY LIMITED========,842660,23,954.60,STRATEGIC (CYCLICAL),03/04/13,
270313E,G4S TECHNOLOGY LIMITED========,842660,24,554.64,STRATEGIC (CYCLICAL),03/04/13,
270313E,G4S TECHNOLOGY LIMITED========,842660,25,364.20,STRATEGIC (CYCLICAL),03/04/13,
270313E,G4S TECHNOLOGY LIMITED========,842660,26,"3,016.20",STRATEGIC (CYCLICAL),03/04/13,
270313E,G4S TECHNOLOGY LIMITED========,842660,27,921.48,STRATEGIC (CYCLICAL),03/04/13,
270313E,G4S TECHNOLOGY LIMITED========,842660,28,"1,247.52",STRATEGIC (CYCLICAL),03/04/13,
270313E,G4S TECHNOLOGY LIMITED========,842660,29,692.88,STRATEGIC (CYCLICAL),03/04/13,
270313E,G4S TECHNOLOGY LIMITED========,842660,30,831.84,STRATEGIC (CYCLICAL),03/04/13,
270313E,G4S TECHNOLOGY LIMITED========,842660,31,"1,083.96",STRATEGIC (CYCLICAL),03/04/13,
270313E,G4S TECHNOLOGY LIMITED========,842660,32,"1,019.64",STRATEGIC (CYCLICAL),03/04/13,
270313E,G4S TECHNOLOGY LIMITED========,842660,33,465.84,STRATEGIC (CYCLICAL),03/04/13,
270313E,G4S TECHNOLOGY LIMITED========,842660,34,366.84,STRATEGIC (CYCLICAL),03/04/13,
270313E,G4S TECHNOLOGY LIMITED========,842660,35,766.92,STRATEGIC (CYCLICAL),03/04/13,
270313E,G4S TECHNOLOGY LIMITED========,842660,36,474.48,STRATEGIC (CYCLICAL),03/04/13,
270313E,G4S TECHNOLOGY LIMITED========,842660,37,338.40,STRATEGIC (CYCLICAL),03/04/13,
270313E,G4S TECHNOLOGY LIMITED========,842660,38,715.92,STRATEGIC (CYCLICAL),03/04/13,
270313E,G4S TECHNOLOGY LIMITED========,842660,39,"4,350.00",STRATEGIC (CYCLICAL),03/04/13,
270313E,G4S TECHNOLOGY LIMITED========,842660,40,"1,692.24",STRATEGIC (CYCLICAL),03/04/13,
270313E,G4S TECHNOLOGY LIMITED========,842660,41,"5,615.16",STRATEGIC (CYCLICAL),03/04/13,
270313E,G4S TECHNOLOGY LIMITED========,842660,42,"3,020.64",STRATEGIC (CYCLICAL),03/04/13,
270313E,G4S TECHNOLOGY LIMITED========,842660,43,"1,821.00",STRATEGIC (CYCLICAL),03/04/13,
270313E,G4S TECHNOLOGY LIMITED========,842660,44,"5,402.76",STRATEGIC (CYCLICAL),03/04/13,
270313E,G4S TECHNOLOGY LIMITED========,842660,45,"1,421.76",STRATEGIC (CYCLICAL),03/04/13,
140157,SUTTON & EAST SURREY WATER PLC,873190-4R,1,740.82,WATER & SEWERAGE RATES,03/04/13,740.82
260313H,VCG KESTREL LIMITED===========,87748,1,"1,847.50",PRINTING,03/04/13,"1,847.50"
270313E,CPL PETROLEUM=================,9264512,1,"4,577.60",FUEL,03/04/13,"4,577.60"
270313E,CPL PETROLEUM=================,9269289,1,"2,852.25",FUEL,03/04/13,"2,852.25"
270313E,CPL PETROLEUM=================,9269408,1,"1,145.90",FUEL,03/04/13,"1,145.90"
250313E,CAPITA SECURE INFO SOLUTIONS,92890919,1,"1,524.00",ACQUISITIONS,03/04/13,"1,524.00"
260313H,REPRO GRAFFIX LTD=============,9666,1,562.95,PRINTING,03/04/13,562.95
140313E,REAM CONTRACTS LTD============,9782,1,"101,554.24",DEVELOPMENT - EX-CONTRACTOR,03/04/13,"101,554.24"
270313E,LPFA CONTRIBUTIONS ACCOUNT====,ACT627,1,690.00,OUTSOURCED TRAINING,03/04/13,690.00
250313H,ASTEC SURVEYS LIMITED=========,ASL-13-034,1,400.00,ASBESTOS,03/04/13,400.00
280313C,THAMES WATER UTILITIES LTD====,CBA1302839,1,308.00,HYDRANTS,03/04/13,308.00
280313C,THAMES WATER UTILITIES LTD====,CBA1302842,1,"1,082.00",CURRENT HYDRANT COSTS,03/04/13,"1,082.00"
280313C,THAMES WATER UTILITIES LTD====,CBA1302853,1,"1,082.00",CURRENT HYDRANT COSTS,03/04/13,"1,082.00"
280313C,THAMES WATER UTILITIES LTD====,CBA1302855,1,"1,082.00",CURRENT HYDRANT COSTS,03/04/13,"1,082.00"
280313C,THAMES WATER UTILITIES LTD====,CBA1302856,1,"1,082.00",CURRENT HYDRANT COSTS,03/04/13,"1,082.00"
280313C,THAMES WATER UTILITIES LTD====,CBA1302859,1,511.50,CURRENT HYDRANT COSTS,03/04/13,511.50
280313C,THAMES WATER UTILITIES LTD====,CBA1302864,1,"1,082.00",CURRENT HYDRANT COSTS,03/04/13,"1,082.00"
280313G,THAMES WATER UTILITIES LTD====,CBA1302865,1,"1,082.00",CURRENT HYDRANT COSTS,03/04/13,"1,082.00"
280313G,THAMES WATER UTILITIES LTD====,CBA1302866,1,"1,082.00",CURRENT HYDRANT COSTS,03/04/13,"1,082.00"
280313G,THAMES WATER UTILITIES LTD====,CBA1302870,1,511.50,CURRENT HYDRANT COSTS,03/04/13,511.50
280313G,THAMES WATER UTILITIES LTD====,CBA1302871,1,511.50,CURRENT HYDRANT COSTS,03/04/13,511.50
280313G,THAMES WATER UTILITIES LTD====,CBA1302874,1,"1,082.00",CURRENT HYDRANT COSTS,03/04/13,"1,082.00"
280313G,THAMES WATER UTILITIES LTD====,CBA1302875,1,"1,800.00",CURRENT HYDRANT COSTS,03/04/13,"1,800.00"
280313G,THAMES WATER UTILITIES LTD====,CBA1302881,1,"1,082.00",CURRENT HYDRANT COSTS,03/04/13,"1,082.00"
280313G,THAMES WATER UTILITIES LTD====,CBA1302884,1,"1,082.00",CURRENT HYDRANT COSTS,03/04/13,"1,082.00"
280313G,THAMES WATER UTILITIES LTD====,CBA1302886,1,"1,082.00",CURRENT HYDRANT COSTS,03/04/13,"1,082.00"
280313G,THAMES WATER UTILITIES LTD====,CBA1302892,1,511.50,CURRENT HYDRANT COSTS,03/04/13,511.50
280313G,THAMES WATER UTILITIES LTD====,CBA1302893,1,511.50,CURRENT HYDRANT COSTS,03/04/13,511.50
280313G,THAMES WATER UTILITIES LTD====,CBA1302894,1,"1,082.00",CURRENT HYDRANT COSTS,03/04/13,"1,082.00"
280313G,THAMES WATER UTILITIES LTD====,CBA1302896,1,"1,082.00",CURRENT HYDRANT COSTS,03/04/13,"1,082.00"
280313C,THAMES WATER UTILITIES LTD====,CBA1302898,1,616.00,HYDRANTS,03/04/13,616.00
260313G,SURVITEC SERVICE &DISTRIBUTION,CD30731975,1,332.90,OPERATIONAL EQUIP-PURCHASE,03/04/13,935.40
260313G,SURVITEC SERVICE &DISTRIBUTION,CD30731975,2,602.50,OPERATIONAL EQUIP-PURCHASE,03/04/13,
260313H,PULSE FITNESS LTD,IN015716,1,"3,147.54",GYM EQUIPMENT,03/04/13,"3,147.54"
260313C,PURDY CONTRACTS LTD,IN226608,1,449.29,STRATEGIC (NON CYCLICAL),03/04/13,"4,529.14"
260313C,PURDY CONTRACTS LTD,IN226608,2,380.44,STRATEGIC (NON CYCLICAL),03/04/13,
260313C,PURDY CONTRACTS LTD,IN226608,3,338.82,STRATEGIC (NON CYCLICAL),03/04/13,
260313C,PURDY CONTRACTS LTD,IN226608,4,365.62,STRATEGIC (NON CYCLICAL),03/04/13,
260313C,PURDY CONTRACTS LTD,IN226608,5,246.73,STRATEGIC (NON CYCLICAL),03/04/13,
260313C,PURDY CONTRACTS LTD,IN226608,6,409.81,STRATEGIC (NON CYCLICAL),03/04/13,
260313C,PURDY CONTRACTS LTD,IN226608,7,418.59,STRATEGIC (NON CYCLICAL),03/04/13,
260313C,PURDY CONTRACTS LTD,IN226608,8,364.68,STRATEGIC (NON CYCLICAL),03/04/13,
260313C,PURDY CONTRACTS LTD,IN226608,9,412.81,STRATEGIC (NON CYCLICAL),03/04/13,
260313C,PURDY CONTRACTS LTD,IN226608,10,328.31,STRATEGIC (NON CYCLICAL),03/04/13,
260313C,PURDY CONTRACTS LTD,IN226608,11,384.70,STRATEGIC (NON CYCLICAL),03/04/13,
260313C,PURDY CONTRACTS LTD,IN226608,12,429.34,STRATEGIC (NON CYCLICAL),03/04/13,
140152,JCT600 CONTRACTS LIMITED======,INV00029128,1,331.04,LEASE CAR CHARGES,03/04/13,331.04
140152,JCT600 CONTRACTS LIMITED======,INV00029128,2,-28.61,VAT CAR LEASING,03/04/13,
140152,JCT600 CONTRACTS LIMITED======,INV00029128,3,28.61,LEASE CAR CHARGES,03/04/13,
140152,JCT600 CONTRACTS LIMITED======,INV00029129,1,371.31,LEASE CAR CHARGES,03/04/13,371.31
140152,JCT600 CONTRACTS LIMITED======,INV00029129,2,-32.13,VAT CAR LEASING,03/04/13,
140152,JCT600 CONTRACTS LIMITED======,INV00029129,3,32.13,LEASE CAR CHARGES,03/04/13,
140152,JCT600 CONTRACTS LIMITED======,INV00029130,1,341.48,LEASE CAR CHARGES,03/04/13,341.48
140152,JCT600 CONTRACTS LIMITED======,INV00029130,2,-28.87,VAT CAR LEASING,03/04/13,
140152,JCT600 CONTRACTS LIMITED======,INV00029130,3,28.87,LEASE CAR CHARGES,03/04/13,
140152,JCT600 CONTRACTS LIMITED======,INV00029131,1,290.19,LEASE CAR CHARGES,03/04/13,290.19
140152,JCT600 CONTRACTS LIMITED======,INV00029131,2,-24.34,VAT CAR LEASING,03/04/13,
140152,JCT600 CONTRACTS LIMITED======,INV00029131,3,24.34,LEASE CAR CHARGES,03/04/13,
140157,JCT600 CONTRACTS LIMITED======,INV00029552,1,338.89,LEASE CAR CHARGES,03/04/13,"3,990.20"
140157,JCT600 CONTRACTS LIMITED======,INV00029552,2,"3,651.31",P/PAYMTS-CAR LEASG-RENTAL,03/04/13,
140157,JCT600 CONTRACTS LIMITED======,INV00029552,3,-349.21,VAT CAR LEASING,03/04/13,
140157,JCT600 CONTRACTS LIMITED======,INV00029552,4,349.21,LEASE CAR CHARGES,03/04/13,
140152,JCT600 CONTRACTS LIMITED======,INV00029556,1,391.85,LEASE CAR CHARGES,03/04/13,"4,613.74"
140152,JCT600 CONTRACTS LIMITED======,INV00029556,2,"4,221.89",P/PAYMTS-CAR LEASG-RENTAL,03/04/13,
140152,JCT600 CONTRACTS LIMITED======,INV00029556,3,-407.89,VAT CAR LEASING,03/04/13,
140152,JCT600 CONTRACTS LIMITED======,INV00029556,4,407.89,LEASE CAR CHARGES,03/04/13,
140152,JCT600 CONTRACTS LIMITED======,INV00029557,1,538.16,LEASE CAR CHARGES,03/04/13,"6,336.37"
140152,JCT600 CONTRACTS LIMITED======,INV00029557,2,"5,798.21",P/PAYMTS-CAR LEASG-RENTAL,03/04/13,
140152,JCT600 CONTRACTS LIMITED======,INV00029557,3,-571.71,VAT CAR LEASING,03/04/13,
140152,JCT600 CONTRACTS LIMITED======,INV00029557,4,571.71,LEASE CAR CHARGES,03/04/13,
140152,JCT600 CONTRACTS LIMITED======,INV00029558,1,357.19,LEASE CAR CHARGES,03/04/13,"4,205.62"
140152,JCT600 CONTRACTS LIMITED======,INV00029558,2,"3,848.43",P/PAYMTS-CAR LEASG-RENTAL,03/04/13,
140152,JCT600 CONTRACTS LIMITED======,INV00029558,3,-365.76,VAT CAR LEASING,03/04/13,
140152,JCT600 CONTRACTS LIMITED======,INV00029558,4,365.76,LEASE CAR CHARGES,03/04/13,
140152,JCT600 CONTRACTS LIMITED======,INV00029559,1,382.61,LEASE CAR CHARGES,03/04/13,"4,504.98"
140152,JCT600 CONTRACTS LIMITED======,INV00029559,2,"4,122.37",P/PAYMTS-CAR LEASG-RENTAL,03/04/13,
140152,JCT600 CONTRACTS LIMITED======,INV00029559,3,-409.16,VAT CAR LEASING,03/04/13,
140152,JCT600 CONTRACTS LIMITED======,INV00029559,4,409.16,LEASE CAR CHARGES,03/04/13,
140152,JCT600 CONTRACTS LIMITED======,INV00029561,1,359.13,LEASE CAR CHARGES,03/04/13,"4,228.42"
140152,JCT600 CONTRACTS LIMITED======,INV00029561,2,"3,869.29",P/PAYMTS-CAR LEASG-RENTAL,03/04/13,
140152,JCT600 CONTRACTS LIMITED======,INV00029561,3,-374.79,VAT CAR LEASING,03/04/13,
140152,JCT600 CONTRACTS LIMITED======,INV00029561,4,374.79,LEASE CAR CHARGES,03/04/13,
260313H,JACOBS UK LTD=================,J26015E3-50,1,855.59,PROFESSIONAL SERVICES,03/04/13,855.59
270313E,LPFA CONTRIBUTIONS ACCOUNT====,MC161,1,525.00,OUTSOURCED TRAINING,03/04/13,525.00
270313E,ALLSTAR BUSINESS SOLUTIONS LTD,P2000488740,1,200.49,FUEL,03/04/13,"22,390.09"
270313E,ALLSTAR BUSINESS SOLUTIONS LTD,P2000488740,2,136.06,FUEL,03/04/13,
270313E,ALLSTAR BUSINESS SOLUTIONS LTD,P2000488740,3,131.29,FUEL,03/04/13,
270313E,ALLSTAR BUSINESS SOLUTIONS LTD,P2000488740,4,155.87,FUEL,03/04/13,
270313E,ALLSTAR BUSINESS SOLUTIONS LTD,P2000488740,5,99.67,FUEL,03/04/13,
270313E,ALLSTAR BUSINESS SOLUTIONS LTD,P2000488740,6,156.30,FUEL,03/04/13,
270313E,ALLSTAR BUSINESS SOLUTIONS LTD,P2000488740,7,76.53,FUEL,03/04/13,
270313E,ALLSTAR BUSINESS SOLUTIONS LTD,P2000488740,8,271.50,FUEL,03/04/13,
270313E,ALLSTAR BUSINESS SOLUTIONS LTD,P2000488740,9,39.92,FUEL,03/04/13,
270313E,ALLSTAR BUSINESS SOLUTIONS LTD,P2000488740,10,245.78,FUEL,03/04/13,
270313E,ALLSTAR BUSINESS SOLUTIONS LTD,P2000488740,11,249.79,FUEL,03/04/13,
270313E,ALLSTAR BUSINESS SOLUTIONS LTD,P2000488740,12,310.77,FUEL,03/04/13,
270313E,ALLSTAR BUSINESS SOLUTIONS LTD,P2000488740,13,276.40,FUEL,03/04/13,
270313E,ALLSTAR BUSINESS SOLUTIONS LTD,P2000488740,14,246.13,FUEL,03/04/13,
270313E,ALLSTAR BUSINESS SOLUTIONS LTD,P2000488740,15,157.11,FUEL,03/04/13,
270313E,ALLSTAR BUSINESS SOLUTIONS LTD,P2000488740,16,354.14,FUEL,03/04/13,
270313E,ALLSTAR BUSINESS SOLUTIONS LTD,P2000488740,17,147.23,FUEL,03/04/13,
270313E,ALLSTAR BUSINESS SOLUTIONS LTD,P2000488740,18,36.43,FUEL,03/04/13,
270313E,ALLSTAR BUSINESS SOLUTIONS LTD,P2000488740,19,85.61,FUEL,03/04/13,
270313E,ALLSTAR BUSINESS SOLUTIONS LTD,P2000488740,20,148.38,FUEL,03/04/13,
270313E,ALLSTAR BUSINESS SOLUTIONS LTD,P2000488740,21,168.92,FUEL,03/04/13,
270313E,ALLSTAR BUSINESS SOLUTIONS LTD,P2000488740,22,170.41,FUEL,03/04/13,
270313E,ALLSTAR BUSINESS SOLUTIONS LTD,P2000488740,23,230.95,FUEL,03/04/13,
270313E,ALLSTAR BUSINESS SOLUTIONS LTD,P2000488740,24,174.90,FUEL,03/04/13,
270313E,ALLSTAR BUSINESS SOLUTIONS LTD,P2000488740,25,227.38,FUEL,03/04/13,
270313E,ALLSTAR BUSINESS SOLUTIONS LTD,P2000488740,26,155.07,FUEL,03/04/13,
270313E,ALLSTAR BUSINESS SOLUTIONS LTD,P2000488740,27,264.48,FUEL,03/04/13,
270313E,ALLSTAR BUSINESS SOLUTIONS LTD,P2000488740,28,237.30,FUEL,03/04/13,
270313E,ALLSTAR BUSINESS SOLUTIONS LTD,P2000488740,29,204.39,FUEL,03/04/13,
270313E,ALLSTAR BUSINESS SOLUTIONS LTD,P2000488740,30,128.33,FUEL,03/04/13,
270313E,ALLSTAR BUSINESS SOLUTIONS LTD,P2000488740,31,289.33,FUEL,03/04/13,
270313E,ALLSTAR BUSINESS SOLUTIONS LTD,P2000488740,32,230.29,FUEL,03/04/13,
270313E,ALLSTAR BUSINESS SOLUTIONS LTD,P2000488740,33,360.88,FUEL,03/04/13,
270313E,ALLSTAR BUSINESS SOLUTIONS LTD,P2000488740,34,147.28,FUEL,03/04/13,
270313E,ALLSTAR BUSINESS SOLUTIONS LTD,P2000488740,35,528.06,FUEL,03/04/13,
270313E,ALLSTAR BUSINESS SOLUTIONS LTD,P2000488740,36,173.25,FUEL,03/04/13,
270313E,ALLSTAR BUSINESS SOLUTIONS LTD,P2000488740,37,265.86,FUEL,03/04/13,
270313E,ALLSTAR BUSINESS SOLUTIONS LTD,P2000488740,38,119.18,FUEL,03/04/13,
270313E,ALLSTAR BUSINESS SOLUTIONS LTD,P2000488740,39,202.32,FUEL,03/04/13,
270313E,ALLSTAR BUSINESS SOLUTIONS LTD,P2000488740,40,621.64,FUEL,03/04/13,
270313E,ALLSTAR BUSINESS SOLUTIONS LTD,P2000488740,41,130.11,FUEL,03/04/13,
270313E,ALLSTAR BUSINESS SOLUTIONS LTD,P2000488740,42,170.04,FUEL,03/04/13,
270313E,ALLSTAR BUSINESS SOLUTIONS LTD,P2000488740,43,112.32,FUEL,03/04/13,
270313E,ALLSTAR BUSINESS SOLUTIONS LTD,P2000488740,44,159.91,FUEL,03/04/13,
270313E,ALLSTAR BUSINESS SOLUTIONS LTD,P2000488740,45,78.63,FUEL,03/04/13,
270313E,ALLSTAR BUSINESS SOLUTIONS LTD,P2000488740,46,226.16,FUEL,03/04/13,
270313E,ALLSTAR BUSINESS SOLUTIONS LTD,P2000488740,47,262.18,FUEL,03/04/13,
270313E,ALLSTAR BUSINESS SOLUTIONS LTD,P2000488740,48,172.17,FUEL,03/04/13,
270313E,ALLSTAR BUSINESS SOLUTIONS LTD,P2000488740,49,185.68,FUEL,03/04/13,
270313E,ALLSTAR BUSINESS SOLUTIONS LTD,P2000488740,50,99.17,FUEL,03/04/13,
270313E,ALLSTAR BUSINESS SOLUTIONS LTD,P2000488740,51,253.68,FUEL,03/04/13,
270313E,ALLSTAR BUSINESS SOLUTIONS LTD,P2000488740,52,105.50,FUEL,03/04/13,
270313E,ALLSTAR BUSINESS SOLUTIONS LTD,P2000488740,53,575.80,FUEL,03/04/13,
270313E,ALLSTAR BUSINESS SOLUTIONS LTD,P2000488740,54,431.43,FUEL,03/04/13,
270313E,ALLSTAR BUSINESS SOLUTIONS LTD,P2000488740,55,433.88,FUEL,03/04/13,
270313E,ALLSTAR BUSINESS SOLUTIONS LTD,P2000488740,56,225.34,FUEL,03/04/13,
270313E,ALLSTAR BUSINESS SOLUTIONS LTD,P2000488740,57,296.23,FUEL,03/04/13,
270313E,ALLSTAR BUSINESS SOLUTIONS LTD,P2000488740,58,809.11,FUEL,03/04/13,
270313E,ALLSTAR BUSINESS SOLUTIONS LTD,P2000488740,59,169.74,FUEL,03/04/13,
270313E,ALLSTAR BUSINESS SOLUTIONS LTD,P2000488740,60,221.62,FUEL,03/04/13,
270313E,ALLSTAR BUSINESS SOLUTIONS LTD,P2000488740,61,88.43,FUEL,03/04/13,
270313E,ALLSTAR BUSINESS SOLUTIONS LTD,P2000488740,62,154.47,FUEL,03/04/13,
270313E,ALLSTAR BUSINESS SOLUTIONS LTD,P2000488740,63,277.93,FUEL,03/04/13,
270313E,ALLSTAR BUSINESS SOLUTIONS LTD,P2000488740,64,107.24,FUEL,03/04/13,
270313E,ALLSTAR BUSINESS SOLUTIONS LTD,P2000488740,65,141.43,FUEL,03/04/13,
270313E,ALLSTAR BUSINESS SOLUTIONS LTD,P2000488740,66,133.02,FUEL,03/04/13,
270313E,ALLSTAR BUSINESS SOLUTIONS LTD,P2000488740,67,60.60,FUEL,03/04/13,
270313E,ALLSTAR BUSINESS SOLUTIONS LTD,P2000488740,68,102.30,FUEL,03/04/13,
270313E,ALLSTAR BUSINESS SOLUTIONS LTD,P2000488740,69,84.48,FUEL,03/04/13,
270313E,ALLSTAR BUSINESS SOLUTIONS LTD,P2000488740,70,122.59,FUEL,03/04/13,
270313E,ALLSTAR BUSINESS SOLUTIONS LTD,P2000488740,71,66.55,FUEL,03/04/13,
270313E,ALLSTAR BUSINESS SOLUTIONS LTD,P2000488740,72,273.09,FUEL,03/04/13,
270313E,ALLSTAR BUSINESS SOLUTIONS LTD,P2000488740,73,"1,224.64",FUEL,03/04/13,
270313E,ALLSTAR BUSINESS SOLUTIONS LTD,P2000488740,74,56.31,FUEL,03/04/13,
270313E,ALLSTAR BUSINESS SOLUTIONS LTD,P2000488740,75,181.42,FUEL,03/04/13,
270313E,ALLSTAR BUSINESS SOLUTIONS LTD,P2000488740,76,122.17,FUEL,03/04/13,
270313E,ALLSTAR BUSINESS SOLUTIONS LTD,P2000488740,77,65.31,FUEL,03/04/13,
270313E,ALLSTAR BUSINESS SOLUTIONS LTD,P2000488740,78,149.57,FUEL,03/04/13,
270313E,ALLSTAR BUSINESS SOLUTIONS LTD,P2000488740,79,39.91,FUEL,03/04/13,
270313E,ALLSTAR BUSINESS SOLUTIONS LTD,P2000488740,80,104.34,FUEL,03/04/13,
270313E,ALLSTAR BUSINESS SOLUTIONS LTD,P2000488740,81,73.16,FUEL,03/04/13,
270313E,ALLSTAR BUSINESS SOLUTIONS LTD,P2000488740,82,260.05,FUEL,03/04/13,
270313E,ALLSTAR BUSINESS SOLUTIONS LTD,P2000488740,83,376.10,FUEL,03/04/13,
270313E,ALLSTAR BUSINESS SOLUTIONS LTD,P2000488740,84,133.75,FUEL,03/04/13,
270313E,ALLSTAR BUSINESS SOLUTIONS LTD,P2000488740,85,250.22,FUEL,03/04/13,
270313E,ALLSTAR BUSINESS SOLUTIONS LTD,P2000488740,86,148.37,FUEL,03/04/13,
270313E,ALLSTAR BUSINESS SOLUTIONS LTD,P2000488740,87,98.41,FUEL,03/04/13,
270313E,ALLSTAR BUSINESS SOLUTIONS LTD,P2000488740,88,180.24,FUEL,03/04/13,
270313E,ALLSTAR BUSINESS SOLUTIONS LTD,P2000488740,89,99.28,FUEL,03/04/13,
270313E,ALLSTAR BUSINESS SOLUTIONS LTD,P2000488740,90,73.38,FUEL,03/04/13,
270313E,ALLSTAR BUSINESS SOLUTIONS LTD,P2000488740,91,120.29,FUEL,03/04/13,
270313E,ALLSTAR BUSINESS SOLUTIONS LTD,P2000488740,92,43.68,FUEL,03/04/13,
270313E,ALLSTAR BUSINESS SOLUTIONS LTD,P2000488740,93,112.74,FUEL,03/04/13,
270313E,ALLSTAR BUSINESS SOLUTIONS LTD,P2000488740,94,54.76,FUEL,03/04/13,
270313E,ALLSTAR BUSINESS SOLUTIONS LTD,P2000488740,95,241.16,FUEL,03/04/13,
270313E,ALLSTAR BUSINESS SOLUTIONS LTD,P2000488740,96,57.63,FUEL,03/04/13,
270313E,ALLSTAR BUSINESS SOLUTIONS LTD,P2000488740,97,140.30,FUEL,03/04/13,
270313E,ALLSTAR BUSINESS SOLUTIONS LTD,P2000488740,98,47.14,FUEL,03/04/13,
270313E,ALLSTAR BUSINESS SOLUTIONS LTD,P2000488740,99,16.88,FUEL,03/04/13,
270313E,ALLSTAR BUSINESS SOLUTIONS LTD,P2000488740,100,37.14,FUEL,03/04/13,
270313E,ALLSTAR BUSINESS SOLUTIONS LTD,P2000488740,101,52.60,FUEL,03/04/13,
270313E,ALLSTAR BUSINESS SOLUTIONS LTD,P2000488740,102,293.74,FUEL,03/04/13,
270313E,ALLSTAR BUSINESS SOLUTIONS LTD,P2000488740,103,380.08,FUEL,03/04/13,
270313E,ALLSTAR BUSINESS SOLUTIONS LTD,P2000488740,104,206.20,FUEL,03/04/13,
270313E,ALLSTAR BUSINESS SOLUTIONS LTD,P2000488740,105,123.44,FUEL,03/04/13,
270313E,ALLSTAR BUSINESS SOLUTIONS LTD,P2000488740,106,77.10,FUEL,03/04/13,
270313E,ALLSTAR BUSINESS SOLUTIONS LTD,P2000488740,107,115.30,FUEL,03/04/13,
270313E,ALLSTAR BUSINESS SOLUTIONS LTD,P2000488740,108,231.26,FUEL,03/04/13,
270313E,ALLSTAR BUSINESS SOLUTIONS LTD,P2000488740,109,44.22,FUEL,03/04/13,
270313E,ALLSTAR BUSINESS SOLUTIONS LTD,P2000488740,110,401.31,FUEL,03/04/13,
270313E,ALLSTAR BUSINESS SOLUTIONS LTD,P2000488740,111,47.25,FUEL,03/04/13,
270313E,ALLSTAR BUSINESS SOLUTIONS LTD,P2000488740,112,203.02,FUEL,03/04/13,
270313E,ALLSTAR BUSINESS SOLUTIONS LTD,P2000488740,113,549.77,FUEL,03/04/13,
280313G,ALLSTAR BUSINESS SOLUTIONS LTD,P2000531099,1,219.18,FUEL,03/04/13,"23,487.84"
280313G,ALLSTAR BUSINESS SOLUTIONS LTD,P2000531099,2,224.42,FUEL,03/04/13,
280313G,ALLSTAR BUSINESS SOLUTIONS LTD,P2000531099,3,142.40,FUEL,03/04/13,
280313G,ALLSTAR BUSINESS SOLUTIONS LTD,P2000531099,4,458.16,FUEL,03/04/13,
280313G,ALLSTAR BUSINESS SOLUTIONS LTD,P2000531099,5,131.87,FUEL,03/04/13,
280313G,ALLSTAR BUSINESS SOLUTIONS LTD,P2000531099,6,125.82,FUEL,03/04/13,
280313G,ALLSTAR BUSINESS SOLUTIONS LTD,P2000531099,7,75.05,FUEL,03/04/13,
280313G,ALLSTAR BUSINESS SOLUTIONS LTD,P2000531099,8,270.73,FUEL,03/04/13,
280313G,ALLSTAR BUSINESS SOLUTIONS LTD,P2000531099,9,173.15,FUEL,03/04/13,
280313G,ALLSTAR BUSINESS SOLUTIONS LTD,P2000531099,10,297.84,FUEL,03/04/13,
280313G,ALLSTAR BUSINESS SOLUTIONS LTD,P2000531099,11,446.44,FUEL,03/04/13,
280313G,ALLSTAR BUSINESS SOLUTIONS LTD,P2000531099,12,548.54,FUEL,03/04/13,
280313G,ALLSTAR BUSINESS SOLUTIONS LTD,P2000531099,13,334.41,FUEL,03/04/13,
280313G,ALLSTAR BUSINESS SOLUTIONS LTD,P2000531099,14,362.84,FUEL,03/04/13,
280313G,ALLSTAR BUSINESS SOLUTIONS LTD,P2000531099,15,80.09,FUEL,03/04/13,
280313G,ALLSTAR BUSINESS SOLUTIONS LTD,P2000531099,16,333.37,FUEL,03/04/13,
280313G,ALLSTAR BUSINESS SOLUTIONS LTD,P2000531099,17,159.88,FUEL,03/04/13,
280313G,ALLSTAR BUSINESS SOLUTIONS LTD,P2000531099,18,26.93,FUEL,03/04/13,
280313G,ALLSTAR BUSINESS SOLUTIONS LTD,P2000531099,19,73.08,FUEL,03/04/13,
280313G,ALLSTAR BUSINESS SOLUTIONS LTD,P2000531099,20,174.77,FUEL,03/04/13,
280313G,ALLSTAR BUSINESS SOLUTIONS LTD,P2000531099,21,249.97,FUEL,03/04/13,
280313G,ALLSTAR BUSINESS SOLUTIONS LTD,P2000531099,22,202.25,FUEL,03/04/13,
280313G,ALLSTAR BUSINESS SOLUTIONS LTD,P2000531099,23,192.00,FUEL,03/04/13,
280313G,ALLSTAR BUSINESS SOLUTIONS LTD,P2000531099,24,206.92,FUEL,03/04/13,
280313G,ALLSTAR BUSINESS SOLUTIONS LTD,P2000531099,25,264.23,FUEL,03/04/13,
280313G,ALLSTAR BUSINESS SOLUTIONS LTD,P2000531099,26,316.76,FUEL,03/04/13,
280313G,ALLSTAR BUSINESS SOLUTIONS LTD,P2000531099,27,209.45,FUEL,03/04/13,
280313G,ALLSTAR BUSINESS SOLUTIONS LTD,P2000531099,28,198.08,FUEL,03/04/13,
280313G,ALLSTAR BUSINESS SOLUTIONS LTD,P2000531099,29,196.19,FUEL,03/04/13,
280313G,ALLSTAR BUSINESS SOLUTIONS LTD,P2000531099,30,171.92,FUEL,03/04/13,
280313G,ALLSTAR BUSINESS SOLUTIONS LTD,P2000531099,31,325.13,FUEL,03/04/13,
280313G,ALLSTAR BUSINESS SOLUTIONS LTD,P2000531099,32,268.14,FUEL,03/04/13,
280313G,ALLSTAR BUSINESS SOLUTIONS LTD,P2000531099,33,219.95,FUEL,03/04/13,
280313G,ALLSTAR BUSINESS SOLUTIONS LTD,P2000531099,34,266.79,FUEL,03/04/13,
280313G,ALLSTAR BUSINESS SOLUTIONS LTD,P2000531099,35,581.50,FUEL,03/04/13,
280313G,ALLSTAR BUSINESS SOLUTIONS LTD,P2000531099,36,129.27,FUEL,03/04/13,
280313G,ALLSTAR BUSINESS SOLUTIONS LTD,P2000531099,37,272.16,FUEL,03/04/13,
280313G,ALLSTAR BUSINESS SOLUTIONS LTD,P2000531099,38,88.37,FUEL,03/04/13,
280313G,ALLSTAR BUSINESS SOLUTIONS LTD,P2000531099,39,134.88,FUEL,03/04/13,
280313G,ALLSTAR BUSINESS SOLUTIONS LTD,P2000531099,40,555.50,FUEL,03/04/13,
280313G,ALLSTAR BUSINESS SOLUTIONS LTD,P2000531099,41,276.94,FUEL,03/04/13,
280313G,ALLSTAR BUSINESS SOLUTIONS LTD,P2000531099,42,123.32,FUEL,03/04/13,
280313G,ALLSTAR BUSINESS SOLUTIONS LTD,P2000531099,43,140.28,FUEL,03/04/13,
280313G,ALLSTAR BUSINESS SOLUTIONS LTD,P2000531099,44,215.42,FUEL,03/04/13,
280313G,ALLSTAR BUSINESS SOLUTIONS LTD,P2000531099,45,155.43,FUEL,03/04/13,
280313G,ALLSTAR BUSINESS SOLUTIONS LTD,P2000531099,46,217.96,FUEL,03/04/13,
280313G,ALLSTAR BUSINESS SOLUTIONS LTD,P2000531099,47,449.37,FUEL,03/04/13,
280313G,ALLSTAR BUSINESS SOLUTIONS LTD,P2000531099,48,130.03,FUEL,03/04/13,
280313G,ALLSTAR BUSINESS SOLUTIONS LTD,P2000531099,49,119.16,FUEL,03/04/13,
280313G,ALLSTAR BUSINESS SOLUTIONS LTD,P2000531099,50,143.03,FUEL,03/04/13,
280313G,ALLSTAR BUSINESS SOLUTIONS LTD,P2000531099,51,26.05,FUEL,03/04/13,
280313G,ALLSTAR BUSINESS SOLUTIONS LTD,P2000531099,52,321.88,FUEL,03/04/13,
280313G,ALLSTAR BUSINESS SOLUTIONS LTD,P2000531099,53,196.18,FUEL,03/04/13,
280313G,ALLSTAR BUSINESS SOLUTIONS LTD,P2000531099,54,568.51,FUEL,03/04/13,
280313G,ALLSTAR BUSINESS SOLUTIONS LTD,P2000531099,55,622.62,FUEL,03/04/13,
280313G,ALLSTAR BUSINESS SOLUTIONS LTD,P2000531099,56,328.78,FUEL,03/04/13,
280313G,ALLSTAR BUSINESS SOLUTIONS LTD,P2000531099,57,358.50,FUEL,03/04/13,
280313G,ALLSTAR BUSINESS SOLUTIONS LTD,P2000531099,58,209.32,FUEL,03/04/13,
280313G,ALLSTAR BUSINESS SOLUTIONS LTD,P2000531099,59,260.60,FUEL,03/04/13,
280313G,ALLSTAR BUSINESS SOLUTIONS LTD,P2000531099,60,134.70,FUEL,03/04/13,
280313G,ALLSTAR BUSINESS SOLUTIONS LTD,P2000531099,61,236.48,FUEL,03/04/13,
280313G,ALLSTAR BUSINESS SOLUTIONS LTD,P2000531099,62,134.25,FUEL,03/04/13,
280313G,ALLSTAR BUSINESS SOLUTIONS LTD,P2000531099,63,213.98,FUEL,03/04/13,
280313G,ALLSTAR BUSINESS SOLUTIONS LTD,P2000531099,64,197.10,FUEL,03/04/13,
280313G,ALLSTAR BUSINESS SOLUTIONS LTD,P2000531099,65,101.59,FUEL,03/04/13,
280313G,ALLSTAR BUSINESS SOLUTIONS LTD,P2000531099,66,221.95,FUEL,03/04/13,
280313G,ALLSTAR BUSINESS SOLUTIONS LTD,P2000531099,67,144.46,FUEL,03/04/13,
280313G,ALLSTAR BUSINESS SOLUTIONS LTD,P2000531099,68,186.69,FUEL,03/04/13,
280313G,ALLSTAR BUSINESS SOLUTIONS LTD,P2000531099,69,106.92,FUEL,03/04/13,
280313G,ALLSTAR BUSINESS SOLUTIONS LTD,P2000531099,70,117.83,FUEL,03/04/13,
280313G,ALLSTAR BUSINESS SOLUTIONS LTD,P2000531099,71,30.86,FUEL,03/04/13,
280313G,ALLSTAR BUSINESS SOLUTIONS LTD,P2000531099,72,135.04,FUEL,03/04/13,
280313G,ALLSTAR BUSINESS SOLUTIONS LTD,P2000531099,73,159.98,FUEL,03/04/13,
280313G,ALLSTAR BUSINESS SOLUTIONS LTD,P2000531099,74,240.42,FUEL,03/04/13,
280313G,ALLSTAR BUSINESS SOLUTIONS LTD,P2000531099,75,807.40,FUEL,03/04/13,
280313G,ALLSTAR BUSINESS SOLUTIONS LTD,P2000531099,76,110.12,FUEL,03/04/13,
280313G,ALLSTAR BUSINESS SOLUTIONS LTD,P2000531099,77,209.05,FUEL,03/04/13,
280313G,ALLSTAR BUSINESS SOLUTIONS LTD,P2000531099,78,158.59,FUEL,03/04/13,
280313G,ALLSTAR BUSINESS SOLUTIONS LTD,P2000531099,79,85.57,FUEL,03/04/13,
280313G,ALLSTAR BUSINESS SOLUTIONS LTD,P2000531099,80,177.70,FUEL,03/04/13,
280313G,ALLSTAR BUSINESS SOLUTIONS LTD,P2000531099,81,134.88,FUEL,03/04/13,
280313G,ALLSTAR BUSINESS SOLUTIONS LTD,P2000531099,82,110.29,FUEL,03/04/13,
280313G,ALLSTAR BUSINESS SOLUTIONS LTD,P2000531099,83,166.74,FUEL,03/04/13,
280313G,ALLSTAR BUSINESS SOLUTIONS LTD,P2000531099,84,223.51,FUEL,03/04/13,
280313G,ALLSTAR BUSINESS SOLUTIONS LTD,P2000531099,85,548.78,FUEL,03/04/13,
280313G,ALLSTAR BUSINESS SOLUTIONS LTD,P2000531099,86,109.67,FUEL,03/04/13,
280313G,ALLSTAR BUSINESS SOLUTIONS LTD,P2000531099,87,337.70,FUEL,03/04/13,
280313G,ALLSTAR BUSINESS SOLUTIONS LTD,P2000531099,88,126.70,FUEL,03/04/13,
280313G,ALLSTAR BUSINESS SOLUTIONS LTD,P2000531099,89,111.60,FUEL,03/04/13,
280313G,ALLSTAR BUSINESS SOLUTIONS LTD,P2000531099,90,66.61,FUEL,03/04/13,
280313G,ALLSTAR BUSINESS SOLUTIONS LTD,P2000531099,91,75.01,FUEL,03/04/13,
280313G,ALLSTAR BUSINESS SOLUTIONS LTD,P2000531099,92,42.62,FUEL,03/04/13,
280313G,ALLSTAR BUSINESS SOLUTIONS LTD,P2000531099,93,115.07,FUEL,03/04/13,
280313G,ALLSTAR BUSINESS SOLUTIONS LTD,P2000531099,94,123.65,FUEL,03/04/13,
280313G,ALLSTAR BUSINESS SOLUTIONS LTD,P2000531099,95,223.57,FUEL,03/04/13,
280313G,ALLSTAR BUSINESS SOLUTIONS LTD,P2000531099,96,43.62,FUEL,03/04/13,
280313G,ALLSTAR BUSINESS SOLUTIONS LTD,P2000531099,97,103.46,FUEL,03/04/13,
280313G,ALLSTAR BUSINESS SOLUTIONS LTD,P2000531099,98,190.25,FUEL,03/04/13,
280313G,ALLSTAR BUSINESS SOLUTIONS LTD,P2000531099,99,154.84,FUEL,03/04/13,
280313G,ALLSTAR BUSINESS SOLUTIONS LTD,P2000531099,100,83.33,FUEL,03/04/13,
280313G,ALLSTAR BUSINESS SOLUTIONS LTD,P2000531099,101,77.49,FUEL,03/04/13,
280313G,ALLSTAR BUSINESS SOLUTIONS LTD,P2000531099,102,83.33,FUEL,03/04/13,
280313G,ALLSTAR BUSINESS SOLUTIONS LTD,P2000531099,103,11.66,FUEL,03/04/13,
280313G,ALLSTAR BUSINESS SOLUTIONS LTD,P2000531099,104,505.44,FUEL,03/04/13,
280313G,ALLSTAR BUSINESS SOLUTIONS LTD,P2000531099,105,25.89,FUEL,03/04/13,
280313G,ALLSTAR BUSINESS SOLUTIONS LTD,P2000531099,106,43.41,FUEL,03/04/13,
280313G,ALLSTAR BUSINESS SOLUTIONS LTD,P2000531099,107,64.81,FUEL,03/04/13,
280313G,ALLSTAR BUSINESS SOLUTIONS LTD,P2000531099,108,97.19,FUEL,03/04/13,
280313G,ALLSTAR BUSINESS SOLUTIONS LTD,P2000531099,109,25.12,FUEL,03/04/13,
280313G,ALLSTAR BUSINESS SOLUTIONS LTD,P2000531099,110,113.18,FUEL,03/04/13,
280313G,ALLSTAR BUSINESS SOLUTIONS LTD,P2000531099,111,217.54,FUEL,03/04/13,
280313G,ALLSTAR BUSINESS SOLUTIONS LTD,P2000531099,112,41.68,FUEL,03/04/13,
280313G,ALLSTAR BUSINESS SOLUTIONS LTD,P2000531099,113,606.71,FUEL,03/04/13,
270313E,HUNTER LODGE==================,SI-05097,1,"15,647.85",ADVERTISING,03/04/13,"15,647.85"
270313C,BABCOCK CRITICAL SERVICES LTD,SIMP010593,1,714.00,LOST & NFWT OPS EQUIPMENT,03/04/13,714.00
050413G,INFICON GMBH==================,70592759,1,383.06,OPERATIONAL EQUIP-PURCHASE,05/04/13,"1,478.68"
050413G,INFICON GMBH==================,70592759,2,"1,095.62",OPERATIONAL EQUIP-PURCHASE,05/04/13,
140163,L B OF LAMBETH================,72829579B,1,"1,501.24",PROPERTY RATES,05/04/13,"1,501.24"
140165,THAMES WATER UTILITIES LTD====,0425521115B,1,519.97,WATER & SEWERAGE RATES,08/04/13,519.97
260313H,*PRINCIPAL CATERING CONSULTNTS,051534,1,"1,620.00",REFRESHMENTS,08/04/13,"1,620.00"
040413H,*PRINCIPAL CATERING CONSULTNTS,051677,1,"5,083.00",CATERING,08/04/13,"6,656.00"
040413H,*PRINCIPAL CATERING CONSULTNTS,051677,2,137.00,SPECIAL CLEANS,08/04/13,
040413H,*PRINCIPAL CATERING CONSULTNTS,051677,3,"1,436.00",CATERING,08/04/13,
140165,THAMES WATER UTILITIES LTD====,0770723316B,1,552.92,WATER & SEWERAGE RATES,08/04/13,552.92
040413E,ACORN BUSINESS SUPPLIES LTD,1/I0039061,1,326.30,OFFICE FURNITURE,08/04/13,326.30
260313C,HAYS ACCOUNTANCY & FINANCE====,1003020188,1,696.00,FRS STAFF AGENCY,08/04/13,696.00
040413E,AFFINITY WATER,101016157,1,754.00,CURRENT HYDRANT COSTS,08/04/13,754.00
040413E,AFFINITY WATER,101016159,1,535.00,CURRENT HYDRANT COSTS,08/04/13,535.00
040413E,AFFINITY WATER,101018222,1,403.00,CURRENT HYDRANT COSTS,08/04/13,403.00
040413E,AFFINITY WATER,101018223,1,754.00,CURRENT HYDRANT COSTS,08/04/13,754.00
140163,CITY OF WESTMINSTER===========,10414551013,1,453.83,PROPERTY RATES,08/04/13,453.83
250313E,*SPRUE SAFETY PRODUCTS LTD====,1045080,1,758.40,FIRE DETECTORS,08/04/13,758.40
260313H,*SPRUE SAFETY PRODUCTS LTD====,1045081,1,"1,900.00",FIRE DETECTORS,08/04/13,"1,900.00"
250313E,*SPRUE SAFETY PRODUCTS LTD====,1045082,1,"1,011.20",FIRE DETECTORS,08/04/13,"1,011.20"
250313E,*SPRUE SAFETY PRODUCTS LTD====,1045083,1,"1,137.60",FIRE DETECTORS,08/04/13,"1,137.60"
250313E,*SPRUE SAFETY PRODUCTS LTD====,1045084,1,632.00,FIRE DETECTORS,08/04/13,632.00
250313E,*SPRUE SAFETY PRODUCTS LTD====,1045085,1,"1,011.20",FIRE DETECTORS,08/04/13,"1,011.20"
260313G,*SPRUE SAFETY PRODUCTS LTD====,1045086,1,"6,320.00",FIRE DETECTORS,08/04/13,"6,320.00"
250313E,*SPRUE SAFETY PRODUCTS LTD====,1045087,1,"1,350.00",FIRE DETECTORS,08/04/13,"1,350.00"
250313E,*SPRUE SAFETY PRODUCTS LTD====,1045088,1,"5,715.00",FIRE DETECTORS,08/04/13,"5,715.00"
140163,CITY OF WESTMINSTER===========,10643589713,1,453.83,PROPERTY RATES,08/04/13,453.83
800018388,JAMES HUNTER (OUTFITTERS) LTD=,106835,1,238.58,CLOTHING,08/04/13,309.12
800018388,JAMES HUNTER (OUTFITTERS) LTD=,106835,2,70.54,CLOTHING,08/04/13,
800018410,JAMES HUNTER (OUTFITTERS) LTD=,106857,1,85.50,CLOTHING,08/04/13,327.48
800018410,JAMES HUNTER (OUTFITTERS) LTD=,106857,2,182.16,CLOTHING,08/04/13,
800018410,JAMES HUNTER (OUTFITTERS) LTD=,106857,3,59.82,CLOTHING,08/04/13,
800018423,JAMES HUNTER (OUTFITTERS) LTD=,106870,1,302.89,CLOTHING,08/04/13,302.89
140163,CITY OF WESTMINSTER===========,10852612113,1,453.83,PROPERTY RATES,08/04/13,453.83
270313C,ELECTRICAL AND ACOUSTIC SERVIC,1124283,1,320.00,STRATEGIC (NON CYCLICAL),08/04/13,320.00
040413E,KIER BUILDING SERV ENGINEERS==,12090892,1,"34,800.85",TACTICAL DAY TO DAY,08/04/13,"76,780.41"
040413E,KIER BUILDING SERV ENGINEERS==,12090892,2,519.67,TACTICAL DAY TO DAY,08/04/13,
040413E,KIER BUILDING SERV ENGINEERS==,12090892,3,"1,733.53",TACTICAL DAY TO DAY,08/04/13,
040413E,KIER BUILDING SERV ENGINEERS==,12090892,4,"1,869.71",TACTICAL DAY TO DAY,08/04/13,
040413E,KIER BUILDING SERV ENGINEERS==,12090892,5,"29,417.93",STRATEGIC (CYCLICAL),08/04/13,
040413E,KIER BUILDING SERV ENGINEERS==,12090892,6,844.26,STRATEGIC (CYCLICAL),08/04/13,
040413E,KIER BUILDING SERV ENGINEERS==,12090892,7,"1,554.87",STRATEGIC (CYCLICAL),08/04/13,
040413E,KIER BUILDING SERV ENGINEERS==,12090892,8,"6,039.59",STRATEGIC (CYCLICAL),08/04/13,
040413E,EI WORLD LIMITED,12149,1,850.00,PROFESSIONAL DEVELOPMENT,08/04/13,850.00
040413H,IAAI-UK=======================,13-070,1,"1,785.00",PROFESSIONAL DEVELOPMENT,08/04/13,"1,785.00"
040413E,PA ASSOCIATES (UK) LTD========,13021,1,302.50,STRATEGIC (NON CYCLICAL),08/04/13,302.50
040413E,PA ASSOCIATES (UK) LTD========,13027,1,302.50,STRATEGIC (NON CYCLICAL),08/04/13,302.50
040413H,HUNTERS CONTRACTS LIMITED,145276,1,"6,788.59",OFFICE FURNITURE,08/04/13,"6,841.59"
040413H,HUNTERS CONTRACTS LIMITED,145276,2,53.00,OFFICE FURNITURE,08/04/13,
040413E,VECTOR COMMAND LTD============,1489,1,"63,673.50",MAINTENANCE & SUPPORT,08/04/13,"63,673.50"
040413E,BEAUMONT CONSTRUCTION SERVICES,1659,1,"22,959.60",DEVELOPMENT EXP - CONTRACTORS,08/04/13,"22,959.60"
140165,THAMES WATER UTILITIES LTD====,1678090537+,1,270.24,WATER & SEWERAGE RATES,08/04/13,270.24
140164,B NOKES CONTRACTS LTD,1716,1,235.75,DAY TO DAY MINOR IMPS,08/04/13,445.75
140164,B NOKES CONTRACTS LTD,1716,2,210.00,DAY TO DAY MINOR IMPS,08/04/13,
140164,B NOKES CONTRACTS LTD,1717,1,"1,964.20",PURCHASE,08/04/13,"3,644.20"
140164,B NOKES CONTRACTS LTD,1717,2,"1,680.00",PURCHASE,08/04/13,
040413H,FIRE INDUSTRY ASSOCIATION LTD,17410,1,300.00,PROFESSIONAL DEVELOPMENT,08/04/13,300.00
270313C,J & B BRAIDWAY LTD,178,1,139.30,CLOTHING,08/04/13,278.60
270313C,J & B BRAIDWAY LTD,178,2,139.30,CLOTHING,08/04/13,
140163,L B OF GREENWICH==============,17861999040011,1,"15,189.75",PROPERTY RATES,08/04/13,"15,189.75"
040413H,GRADIENT CONSULTANTS LLP======,1793,1,290.02,ASBESTOS,08/04/13,"12,131.68"
040413H,GRADIENT CONSULTANTS LLP======,1793,2,242.57,ASBESTOS,08/04/13,
040413H,GRADIENT CONSULTANTS LLP======,1793,3,158.20,ASBESTOS,08/04/13,
040413H,GRADIENT CONSULTANTS LLP======,1793,4,290.02,ASBESTOS,08/04/13,
040413H,GRADIENT CONSULTANTS LLP======,1793,5,290.02,ASBESTOS,08/04/13,
040413H,GRADIENT CONSULTANTS LLP======,1793,6,485.13,ASBESTOS,08/04/13,
040413H,GRADIENT CONSULTANTS LLP======,1793,7,242.57,ASBESTOS,08/04/13,
040413H,GRADIENT CONSULTANTS LLP======,1793,8,242.57,ASBESTOS,08/04/13,
040413H,GRADIENT CONSULTANTS LLP======,1793,9,290.02,ASBESTOS,08/04/13,
040413H,GRADIENT CONSULTANTS LLP======,1793,10,290.02,ASBESTOS,08/04/13,
040413H,GRADIENT CONSULTANTS LLP======,1793,11,295.30,ASBESTOS,08/04/13,
040413H,GRADIENT CONSULTANTS LLP======,1793,12,290.02,ASBESTOS,08/04/13,
040413H,GRADIENT CONSULTANTS LLP======,1793,13,290.02,ASBESTOS,08/04/13,
040413H,GRADIENT CONSULTANTS LLP======,1793,14,485.13,ASBESTOS,08/04/13,
040413H,GRADIENT CONSULTANTS LLP======,1793,15,290.02,ASBESTOS,08/04/13,
040413H,GRADIENT CONSULTANTS LLP======,1793,16,290.02,ASBESTOS,08/04/13,
040413H,GRADIENT CONSULTANTS LLP======,1793,17,295.30,ASBESTOS,08/04/13,
040413H,GRADIENT CONSULTANTS LLP======,1793,18,290.02,ASBESTOS,08/04/13,
040413H,GRADIENT CONSULTANTS LLP======,1793,19,290.02,ASBESTOS,08/04/13,
040413H,GRADIENT CONSULTANTS LLP======,1793,20,290.02,ASBESTOS,08/04/13,
040413H,GRADIENT CONSULTANTS LLP======,1793,21,295.30,ASBESTOS,08/04/13,
040413H,GRADIENT CONSULTANTS LLP======,1793,22,290.02,ASBESTOS,08/04/13,
040413H,GRADIENT CONSULTANTS LLP======,1793,23,290.02,ASBESTOS,08/04/13,
040413H,GRADIENT CONSULTANTS LLP======,1793,24,290.02,ASBESTOS,08/04/13,
040413H,GRADIENT CONSULTANTS LLP======,1793,25,310.00,ASBESTOS,08/04/13,
040413H,GRADIENT CONSULTANTS LLP======,1793,26,309.61,ASBESTOS,08/04/13,
040413H,GRADIENT CONSULTANTS LLP======,1793,27,104.40,ASBESTOS,08/04/13,
040413H,GRADIENT CONSULTANTS LLP======,1793,28,104.40,ASBESTOS,08/04/13,
040413H,GRADIENT CONSULTANTS LLP======,1793,29,104.40,ASBESTOS,08/04/13,
040413H,GRADIENT CONSULTANTS LLP======,1793,30,104.40,ASBESTOS,08/04/13,
040413H,GRADIENT CONSULTANTS LLP======,1793,31,104.40,ASBESTOS,08/04/13,
040413H,GRADIENT CONSULTANTS LLP======,1793,32,104.40,ASBESTOS,08/04/13,
040413H,GRADIENT CONSULTANTS LLP======,1793,33,104.40,ASBESTOS,08/04/13,
040413H,GRADIENT CONSULTANTS LLP======,1793,34,104.40,ASBESTOS,08/04/13,
040413H,GRADIENT CONSULTANTS LLP======,1793,35,104.40,ASBESTOS,08/04/13,
040413H,GRADIENT CONSULTANTS LLP======,1793,36,104.40,ASBESTOS,08/04/13,
040413H,GRADIENT CONSULTANTS LLP======,1793,37,104.40,ASBESTOS,08/04/13,
040413H,GRADIENT CONSULTANTS LLP======,1793,38,104.40,ASBESTOS,08/04/13,
040413H,GRADIENT CONSULTANTS LLP======,1793,39,104.40,ASBESTOS,08/04/13,
040413H,GRADIENT CONSULTANTS LLP======,1793,40,104.40,ASBESTOS,08/04/13,
040413H,GRADIENT CONSULTANTS LLP======,1793,41,104.40,ASBESTOS,08/04/13,
040413H,GRADIENT CONSULTANTS LLP======,1793,42,104.40,ASBESTOS,08/04/13,
040413H,GRADIENT CONSULTANTS LLP======,1793,43,104.40,ASBESTOS,08/04/13,
040413H,GRADIENT CONSULTANTS LLP======,1793,44,104.40,ASBESTOS,08/04/13,
040413H,GRADIENT CONSULTANTS LLP======,1793,45,104.40,ASBESTOS,08/04/13,
040413H,GRADIENT CONSULTANTS LLP======,1793,46,243.61,ASBESTOS,08/04/13,
040413H,GRADIENT CONSULTANTS LLP======,1793,47,243.61,ASBESTOS,08/04/13,
040413H,GRADIENT CONSULTANTS LLP======,1793,48,243.61,ASBESTOS,08/04/13,
040413H,GRADIENT CONSULTANTS LLP======,1793,49,243.61,ASBESTOS,08/04/13,
040413H,GRADIENT CONSULTANTS LLP======,1793,50,243.61,ASBESTOS,08/04/13,
040413H,GRADIENT CONSULTANTS LLP======,1793,51,243.61,ASBESTOS,08/04/13,
040413H,GRADIENT CONSULTANTS LLP======,1793,52,243.61,ASBESTOS,08/04/13,
040413H,GRADIENT CONSULTANTS LLP======,1793,53,243.61,ASBESTOS,08/04/13,
040413H,GRADIENT CONSULTANTS LLP======,1793,54,243.61,ASBESTOS,08/04/13,
040413H,GRADIENT CONSULTANTS LLP======,1793,55,243.61,ASBESTOS,08/04/13,
040413H,GRADIENT CONSULTANTS LLP======,1794,1,123.92,DEVELOPMENT EXP - CONTRACTORS,08/04/13,"2,087.38"
040413H,GRADIENT CONSULTANTS LLP======,1794,2,237.30,DEVELOPMENT EXP - CONTRACTORS,08/04/13,
040413H,GRADIENT CONSULTANTS LLP======,1794,3,61.96,DEVELOPMENT EXP - CONTRACTORS,08/04/13,
040413H,GRADIENT CONSULTANTS LLP======,1794,4,79.10,DEVELOPMENT EXP - CONTRACTORS,08/04/13,
040413H,GRADIENT CONSULTANTS LLP======,1794,5,290.02,DEVELOPMENT EXP - CONTRACTORS,08/04/13,
040413H,GRADIENT CONSULTANTS LLP======,1794,6,123.92,DEVELOPMENT EXP - CONTRACTORS,08/04/13,
040413H,GRADIENT CONSULTANTS LLP======,1794,7,123.92,DEVELOPMENT EXP - CONTRACTORS,08/04/13,
040413H,GRADIENT CONSULTANTS LLP======,1794,8,295.30,PROFESSIONAL FEES - MISC,08/04/13,
040413H,GRADIENT CONSULTANTS LLP======,1794,9,123.92,DEVELOPMENT EXP - CONTRACTORS,08/04/13,
040413H,GRADIENT CONSULTANTS LLP======,1794,10,419.22,PROFESSIONAL FEES - MISC,08/04/13,
040413H,GRADIENT CONSULTANTS LLP======,1794,11,104.40,PROFESSIONAL FEES - MISC,08/04/13,
040413H,GRADIENT CONSULTANTS LLP======,1794,12,104.40,DEVELOPMENT EXP - CONTRACTORS,08/04/13,
200313C,GREATER LONDON AUTHORITY======,1800003061,1,"4,000.00",SUBSCRIPTIONS,08/04/13,"4,000.00"
220313H,GREATER LONDON AUTHORITY======,1800003064,1,"49,583.33",GLA GROUP SHARED SERVICES,08/04/13,"49,583.33"
220313C,GREATER LONDON AUTHORITY======,1800003072,1,"19,952.49",GLA SHARED SERVICES,08/04/13,"19,952.49"
040413H,*LOCKHART CATERING EQUIPMENT,1933955,1,27.88,CATERING EQUIPMENT,08/04/13,809.61
040413H,*LOCKHART CATERING EQUIPMENT,1933955,2,6.20,CATERING EQUIPMENT,08/04/13,
040413H,*LOCKHART CATERING EQUIPMENT,1933955,3,6.20,CATERING EQUIPMENT,08/04/13,
040413H,*LOCKHART CATERING EQUIPMENT,1933955,4,6.20,CATERING EQUIPMENT,08/04/13,
040413H,*LOCKHART CATERING EQUIPMENT,1933955,5,6.20,CATERING EQUIPMENT,08/04/13,
040413H,*LOCKHART CATERING EQUIPMENT,1933955,6,6.20,CATERING EQUIPMENT,08/04/13,
040413H,*LOCKHART CATERING EQUIPMENT,1933955,7,4.93,OFFICE FURNITURE,08/04/13,
040413H,*LOCKHART CATERING EQUIPMENT,1933955,8,6.39,CATERING EQUIPMENT,08/04/13,
040413H,*LOCKHART CATERING EQUIPMENT,1933955,9,7.24,CATERING EQUIPMENT,08/04/13,
040413H,*LOCKHART CATERING EQUIPMENT,1933955,10,17.85,CATERING EQUIPMENT,08/04/13,
040413H,*LOCKHART CATERING EQUIPMENT,1933955,11,23.26,CATERING EQUIPMENT,08/04/13,
040413H,*LOCKHART CATERING EQUIPMENT,1933955,12,17.85,CATERING EQUIPMENT,08/04/13,
040413H,*LOCKHART CATERING EQUIPMENT,1933955,13,3.27,CATERING EQUIPMENT,08/04/13,
040413H,*LOCKHART CATERING EQUIPMENT,1933955,14,6.39,CATERING EQUIPMENT,08/04/13,
040413H,*LOCKHART CATERING EQUIPMENT,1933955,15,7.24,CATERING EQUIPMENT,08/04/13,
040413H,*LOCKHART CATERING EQUIPMENT,1933955,16,46.52,CATERING EQUIPMENT,08/04/13,
040413H,*LOCKHART CATERING EQUIPMENT,1933955,17,24.64,CATERING EQUIPMENT,08/04/13,
040413H,*LOCKHART CATERING EQUIPMENT,1933955,18,10.78,CATERING EQUIPMENT,08/04/13,
040413H,*LOCKHART CATERING EQUIPMENT,1933955,19,7.08,CATERING EQUIPMENT,08/04/13,
040413H,*LOCKHART CATERING EQUIPMENT,1933955,20,25.30,CATERING EQUIPMENT,08/04/13,
040413H,*LOCKHART CATERING EQUIPMENT,1933955,21,21.20,CATERING EQUIPMENT,08/04/13,
040413H,*LOCKHART CATERING EQUIPMENT,1933955,22,5.55,CATERING EQUIPMENT,08/04/13,
040413H,*LOCKHART CATERING EQUIPMENT,1933955,23,21.20,CATERING EQUIPMENT,08/04/13,
040413H,*LOCKHART CATERING EQUIPMENT,1933955,24,5.64,CATERING EQUIPMENT,08/04/13,
040413H,*LOCKHART CATERING EQUIPMENT,1933955,25,33.84,CATERING EQUIPMENT,08/04/13,
040413H,*LOCKHART CATERING EQUIPMENT,1933955,26,13.38,CATERING EQUIPMENT,08/04/13,
040413H,*LOCKHART CATERING EQUIPMENT,1933955,27,25.14,CATERING EQUIPMENT,08/04/13,
040413H,*LOCKHART CATERING EQUIPMENT,1933955,28,24.56,CATERING EQUIPMENT,08/04/13,
040413H,*LOCKHART CATERING EQUIPMENT,1933955,29,50.52,CATERING EQUIPMENT,08/04/13,
040413H,*LOCKHART CATERING EQUIPMENT,1933955,30,104.12,CATERING EQUIPMENT,08/04/13,
040413H,*LOCKHART CATERING EQUIPMENT,1933955,31,2.54,CATERING EQUIPMENT,08/04/13,
040413H,*LOCKHART CATERING EQUIPMENT,1933955,32,3.34,CATERING EQUIPMENT,08/04/13,
040413H,*LOCKHART CATERING EQUIPMENT,1933955,33,28.68,CATERING EQUIPMENT,08/04/13,
040413H,*LOCKHART CATERING EQUIPMENT,1933955,34,27.82,CATERING EQUIPMENT,08/04/13,
040413H,*LOCKHART CATERING EQUIPMENT,1933955,35,7.67,CATERING EQUIPMENT,08/04/13,
040413H,*LOCKHART CATERING EQUIPMENT,1933955,36,11.39,CATERING EQUIPMENT,08/04/13,
040413H,*LOCKHART CATERING EQUIPMENT,1933955,37,7.37,CATERING EQUIPMENT,08/04/13,
040413H,*LOCKHART CATERING EQUIPMENT,1933955,38,7.14,CATERING EQUIPMENT,08/04/13,
040413H,*LOCKHART CATERING EQUIPMENT,1933955,39,32.54,CATERING EQUIPMENT,08/04/13,
040413H,*LOCKHART CATERING EQUIPMENT,1933955,40,52.78,CATERING EQUIPMENT,08/04/13,
040413H,*LOCKHART CATERING EQUIPMENT,1933955,41,55.57,CATERING EQUIPMENT,08/04/13,
040413H,J & B BRAIDWAY LTD,205,1,139.30,CLOTHING,08/04/13,417.90
040413H,J & B BRAIDWAY LTD,205,2,139.30,CLOTHING,08/04/13,
040413H,J & B BRAIDWAY LTD,205,3,139.30,CLOTHING,08/04/13,
220313H,STORM TECHNOLOGIES============,216485,1,471.00,OFFICE EQUIPMENT,08/04/13,960.56
220313H,STORM TECHNOLOGIES============,216485,2,9.28,OFFICE EQUIPMENT,08/04/13,
220313H,STORM TECHNOLOGIES============,216485,3,471.00,ACQUISITIONS,08/04/13,
220313H,STORM TECHNOLOGIES============,216485,4,9.28,ACQUISITIONS,08/04/13,
250313E,CRISPIN HUGHES================,2172,1,364.00,GENERAL,08/04/13,364.00
040413H,FALDER MATTHEWS T/A FM PRINT==,22542-1,1,"2,020.00",PRINTING,08/04/13,"2,020.00"
250313C,THE UTILITIES EXCHANGE LTD====,2387,1,"4,487.50",CONSULTANTS,08/04/13,"4,487.50"
220313C,ITSMF=========================,25338,1,600.00,ACQUISITIONS,08/04/13,600.00
140163,L B OF SOUTHWARK==============,2541480-1*,1,"16,302.00",PROPERTY RATES,08/04/13,"16,302.00"
800018508,ADECCO UK LIMITED=============,26346958,1,588.35,FRS STAFF AGENCY,08/04/13,588.35
800018509,ADECCO UK LIMITED=============,26346960,1,588.35,FRS STAFF AGENCY,08/04/13,588.35
800018510,ADECCO UK LIMITED=============,26346961,1,397.95,FRS STAFF AGENCY,08/04/13,397.95
800018511,ADECCO UK LIMITED=============,26346962,1,588.35,FRS STAFF AGENCY,08/04/13,588.35
800018512,ADECCO UK LIMITED=============,26346963,1,479.63,FRS STAFF AGENCY,08/04/13,479.63
800018513,ADECCO UK LIMITED=============,26346964,1,178.48,FRS STAFF AGENCY,08/04/13,"1,115.50"
800018513,ADECCO UK LIMITED=============,26346964,2,937.02,FRS STAFF AGENCY,08/04/13,
800018514,ADECCO UK LIMITED=============,26346965,1,"1,114.75",FRS STAFF AGENCY,08/04/13,"1,114.75"
800018515,ADECCO UK LIMITED=============,26346966,1,588.35,FRS STAFF AGENCY,08/04/13,588.35
800018516,ADECCO UK LIMITED=============,26346967,1,302.58,FRS STAFF AGENCY,08/04/13,302.58
800018517,ADECCO UK LIMITED=============,26346968,1,588.35,FRS STAFF AGENCY,08/04/13,588.35
800018519,ADECCO UK LIMITED=============,26346970,1,552.30,FRS STAFF AGENCY,08/04/13,552.30
800018520,ADECCO UK LIMITED=============,26346971,1,588.35,FRS STAFF AGENCY,08/04/13,588.35
800018523,ADECCO UK LIMITED=============,26346974,1,587.65,FRS STAFF AGENCY,08/04/13,587.65
800018528,ADECCO UK LIMITED=============,26350077,1,938.91,FRS STAFF AGENCY,08/04/13,938.91
800018529,ADECCO UK LIMITED=============,26350078,1,"1,017.66",FRS STAFF AGENCY,08/04/13,"1,017.66"
800018530,ADECCO UK LIMITED=============,26350079,1,"1,017.66",FRS STAFF AGENCY,08/04/13,"1,017.66"
800018527,ADECCO UK LIMITED=============,26350081,1,"1,171.60",FRS STAFF AGENCY,08/04/13,"1,171.60"
800018531,ADECCO UK LIMITED=============,26350082,1,905.24,FRS STAFF AGENCY,08/04/13,905.24
800018532,ADECCO UK LIMITED=============,26350083,1,"1,131.55",FRS STAFF AGENCY,08/04/13,"1,131.55"
800018524,ADECCO UK LIMITED=============,26350084,1,585.90,FRS STAFF AGENCY,08/04/13,585.90
800018525,ADECCO UK LIMITED=============,26350085,1,"1,518.88",FRS STAFF AGENCY,08/04/13,"1,518.88"
800018526,ADECCO UK LIMITED=============,26350086,1,"1,215.10",FRS STAFF AGENCY,08/04/13,"1,215.10"
800018491,ADECCO UK LIMITED=============,26357804,1,452.48,FRS STAFF AGENCY,08/04/13,452.48
800018492,ADECCO UK LIMITED=============,26357805,1,904.96,FRS STAFF AGENCY,08/04/13,904.96
800018493,ADECCO UK LIMITED=============,26357806,1,678.72,FRS STAFF AGENCY,08/04/13,678.72
800018494,ADECCO UK LIMITED=============,26357807,1,678.72,FRS STAFF AGENCY,08/04/13,678.72
800018503,ADECCO UK LIMITED=============,26357808,1,953.44,FRS STAFF AGENCY,08/04/13,953.44
800018504,ADECCO UK LIMITED=============,26357809,1,985.76,FRS STAFF AGENCY,08/04/13,985.76
800018498,ADECCO UK LIMITED=============,26357810,1,759.38,FRS STAFF AGENCY,08/04/13,759.38
800018499,ADECCO UK LIMITED=============,26357811,1,759.38,FRS STAFF AGENCY,08/04/13,759.38
800018500,ADECCO UK LIMITED=============,26357812,1,540.00,FRS STAFF AGENCY,08/04/13,540.00
800018501,ADECCO UK LIMITED=============,26357813,1,742.50,FRS STAFF AGENCY,08/04/13,742.50
800018487,ADECCO UK LIMITED=============,26357814,1,"1,292.20",FRS STAFF AGENCY,08/04/13,"1,292.20"
800018488,ADECCO UK LIMITED=============,26357815,1,"1,292.20",FRS STAFF AGENCY,08/04/13,"1,292.20"
800018489,ADECCO UK LIMITED=============,26357816,1,"1,292.20",FRS STAFF AGENCY,08/04/13,"1,292.20"
800018490,ADECCO UK LIMITED=============,26357817,1,"1,292.20",FRS STAFF AGENCY,08/04/13,"1,292.20"
800018502,ADECCO UK LIMITED=============,26357818,1,759.38,FRS STAFF AGENCY,08/04/13,759.38
800018470,ADECCO UK LIMITED=============,26361506,1,588.35,FRS STAFF AGENCY,08/04/13,588.35
800018471,ADECCO UK LIMITED=============,26361507,1,397.95,FRS STAFF AGENCY,08/04/13,397.95
800018472,ADECCO UK LIMITED=============,26361508,1,588.35,FRS STAFF AGENCY,08/04/13,588.35
800018473,ADECCO UK LIMITED=============,26361509,1,963.60,FRS STAFF AGENCY,08/04/13,963.60
800018474,ADECCO UK LIMITED=============,26361510,1,959.26,FRS STAFF AGENCY,08/04/13,959.26
800018475,ADECCO UK LIMITED=============,26361511,1,937.02,FRS STAFF AGENCY,08/04/13,937.02
800018476,ADECCO UK LIMITED=============,26361512,1,"1,114.75",FRS STAFF AGENCY,08/04/13,"1,114.75"
800018477,ADECCO UK LIMITED=============,26361513,1,588.35,FRS STAFF AGENCY,08/04/13,588.35
800018478,ADECCO UK LIMITED=============,26361514,1,302.58,FRS STAFF AGENCY,08/04/13,302.58
800018479,ADECCO UK LIMITED=============,26361515,1,588.35,FRS STAFF AGENCY,08/04/13,588.35
800018481,ADECCO UK LIMITED=============,26361517,1,565.45,FRS STAFF AGENCY,08/04/13,565.45
800018482,ADECCO UK LIMITED=============,26361518,1,268.96,FRS STAFF AGENCY,08/04/13,268.96
800018484,ADECCO UK LIMITED=============,26361520,1,570.86,FRS STAFF AGENCY,08/04/13,570.86
800018485,ADECCO UK LIMITED=============,26361521,1,529.52,FRS STAFF AGENCY,08/04/13,529.52
800018495,ADECCO UK LIMITED=============,26364601,1,904.96,FRS STAFF AGENCY,08/04/13,904.96
800018496,ADECCO UK LIMITED=============,26364602,1,904.96,FRS STAFF AGENCY,08/04/13,904.96
800018505,ADECCO UK LIMITED=============,26364603,1,945.36,FRS STAFF AGENCY,08/04/13,945.36
800018506,ADECCO UK LIMITED=============,26364604,1,"1,131.55",FRS STAFF AGENCY,08/04/13,"1,131.55"
800018486,ADECCO UK LIMITED=============,26364605,1,468.72,FRS STAFF AGENCY,08/04/13,468.72
800018497,ADECCO UK LIMITED=============,26364608,1,"1,476.98",FRS STAFF AGENCY,08/04/13,"1,476.98"
800018507,ADECCO UK LIMITED=============,26364610,1,468.72,FRS STAFF AGENCY,08/04/13,468.72
280313G,MACE LIMITED,26915/0313640,1,"1,300.00",STRATEGIC (NON CYCLICAL),08/04/13,"1,300.00"
260313C,CORDIS BRIGHT LTD,2776,1,"9,490.75",CONSULTANTS,08/04/13,"9,490.75"
140163,L B OF ISLINGTON==============,28181781C,1,924.00,PROPERTY RATES,08/04/13,924.00
140163,L B OF ISLINGTON==============,28182101C,1,924.00,PROPERTY RATES,08/04/13,924.00
140163,L B OF ISLINGTON==============,28182321C,1,924.00,PROPERTY RATES,08/04/13,924.00
140165,THAMES WATER UTILITIES LTD====,29631-80521Z,1,295.38,WATER & SEWERAGE RATES,08/04/13,295.38
040413H,KNIGHTON CLEANING SERVICES LTD,33470,1,"2,033.02",HYGIENE,08/04/13,"2,050.55"
040413H,KNIGHTON CLEANING SERVICES LTD,33470,2,17.53,HYGIENE,08/04/13,
190313C,ARGENT FM LTD=================,3471,1,"71,778.13",DEVELOPMENT EXP - CONTRACTORS,08/04/13,"71,778.13"
250313C,PCS CONSULTING SERVICES LTD===,3490,1,"12,857.00",DEVELOPMENT EX � CONTRACTOR,08/04/13,"12,857.00"
140163,L B OF HACKNEY================,3634808,1,426.36,CONSULTANTS,08/04/13,426.36
040413H,CLASSIC VIDEO INTERNATIONAL===,37010,1,"17,511.00",PUBLIC RELATIONS,08/04/13,"17,511.00"
260313C,COMPUTACENTRE================,3804579575,1,979.00,OFFICE EQUIPMENT,08/04/13,979.00
140163,L B OF LAMBETH================,390009702*,1,"3,318.75",PROPERTY RATES,08/04/13,"3,318.75"
140163,L B OF LAMBETH================,390009711*,1,"4,125.00",PROPERTY RATES,08/04/13,"4,125.00"
800018144,*BURLINGTON UNIFORMS LTD,415977,1,8.65,CLOTHING,08/04/13,282.75
800018144,*BURLINGTON UNIFORMS LTD,415977,2,8.65,CLOTHING,08/04/13,
800018144,*BURLINGTON UNIFORMS LTD,415977,3,8.65,CLOTHING,08/04/13,
800018144,*BURLINGTON UNIFORMS LTD,415977,4,32.10,CLOTHING,08/04/13,
800018144,*BURLINGTON UNIFORMS LTD,415977,5,16.05,CLOTHING,08/04/13,
800018144,*BURLINGTON UNIFORMS LTD,415977,6,16.05,CLOTHING,08/04/13,
800018144,*BURLINGTON UNIFORMS LTD,415977,7,32.10,CLOTHING,08/04/13,
800018144,*BURLINGTON UNIFORMS LTD,415977,8,32.10,CLOTHING,08/04/13,
800018144,*BURLINGTON UNIFORMS LTD,415977,9,64.20,CLOTHING,08/04/13,
800018144,*BURLINGTON UNIFORMS LTD,415977,10,16.05,CLOTHING,08/04/13,
800018144,*BURLINGTON UNIFORMS LTD,415977,11,16.05,CLOTHING,08/04/13,
800018144,*BURLINGTON UNIFORMS LTD,415977,12,16.05,CLOTHING,08/04/13,
800018144,*BURLINGTON UNIFORMS LTD,415977,13,16.05,CLOTHING,08/04/13,
800017954,*BURLINGTON UNIFORMS LTD,416014,1,191.87,CLOTHING,08/04/13,383.74
800017954,*BURLINGTON UNIFORMS LTD,416014,2,191.87,CLOTHING,08/04/13,
140165,THAMES WATER UTILITIES LTD====,42153-20857C,1,371.95,WATER & SEWERAGE RATES,08/04/13,371.95
140163,L B OF HOUNSLOW===============,4400006015,1,"2,500.00",RENTS,08/04/13,"2,500.00"
040413E,QUEST SOFTWARE (UK) LTD=======,4600013365,1,"66,999.86",MAINTENANCE & SUPPORT,08/04/13,"66,999.86"
140165,THAMES WATER UTILITIES LTD====,5235978145C,1,405.99,WATER & SEWERAGE RATES,08/04/13,405.99
800018235,*GREENHAM TRADING LTD=========,5580006,1,28.10,HYGIENE,08/04/13,436.81
800018235,*GREENHAM TRADING LTD=========,5580006,2,41.10,HYGIENE,08/04/13,
800018235,*GREENHAM TRADING LTD=========,5580006,3,98.80,HYGIENE,08/04/13,
800018235,*GREENHAM TRADING LTD=========,5580006,4,14.60,HYGIENE,08/04/13,
800018235,*GREENHAM TRADING LTD=========,5580006,5,4.20,HYGIENE,08/04/13,
800018235,*GREENHAM TRADING LTD=========,5580006,6,14.60,HYGIENE,08/04/13,
800018235,*GREENHAM TRADING LTD=========,5580006,7,9.25,HYGIENE,08/04/13,
800018235,*GREENHAM TRADING LTD=========,5580006,8,4.20,HYGIENE,08/04/13,
800018235,*GREENHAM TRADING LTD=========,5580006,9,28.10,HYGIENE,08/04/13,
800018235,*GREENHAM TRADING LTD=========,5580006,10,5.20,CATERING EQUIPMENT,08/04/13,
800018235,*GREENHAM TRADING LTD=========,5580006,11,98.80,HYGIENE,08/04/13,
800018235,*GREENHAM TRADING LTD=========,5580006,12,41.10,HYGIENE,08/04/13,
800018235,*GREENHAM TRADING LTD=========,5580006,13,14.18,HYGIENE,08/04/13,
800018235,*GREENHAM TRADING LTD=========,5580006,14,34.58,HYGIENE,08/04/13,
250313E,MARVAL SOFTWARE LIMITED=======,5588,1,"20,919.50",MAINTENANCE & SUPPORT,08/04/13,"20,919.50"
040413E,GAS & AIR SERVICES (UK)=======,6045,1,"5,200.00",PURCHASE,08/04/13,"5,200.00"
260313G,*LYRECO,6721477158,1,899.80,STATIONERY CONSUMABLES,08/04/13,899.80
040413H,*SP SERVICES,685866,1,395.00,OPERATIONAL EQUIP-PURCHASE,08/04/13,395.00
140163,L B OF BROMLEY================,7117565511H,1,"1,999.23",PROPERTY RATES,08/04/13,"1,999.23"
140163,L B OF HAMMERSMITH & FULHAM===,74743/718741,1,"1,134.00",CONSULTANTS,08/04/13,"1,134.00"
040413H,NEXUS PROPERTY SERVICES,79716,1,"6,719.96",GENERAL,08/04/13,"6,719.96"
800018212,*XMA LTD,815707,1,134.80,STATIONERY CONSUMABLES,08/04/13,390.80
800018212,*XMA LTD,815707,2,256.00,STATIONERY CONSUMABLES,08/04/13,
220313H,NISBETS=======================,8321776,1,529.99,CATERING EQUIPMENT,08/04/13,529.99
270313C,L B OF TOWER HAMLETS==========,84216203,1,486.34,COMMUNITY RELATIONS,08/04/13,486.34
140165,THAMES WATER UTILITIES LTD====,8641142518Y,1,309.33,WATER & SEWERAGE RATES,08/04/13,309.33
040413H,AMEY MECHANICAL & ELECTRICAL==,90334890,1,"2,181.03",DEVELOPMENT EXP - CONTRACTORS,08/04/13,"2,181.03"
040413E,DRAEGER SAFETY UK LIMITED=====,90407181,1,399.00,PROTECTIVE EQUIPT - PARTS,08/04/13,399.00
040413E,DRAEGER SAFETY UK LIMITED=====,90407497,1,16.00,PROTECTIVE EQUIPT - PARTS,08/04/13,905.00
040413E,DRAEGER SAFETY UK LIMITED=====,90407497,2,6.00,PROTECTIVE EQUIPT - PARTS,08/04/13,
040413E,DRAEGER SAFETY UK LIMITED=====,90407497,3,52.00,PROTECTIVE EQUIPT - PARTS,08/04/13,
040413E,DRAEGER SAFETY UK LIMITED=====,90407497,4,831.00,PROTECTIVE EQUIPT - PARTS,08/04/13,
040413E,NORTHUMBRIAN WATER LTD========,91284295 4,1,263.00,CURRENT HYDRANT COSTS,08/04/13,263.00
040413E,NORTHUMBRIAN WATER LTD========,91287464 3,1,292.00,CURRENT HYDRANT COSTS,08/04/13,292.00
040413E,NORTHUMBRIAN WATER LTD========,91287465 1,1,292.00,CURRENT HYDRANT COSTS,08/04/13,292.00
040413E,NORTHUMBRIAN WATER LTD========,91287466 X,1,867.00,CURRENT HYDRANT COSTS,08/04/13,867.00
800018143,*GET YOURSELF NOTICED LTD,9272,1,108.00,SPECIALIST EQUIPMENT,08/04/13,813.80
800018143,*GET YOURSELF NOTICED LTD,9272,2,136.50,SPECIALIST EQUIPMENT,08/04/13,
800018143,*GET YOURSELF NOTICED LTD,9272,3,286.80,SPECIALIST EQUIPMENT,08/04/13,
800018143,*GET YOURSELF NOTICED LTD,9272,4,282.50,SPECIALIST EQUIPMENT,08/04/13,
180313H,*OFFICE DEPOT UK LTD,956849024,1,202.68,STATIONERY CONSUMABLES,08/04/13,678.68
180313H,*OFFICE DEPOT UK LTD,956849024,2,476.00,STATIONERY CONSUMABLES,08/04/13,
260313C,*OFFICE DEPOT UK LTD,956923119,1,"1,190.00",STATIONERY CONSUMABLES,08/04/13,"1,190.00"
040413H,ARCHITECTURAL DECORATORS LTD==,AD20496,1,"43,517.60",STRATEGIC (NON CYCLICAL),08/04/13,"43,517.60"
040413E,PITNEY BOWES PURCHASE POWER,BA447613,1,"4,040.00",POSTAL SERVICES,08/04/13,"4,040.00"
190313C,THAMES WATER UTILITIES LTD====,CBA1302665,1,511.50,HYDRANTS,08/04/13,511.50
050413G,SURVITEC SERVICE &DISTRIBUTION,CD30733519,1,118.60,PROTECTIVE EQUIPT - PARTS,08/04/13,877.60
050413G,SURVITEC SERVICE &DISTRIBUTION,CD30733519,2,114.00,PROTECTIVE EQUIPT - PARTS,08/04/13,
050413G,SURVITEC SERVICE &DISTRIBUTION,CD30733519,3,152.00,PROTECTIVE EQUIPT - PARTS,08/04/13,
050413G,SURVITEC SERVICE &DISTRIBUTION,CD30733519,4,76.00,PROTECTIVE EQUIPT - PARTS,08/04/13,
050413G,SURVITEC SERVICE &DISTRIBUTION,CD30733519,5,417.00,PROTECTIVE EQUIPT - PARTS,08/04/13,
040413H,E&S B DAVIS LTD,DAV/42131,1,720.00,OPERATIONAL EQUIP-PURCHASE,08/04/13,720.00
040413E,KIER BUILDING SERV ENGINEERS==,F00041249,1,"1,884.00",DEVELOPMENT EXP - CONTRACTORS,08/04/13,"1,884.00"
040413E,WM ENGINEERING SERVICES LTD===,I-4433,1,253.00,TACTICAL DAY TO DAY,08/04/13,253.00
040413E,SMITH O'SULLIVAN LTD.=========,LFB/CFS/002,1,"5,442.55",STRATEGIC (NON CYCLICAL),08/04/13,"5,442.55"
040413E,SMITH O'SULLIVAN LTD.=========,LFB/RFS/001,1,"7,103.62",STRATEGIC (NON CYCLICAL),08/04/13,"7,103.62"
270313C,BALFOUR BEATTY WORKPLACE LTD,M119181,1,455.00,STRATEGIC (NON CYCLICAL),08/04/13,455.00
270313C,BALFOUR BEATTY WORKPLACE LTD,M119182,1,390.00,STRATEGIC (NON CYCLICAL),08/04/13,390.00
270313C,BALFOUR BEATTY WORKPLACE LTD,M119184,1,"1,916.00",TACTICAL DAY TO DAY,08/04/13,"1,916.00"
270313C,BALFOUR BEATTY WORKPLACE LTD,M119188,1,"2,199.00",STRATEGIC (CYCLICAL),08/04/13,"2,199.00"
270313C,BALFOUR BEATTY WORKPLACE LTD,M119246,1,"1,606.00",STRATEGIC (NON CYCLICAL),08/04/13,"1,606.00"
040413E,CANNONS MSA LTD,NV1058801,1,"1,999.92",PROTECTIVE EQUIPMENT R & D,08/04/13,"1,999.92"
040413H,CANNONS MSA LTD,NV1058802,1,999.60,OFFICE EQUIPMENT,08/04/13,999.60
040413E,PILLINGER CONTROLS LTD========,PI71226,1,"2,022.96",STRATEGIC (NON CYCLICAL),08/04/13,"2,022.96"
040413E,PILLINGER CONTROLS LTD========,PI71227,1,980.00,STRATEGIC (NON CYCLICAL),08/04/13,980.00
140157,ARVAL UK LTD,R10000666441,1,219.49,LEASE CAR CHARGES,08/04/13,"4,712.53"
140157,ARVAL UK LTD,R10000666441,2,"4,493.04",P/PAYMTS-CAR LEASG-RENTAL,08/04/13,
140157,ARVAL UK LTD,R10000666441,3,-408.89,VAT CAR LEASING,08/04/13,
140157,ARVAL UK LTD,R10000666441,4,408.89,LEASE CAR CHARGES,08/04/13,
040413E,LOVELOCK & TAYLOUR LTD========,RWG/DM/2484,1,"2,248.00",STRATEGIC (NON CYCLICAL),08/04/13,"5,445.00"
040413E,LOVELOCK & TAYLOUR LTD========,RWG/DM/2484,2,"2,718.00",STRATEGIC (NON CYCLICAL),08/04/13,
040413E,LOVELOCK & TAYLOUR LTD========,RWG/DM/2484,3,479.00,STRATEGIC (NON CYCLICAL),08/04/13,
040413H,HUNTER LODGE==================,S-014464,1,"1,060.00",ADVERTISING,08/04/13,"1,060.00"
140146,MAYPLACE PROPERTY SERVICES LIM,SI-1010,1,750.00,TACTICAL DAY TO DAY,08/04/13,853.57
140146,MAYPLACE PROPERTY SERVICES LIM,SI-1010,2,103.57,TACTICAL DAY TO DAY,08/04/13,
140147,MAYPLACE PROPERTY SERVICES LIM,SI-1011,1,750.00,TACTICAL DAY TO DAY,08/04/13,853.57
140147,MAYPLACE PROPERTY SERVICES LIM,SI-1011,2,103.57,TACTICAL DAY TO DAY,08/04/13,
140147,MAYPLACE PROPERTY SERVICES LIM,SI-1012,1,750.00,TACTICAL DAY TO DAY,08/04/13,853.57
140147,MAYPLACE PROPERTY SERVICES LIM,SI-1012,2,103.57,TACTICAL DAY TO DAY,08/04/13,
140147,MAYPLACE PROPERTY SERVICES LIM,SI-1013,1,750.00,TACTICAL DAY TO DAY,08/04/13,853.57
140147,MAYPLACE PROPERTY SERVICES LIM,SI-1013,2,103.57,TACTICAL DAY TO DAY,08/04/13,
040413E,*ALEXANDRA PLC================,SINVOL/274,1,955.20,UNIFORMS - POMS,08/04/13,955.20
270313E,DET NORSKE VERITAS LTD========,ZNOUK227 1190850,1,"4,394.00",CONSULTANTS,08/04/13,"4,394.00"
080413E,OGILVIE FLEET LTD=============,00222563,1,980.61,LEASE CAR CHARGES,11/04/13,980.61
140166,OGILVIE FLEET LTD=============,002231196,1,428.42,LEASE CAR CHARGES,11/04/13,428.42
140166,OGILVIE FLEET LTD=============,002231196,2,-36.71,VAT CAR LEASING,11/04/13,
140166,OGILVIE FLEET LTD=============,002231196,3,36.71,LEASE CAR CHARGES,11/04/13,
140166,OGILVIE FLEET LTD=============,00231198,1,446.63,LEASE CAR CHARGES,11/04/13,446.63
140166,OGILVIE FLEET LTD=============,00231198,2,-38.53,VAT CAR LEASING,11/04/13,
140166,OGILVIE FLEET LTD=============,00231198,3,38.53,LEASE CAR CHARGES,11/04/13,
140166,OGILVIE FLEET LTD=============,00231199,1,445.78,LEASE CAR CHARGES,11/04/13,445.78
140166,OGILVIE FLEET LTD=============,00231199,2,-38.44,VAT CAR LEASING,11/04/13,
140166,OGILVIE FLEET LTD=============,00231199,3,38.44,LEASE CAR CHARGES,11/04/13,
140166,OGILVIE FLEET LTD=============,00231201,1,468.02,LEASE CAR CHARGES,11/04/13,468.02
140166,OGILVIE FLEET LTD=============,00231201,2,-40.00,VAT CAR LEASING,11/04/13,
140166,OGILVIE FLEET LTD=============,00231201,3,40.00,LEASE CAR CHARGES,11/04/13,
140166,OGILVIE FLEET LTD=============,00231202,1,446.02,LEASE CAR CHARGES,11/04/13,446.02
140166,OGILVIE FLEET LTD=============,00231202,2,-39.74,VAT CAR LEASING,11/04/13,
140166,OGILVIE FLEET LTD=============,00231202,3,39.74,LEASE CAR CHARGES,11/04/13,
800018339,AZTEC COMPUTING LTD===========,10409,1,"7,000.00",CONSULTANTS,11/04/13,"7,000.00"
800017169,JAMES HUNTER (OUTFITTERS) LTD=,106693,1,238.58,CLOTHING,11/04/13,290.70
800017169,JAMES HUNTER (OUTFITTERS) LTD=,106693,2,52.12,CLOTHING,11/04/13,
800017177,JAMES HUNTER (OUTFITTERS) LTD=,106701,1,231.79,CLOTHING,11/04/13,366.17
800017177,JAMES HUNTER (OUTFITTERS) LTD=,106701,2,134.38,CLOTHING,11/04/13,
800018390,JAMES HUNTER (OUTFITTERS) LTD=,106837,1,308.66,CLOTHING,11/04/13,308.66
800018391,JAMES HUNTER (OUTFITTERS) LTD=,106838,1,238.58,CLOTHING,11/04/13,379.66
800018391,JAMES HUNTER (OUTFITTERS) LTD=,106838,2,141.08,CLOTHING,11/04/13,
800018392,JAMES HUNTER (OUTFITTERS) LTD=,106839,1,308.66,CLOTHING,11/04/13,308.66
800018393,JAMES HUNTER (OUTFITTERS) LTD=,106840,1,315.02,CLOTHING,11/04/13,315.02
080413E,VISTA LANDSCAPE MANAGEMENT LTD,117999,1,695.00,GROUNDS MAINTENANCE,11/04/13,695.00
800018537,PRIMEPEACE LTD================,130401,1,"80,000.00",MAINTENANCE & SUPPORT,11/04/13,"80,000.00"
080413E,RESPIREX======================,141628,1,500.00,PROTECTIVE EQUIPMENT,11/04/13,500.00
080413E,RESPIREX======================,141629,1,"5,000.00",PROTECTIVE EQUIPMENT,11/04/13,"5,000.00"
080413E,RESPIREX======================,141630,1,"3,750.00",PROTECTIVE EQUIPMENT,11/04/13,"3,750.00"
050413H,DRON & WRIGHT=================,16352,1,"3,198.00",PROFESSIONAL SERVICES,11/04/13,"3,198.00"
080413H,CARPETS & FLOOR COVERS DIRECT=,1668,1,"1,600.00",FIXTURES & FITTINGS,11/04/13,"1,600.00"
080413E,ASPEN ELECTRONICS LIMITED,166828,1,"8,984.00",RADIO,11/04/13,"11,812.00"
080413E,ASPEN ELECTRONICS LIMITED,166828,2,498.00,RADIO,11/04/13,
080413E,ASPEN ELECTRONICS LIMITED,166828,3,116.00,RADIO,11/04/13,
080413E,ASPEN ELECTRONICS LIMITED,166828,4,"2,214.00",RADIO,11/04/13,
260313C,ENERGY AUDITING AGENCY LTD====,20131392,1,163.00,PROFESSIONAL SERVICES,11/04/13,"1,304.00"
260313C,ENERGY AUDITING AGENCY LTD====,20131392,2,163.00,PROFESSIONAL SERVICES,11/04/13,
260313C,ENERGY AUDITING AGENCY LTD====,20131392,3,163.00,PROFESSIONAL SERVICES,11/04/13,
260313C,ENERGY AUDITING AGENCY LTD====,20131392,4,163.00,PROFESSIONAL SERVICES,11/04/13,
260313C,ENERGY AUDITING AGENCY LTD====,20131392,5,163.00,PROFESSIONAL SERVICES,11/04/13,
260313C,ENERGY AUDITING AGENCY LTD====,20131392,6,163.00,PROFESSIONAL SERVICES,11/04/13,
260313C,ENERGY AUDITING AGENCY LTD====,20131392,7,163.00,PROFESSIONAL SERVICES,11/04/13,
260313C,ENERGY AUDITING AGENCY LTD====,20131392,8,163.00,PROFESSIONAL SERVICES,11/04/13,
260313C,ENERGY AUDITING AGENCY LTD====,20131393,1,"4,564.00",PROFESSIONAL SERVICES,11/04/13,"4,564.00"
800018521,ADECCO UK LIMITED=============,26346972,1,949.67,FRS STAFF AGENCY,11/04/13,949.67
800018483,ADECCO UK LIMITED=============,26361519,1,"1,238.70",FRS STAFF AGENCY,11/04/13,"1,238.70"
140157,WATER AUDIT SERVICES LTD,2788,1,250.05,WATER & SEWERAGE RATES,11/04/13,250.05
140157,WATER AUDIT SERVICES LTD,2789,1,436.66,WATER & SEWERAGE RATES,11/04/13,436.66
140157,WATER AUDIT SERVICES LTD,2790,1,485.73,WATER & SEWERAGE RATES,11/04/13,485.73
140157,WATER AUDIT SERVICES LTD,2791,1,350.13,WATER & SEWERAGE RATES,11/04/13,350.13
140157,WATER AUDIT SERVICES LTD,2792,1,477.71,WATER & SEWERAGE RATES,11/04/13,477.71
140157,WATER AUDIT SERVICES LTD,2795,1,250.43,WATER & SEWERAGE RATES,11/04/13,250.43
140165,WATER AUDIT SERVICES LTD,2800,1,337.41,WATER & SEWERAGE RATES,11/04/13,337.41
140165,WATER AUDIT SERVICES LTD,2801,1,485.61,WATER & SEWERAGE RATES,11/04/13,485.61
800017914,*BURLINGTON UNIFORMS LTD,415974,1,34.60,CLOTHING,11/04/13,511.52
800017914,*BURLINGTON UNIFORMS LTD,415974,2,34.60,CLOTHING,11/04/13,
800017914,*BURLINGTON UNIFORMS LTD,415974,3,58.58,CLOTHING,11/04/13,
800017914,*BURLINGTON UNIFORMS LTD,415974,4,191.87,CLOTHING,11/04/13,
800017914,*BURLINGTON UNIFORMS LTD,415974,5,191.87,CLOTHING,11/04/13,
080413H,SPORTSAFE UK LTD==============,443488,1,265.00,GYM EQUIPMENT,11/04/13,265.00
080413H,SPORTSAFE UK LTD==============,443490,1,260.00,GYM EQUIPMENT,11/04/13,260.00
050413H,C P GREGORY & ASSOCIATES LTD==,492,1,275.00,PROFESSIONAL DEVELOPMENT,11/04/13,275.00
050413H,C P GREGORY & ASSOCIATES LTD==,494,1,"7,985.00",PROFESSIONAL DEVELOPMENT,11/04/13,"7,985.00"
270313E,MERLIN ELECTRICAL SERVICES LTD,5801,1,"1,016.00",STRATEGIC (NON CYCLICAL),11/04/13,"1,016.00"
040413H,MERLIN ELECTRICAL SERVICES LTD,5803,1,"2,780.39",STRATEGIC (NON CYCLICAL),11/04/13,"2,780.39"
902276,BANK OF SCOTLAND,593.485.01.108000/0413,1,"229,381.86",VEHICLES,11/04/13,"229,381.86"
080413E,GAS & AIR SERVICES (UK)=======,6048,1,"10,800.00",REPAIR & MAINTENANCE,11/04/13,"10,800.00"
140166,LONDON PENSIONS FUND AUTHORITY,6134,1,"84,836.02",LOCAL GOVT PENSION SCHEME PAYM,11/04/13,"84,836.02"
040413H,LINDFIELD ELECTRICAL SERVICES=,6267,1,"4,030.10",DEVELOPMENT EXP - CONTRACTORS,11/04/13,"4,030.10"
050413H,THE HAY GROUP MANAGEMENT LTD==,835-3437,1,"1,450.00",CONSULTANTS,11/04/13,"1,450.00"
080413E,TITAN FIRE AND SECURITY=======,84183,1,298.00,TACTICAL DAY TO DAY,11/04/13,298.00
080413E,G4S TECHNOLOGY LIMITED========,843994,1,388.50,TACTICAL DAY TO DAY,11/04/13,388.50
080413E,DRAEGER SAFETY UK LIMITED=====,90407677,1,"1,934.70",PROTECTIVE EQUIPT - PARTS,11/04/13,"1,934.70"
080413E,DRAEGER SAFETY UK LIMITED=====,90407678,1,208.70,PROTECTIVE EQUIPT - PARTS,11/04/13,398.40
080413E,DRAEGER SAFETY UK LIMITED=====,90407678,2,189.70,PROTECTIVE EQUIPT - PARTS,11/04/13,
080413E,DRAEGER SAFETY UK LIMITED=====,90407901,1,"3,210.00",PROFESSIONAL DEVELOPMENT,11/04/13,"3,210.00"
080413E,DRAEGER SAFETY UK LIMITED=====,90407904,1,"3,210.00",PROFESSIONAL DEVELOPMENT,11/04/13,"3,210.00"
080413E,DRAEGER SAFETY UK LIMITED=====,90408032,1,466.20,PROTECTIVE EQUIPT - PARTS,11/04/13,846.20
080413E,DRAEGER SAFETY UK LIMITED=====,90408032,2,380.00,PROTECTIVE EQUIPT - PARTS,11/04/13,
080413E,DRAEGER SAFETY UK LIMITED=====,90408400,1,380.00,PROTECTIVE EQUIPT - PARTS,11/04/13,380.00
080413E,DRAEGER SAFETY UK LIMITED=====,90408401,1,362.50,PROTECTIVE EQUIPT - PARTS,11/04/13,362.50
050413H,ARCHITECTURAL DECORATORS LTD==,AD20674,1,"19,622.49",STRATEGIC (NON CYCLICAL),11/04/13,"19,622.49"
050413H,THAMES WATER UTILITIES LTD====,CBA1303011,1,280.00,HYDRANTS,11/04/13,280.00
050413H,THAMES WATER UTILITIES LTD====,CBA1303012,1,"1,082.00",HYDRANTS,11/04/13,"1,082.00"
050413H,THAMES WATER UTILITIES LTD====,CBA1303013,1,"1,082.00",CURRENT HYDRANT COSTS,11/04/13,"1,082.00"
050413H,THAMES WATER UTILITIES LTD====,CBA1303014,1,"1,082.00",CURRENT HYDRANT COSTS,11/04/13,"1,082.00"
050413H,THAMES WATER UTILITIES LTD====,CBA1303018,1,"1,082.00",CURRENT HYDRANT COSTS,11/04/13,"1,082.00"
050413H,THAMES WATER UTILITIES LTD====,CBA1303021,1,"1,082.00",CURRENT HYDRANT COSTS,11/04/13,"1,082.00"
050413H,THAMES WATER UTILITIES LTD====,CBA1303025,1,"1,082.00",CURRENT HYDRANT COSTS,11/04/13,"1,082.00"
050413H,THAMES WATER UTILITIES LTD====,CBA1303026,1,"1,082.00",CURRENT HYDRANT COSTS,11/04/13,"1,082.00"
050413H,THAMES WATER UTILITIES LTD====,CBA1303028,1,511.50,CURRENT HYDRANT COSTS,11/04/13,511.50
050413H,THAMES WATER UTILITIES LTD====,CBA1303032,1,511.50,CURRENT HYDRANT COSTS,11/04/13,511.50
050413H,THAMES WATER UTILITIES LTD====,CBA1303039,1,"1,082.00",CURRENT HYDRANT COSTS,11/04/13,"1,082.00"
050413H,THAMES WATER UTILITIES LTD====,CBA1303055,1,"1,082.00",CURRENT HYDRANT COSTS,11/04/13,"1,082.00"
050413H,THAMES WATER UTILITIES LTD====,CBA1303059,1,"1,082.00",CURRENT HYDRANT COSTS,11/04/13,"1,082.00"
050413H,THAMES WATER UTILITIES LTD====,CBA1303061,1,"1,082.00",CURRENT HYDRANT COSTS,11/04/13,"1,082.00"
050413H,THAMES WATER UTILITIES LTD====,CBA1303062,1,"1,082.00",CURRENT HYDRANT COSTS,11/04/13,"1,082.00"
050413H,THAMES WATER UTILITIES LTD====,CBA1303066,1,"1,082.00",CURRENT HYDRANT COSTS,11/04/13,"1,082.00"
050413H,THAMES WATER UTILITIES LTD====,CBA1303071,1,"1,082.00",CURRENT HYDRANT COSTS,11/04/13,"1,082.00"
050413H,THAMES WATER UTILITIES LTD====,CBA1303072,1,436.00,CURRENT HYDRANT COSTS,11/04/13,436.00
080413E,SURVITEC SERVICE &DISTRIBUTION,CD30733520,1,680.40,PROTECTIVE EQUIPT - PARTS,11/04/13,"1,051.60"
080413E,SURVITEC SERVICE &DISTRIBUTION,CD30733520,2,237.20,PROTECTIVE EQUIPT - PARTS,11/04/13,
080413E,SURVITEC SERVICE &DISTRIBUTION,CD30733520,3,20.00,PROTECTIVE EQUIPT - PARTS,11/04/13,
080413E,SURVITEC SERVICE &DISTRIBUTION,CD30733520,4,114.00,PROTECTIVE EQUIPT - PARTS,11/04/13,
080413E,JCT600 CONTRACTS LIMITED======,INV00030150,1,"2,173.96",LEASE CAR CHARGES,11/04/13,"2,173.96"
080413E,JCT600 CONTRACTS LIMITED======,INV00030722,1,"5,763.87",LEASE CAR CHARGES,11/04/13,"5,763.87"
140166,JCT600 CONTRACTS LIMITED======,INV00031275,1,358.29,LEASE CAR CHARGES,11/04/13,358.29
140166,JCT600 CONTRACTS LIMITED======,INV00031275,2,-29.43,VAT CAR LEASING,11/04/13,
140166,JCT600 CONTRACTS LIMITED======,INV00031275,3,29.43,LEASE CAR CHARGES,11/04/13,
140166,JCT600 CONTRACTS LIMITED======,INV00031277,1,321.27,LEASE CAR CHARGES,11/04/13,321.27
140166,JCT600 CONTRACTS LIMITED======,INV00031277,2,-26.95,VAT CAR LEASING,11/04/13,
140166,JCT600 CONTRACTS LIMITED======,INV00031277,3,26.95,LEASE CAR CHARGES,11/04/13,
140166,JCT600 CONTRACTS LIMITED======,INV00031376,1,380.83,LEASE CAR CHARGES,11/04/13,380.83
140166,JCT600 CONTRACTS LIMITED======,INV00031376,2,-33.75,VAT CAR LEASING,11/04/13,
140166,JCT600 CONTRACTS LIMITED======,INV00031376,3,33.75,LEASE CAR CHARGES,11/04/13,
080413E,ETC VENUES LTD================,PH-60624,1,"1,101.00",CONSULTANTS,11/04/13,"1,101.00"
270313E,DODS PARLIAMENTARY COMM LTD==,PK068404,1,295.00,PROFESSIONAL DEVELOPMENT,11/04/13,295.00
040413H,BABCOCK CRITICAL SERVICES LTD,SIINF01109,1,869.62,PROTECTIVE EQUIPMENT R & D,11/04/13,869.62
080413E,GROUND CONTROL UMITED,SIN016814,1,299.00,GROUNDS MAINTENANCE,11/04/13,299.00
250313E,BABCOCK CRITICAL SERVICES LTD,SIND000699,1,"5,000.00",OTHER MISC,11/04/13,"5,000.00"
250313E,BABCOCK CRITICAL SERVICES LTD,SIND000700,1,"1,360.00",OTHER MISC,11/04/13,"1,360.00"
080413E,SPEAKERS TRUST,WEB/003268,1,772.50,PROFESSIONAL DEVELOPMENT,11/04/13,772.50
080413E,SPEAKERS TRUST,WEB/003269,1,"1,287.50",PROFESSIONAL DEVELOPMENT,11/04/13,"1,287.50"
080413E,SPEAKERS TRUST,WEB/003320,1,"1,545.00",PROFESSIONAL DEVELOPMENT,11/04/13,"1,545.00"
080413E,SPEAKERS TRUST,WEB/003349,1,"1,545.00",PROFESSIONAL DEVELOPMENT,11/04/13,"1,545.00"
110413F,THORLUX LIGHTING==============,001319083,1,600.00,STRATEGIC (CYCLICAL),15/04/13,"1,800.00"
110413F,THORLUX LIGHTING==============,001319083,2,600.00,STRATEGIC (CYCLICAL),15/04/13,
110413F,THORLUX LIGHTING==============,001319083,3,600.00,STRATEGIC (CYCLICAL),15/04/13,
080413E,OGILVIE FLEET LTD=============,00230372,1,"1,041.94",LEASE CAR CHARGES,15/04/13,"1,041.94"
100413C,HAYS ACCOUNTANCY & FINANCE====,1003043184,1,696.00,FRS STAFF AGENCY,15/04/13,696.00
100413C,AFFINITY WATER,101020849,1,754.00,CURRENT HYDRANT COSTS,15/04/13,754.00
100413C,AFFINITY WATER,101020852,1,359.00,CURRENT HYDRANT COSTS,15/04/13,359.00
100413C,AFFINITY WATER,101020858,1,398.00,CURRENT HYDRANT COSTS,15/04/13,398.00
100413C,AFFINITY WATER,101020859,1,359.00,CURRENT HYDRANT COSTS,15/04/13,359.00
040413H,CARILLION COMMUNICATIONS LTD==,1011506,1,582.00,TACTICAL DAY TO DAY,15/04/13,582.00
040413H,CARILLION COMMUNICATIONS LTD==,1011507,1,339.00,TACTICAL DAY TO DAY,15/04/13,339.00
090413H,*SPRUE SAFETY PRODUCTS LTD====,1042144,1,632.00,FIRE DETECTORS,15/04/13,632.00
140169,ARVAL UK LTD,1046845,1,"1,452.89",LEASE CAR CHARGES,15/04/13,"4,382.67"
140169,ARVAL UK LTD,1046845,2,"2,929.78",LEASE CAR CHARGES,15/04/13,
140169,ARVAL UK LTD,1046845,3,-356.21,VAT CAR LEASING,15/04/13,
140169,ARVAL UK LTD,1046845,4,356.21,LEASE CAR CHARGES,15/04/13,
140169,ARVAL UK LTD,1049857,1,864.00,LEASE CAR CHARGES,15/04/13,"5,345.11"
140169,ARVAL UK LTD,1049857,2,"4,481.11",LEASE CAR CHARGES,15/04/13,
140169,ARVAL UK LTD,1049857,3,-472.84,VAT CAR LEASING,15/04/13,
140169,ARVAL UK LTD,1049857,4,472.84,LEASE CAR CHARGES,15/04/13,
140169,ARVAL UK LTD,1049861,1,763.62,LEASE CAR CHARGES,15/04/13,"4,724.07"
140169,ARVAL UK LTD,1049861,2,"3,960.45",LEASE CAR CHARGES,15/04/13,
140169,ARVAL UK LTD,1049861,3,-396.05,VAT CAR LEASING,15/04/13,
140169,ARVAL UK LTD,1049861,4,396.05,LEASE CAR CHARGES,15/04/13,
140169,ARVAL UK LTD,1049863,1,572.20,LEASE CAR CHARGES,15/04/13,"3,539.87"
140169,ARVAL UK LTD,1049863,2,"2,967.67",LEASE CAR CHARGES,15/04/13,
140169,ARVAL UK LTD,1049863,3,-283.41,VAT CAR LEASING,15/04/13,
140169,ARVAL UK LTD,1049863,4,283.41,LEASE CAR CHARGES,15/04/13,
800018389,JAMES HUNTER (OUTFITTERS) LTD=,106836,1,238.58,CLOTHING,15/04/13,309.12
800018389,JAMES HUNTER (OUTFITTERS) LTD=,106836,2,70.54,CLOTHING,15/04/13,
800018395,JAMES HUNTER (OUTFITTERS) LTD=,106842,1,182.16,CLOTHING,15/04/13,301.80
800018395,JAMES HUNTER (OUTFITTERS) LTD=,106842,2,119.64,CLOTHING,15/04/13,
800018726,JAMES HUNTER (OUTFITTERS) LTD=,106909,1,303.41,CLOTHING,15/04/13,303.41
800018727,JAMES HUNTER (OUTFITTERS) LTD=,106910,1,238.58,CLOTHING,15/04/13,379.66
800018727,JAMES HUNTER (OUTFITTERS) LTD=,106910,2,141.08,CLOTHING,15/04/13,
040413H,ACL ELECTRICAL LIMITED,10956,1,"7,219.00",DAY TO DAY MINOR IMPS,15/04/13,"7,219.00"
040413H,ACL ELECTRICAL LIMITED,10957,1,"5,000.00",DAY TO DAY MINOR IMPS,15/04/13,"8,513.00"
040413H,ACL ELECTRICAL LIMITED,10957,2,"3,513.00",STRATEGIC (NON CYCLICAL),15/04/13,
040413H,ACL ELECTRICAL LIMITED,10958,1,"6,133.00",DAY TO DAY MINOR IMPS,15/04/13,"8,133.00"
040413H,ACL ELECTRICAL LIMITED,10958,2,"2,000.00",STRATEGIC (NON CYCLICAL),15/04/13,
040413H,ACL ELECTRICAL LIMITED,10986,1,513.00,DEVELOPMENT - EX-CONTRACTOR,15/04/13,"19,859.75"
040413H,ACL ELECTRICAL LIMITED,10986,2,513.00,DEVELOPMENT - EX-CONTRACTOR,15/04/13,
040413H,ACL ELECTRICAL LIMITED,10986,3,"3,775.30",DEVELOPMENT - EX-CONTRACTOR,15/04/13,
040413H,ACL ELECTRICAL LIMITED,10986,4,"8,467.35",DEVELOPMENT - EX-CONTRACTOR,15/04/13,
040413H,ACL ELECTRICAL LIMITED,10986,5,"5,565.10",DEVELOPMENT - EX-CONTRACTOR,15/04/13,
040413H,ACL ELECTRICAL LIMITED,10986,6,513.00,DEVELOPMENT - EX-CONTRACTOR,15/04/13,
040413H,ACL ELECTRICAL LIMITED,10986,7,513.00,DEVELOPMENT - EX-CONTRACTOR,15/04/13,
110413F,INFOR (UNITED KINGDOM) LIMITED,11302142-GB04G,1,"4,280.00",MAINTENANCE & SUPPORT,15/04/13,"4,280.00"
080413H,VISTA LANDSCAPE MANAGEMENT LTD,117934,1,140.21,GROUNDS MAINTENANCE,15/04/13,"2,930.41"
080413H,VISTA LANDSCAPE MANAGEMENT LTD,117934,2,22.67,GROUNDS MAINTENANCE,15/04/13,
080413H,VISTA LANDSCAPE MANAGEMENT LTD,117934,3,25.19,GROUNDS MAINTENANCE,15/04/13,
080413H,VISTA LANDSCAPE MANAGEMENT LTD,117934,4,28.22,GROUNDS MAINTENANCE,15/04/13,
080413H,VISTA LANDSCAPE MANAGEMENT LTD,117934,5,109.18,GROUNDS MAINTENANCE,15/04/13,
080413H,VISTA LANDSCAPE MANAGEMENT LTD,117934,6,21.38,GROUNDS MAINTENANCE,15/04/13,
080413H,VISTA LANDSCAPE MANAGEMENT LTD,117934,7,29.10,GROUNDS MAINTENANCE,15/04/13,
080413H,VISTA LANDSCAPE MANAGEMENT LTD,117934,8,22.42,GROUNDS MAINTENANCE,15/04/13,
080413H,VISTA LANDSCAPE MANAGEMENT LTD,117934,9,19.01,GROUNDS MAINTENANCE,15/04/13,
080413H,VISTA LANDSCAPE MANAGEMENT LTD,117934,10,19.10,GROUNDS MAINTENANCE,15/04/13,
080413H,VISTA LANDSCAPE MANAGEMENT LTD,117934,11,22.64,GROUNDS MAINTENANCE,15/04/13,
080413H,VISTA LANDSCAPE MANAGEMENT LTD,117934,12,33.19,GROUNDS MAINTENANCE,15/04/13,
080413H,VISTA LANDSCAPE MANAGEMENT LTD,117934,13,120.09,GROUNDS MAINTENANCE,15/04/13,
080413H,VISTA LANDSCAPE MANAGEMENT LTD,117934,14,18.42,GROUNDS MAINTENANCE,15/04/13,
080413H,VISTA LANDSCAPE MANAGEMENT LTD,117934,15,89.96,GROUNDS MAINTENANCE,15/04/13,
080413H,VISTA LANDSCAPE MANAGEMENT LTD,117934,16,25.11,GROUNDS MAINTENANCE,15/04/13,
080413H,VISTA LANDSCAPE MANAGEMENT LTD,117934,17,21.81,GROUNDS MAINTENANCE,15/04/13,
080413H,VISTA LANDSCAPE MANAGEMENT LTD,117934,18,137.70,GROUNDS MAINTENANCE,15/04/13,
080413H,VISTA LANDSCAPE MANAGEMENT LTD,117934,19,20.23,GROUNDS MAINTENANCE,15/04/13,
080413H,VISTA LANDSCAPE MANAGEMENT LTD,117934,20,21.77,GROUNDS MAINTENANCE,15/04/13,
080413H,VISTA LANDSCAPE MANAGEMENT LTD,117934,21,15.43,GROUNDS MAINTENANCE,15/04/13,
080413H,VISTA LANDSCAPE MANAGEMENT LTD,117934,22,20.90,GROUNDS MAINTENANCE,15/04/13,
080413H,VISTA LANDSCAPE MANAGEMENT LTD,117934,23,21.75,GROUNDS MAINTENANCE,15/04/13,
080413H,VISTA LANDSCAPE MANAGEMENT LTD,117934,24,25.45,GROUNDS MAINTENANCE,15/04/13,
080413H,VISTA LANDSCAPE MANAGEMENT LTD,117934,25,23.62,GROUNDS MAINTENANCE,15/04/13,
080413H,VISTA LANDSCAPE MANAGEMENT LTD,117934,26,64.17,GROUNDS MAINTENANCE,15/04/13,
080413H,VISTA LANDSCAPE MANAGEMENT LTD,117934,27,19.31,GROUNDS MAINTENANCE,15/04/13,
080413H,VISTA LANDSCAPE MANAGEMENT LTD,117934,28,19.18,GROUNDS MAINTENANCE,15/04/13,
080413H,VISTA LANDSCAPE MANAGEMENT LTD,117934,29,17.08,GROUNDS MAINTENANCE,15/04/13,
080413H,VISTA LANDSCAPE MANAGEMENT LTD,117934,30,87.10,GROUNDS MAINTENANCE,15/04/13,
080413H,VISTA LANDSCAPE MANAGEMENT LTD,117934,31,92.00,GROUNDS MAINTENANCE,15/04/13,
080413H,VISTA LANDSCAPE MANAGEMENT LTD,117934,32,20.48,GROUNDS MAINTENANCE,15/04/13,
080413H,VISTA LANDSCAPE MANAGEMENT LTD,117934,33,276.21,GROUNDS MAINTENANCE,15/04/13,
080413H,VISTA LANDSCAPE MANAGEMENT LTD,117934,34,19.97,GROUNDS MAINTENANCE,15/04/13,
080413H,VISTA LANDSCAPE MANAGEMENT LTD,117934,35,69.19,GROUNDS MAINTENANCE,15/04/13,
080413H,VISTA LANDSCAPE MANAGEMENT LTD,117934,36,18.49,GROUNDS MAINTENANCE,15/04/13,
080413H,VISTA LANDSCAPE MANAGEMENT LTD,117934,37,19.98,GROUNDS MAINTENANCE,15/04/13,
080413H,VISTA LANDSCAPE MANAGEMENT LTD,117934,38,19.30,GROUNDS MAINTENANCE,15/04/13,
080413H,VISTA LANDSCAPE MANAGEMENT LTD,117934,39,86.80,GROUNDS MAINTENANCE,15/04/13,
080413H,VISTA LANDSCAPE MANAGEMENT LTD,117934,40,128.26,GROUNDS MAINTENANCE,15/04/13,
080413H,VISTA LANDSCAPE MANAGEMENT LTD,117934,41,17.02,GROUNDS MAINTENANCE,15/04/13,
080413H,VISTA LANDSCAPE MANAGEMENT LTD,117934,42,747.72,GROUNDS MAINTENANCE,15/04/13,
080413H,VISTA LANDSCAPE MANAGEMENT LTD,117934,43,68.14,GROUNDS MAINTENANCE,15/04/13,
080413H,VISTA LANDSCAPE MANAGEMENT LTD,117934,44,60.24,GROUNDS MAINTENANCE,15/04/13,
080413H,VISTA LANDSCAPE MANAGEMENT LTD,117934,45,25.22,GROUNDS MAINTENANCE,15/04/13,
050413H,SILVERSANDS LIMITED===========,119508,1,"1,425.00",PURCHASES - SOFTWARE,15/04/13,"1,425.00"
110413F,ATKINS LIMITED================,12057493,1,"20,000.00",CONSULTANTS,15/04/13,"24,101.00"
110413F,ATKINS LIMITED================,12057493,2,"4,101.00",MAINTENANCE & SUPPORT,15/04/13,
080413H,QAS SYSTEMS LTD===============,1429281,1,"48,265.32",MAINTENANCE & SUPPORT,15/04/13,"56,375.00"
080413H,QAS SYSTEMS LTD===============,1429281,2,"8,109.68",CONSULTANTS,15/04/13,
110413F,BRIGHT INTERACTIVE LTD========,170/0141/1,1,450.00,CONSULTANTS,15/04/13,450.00
140169,EDF ENERGY===================,1785676831,1,"1,224.48",ELECTRICITY,15/04/13,"1,224.48"
140169,EDF ENERGY===================,1785907930,1,"2,933.85",ELECTRICITY,15/04/13,"2,933.85"
140169,EDF ENERGY===================,178620531,1,"8,834.92",ELECTRICITY,15/04/13,"8,834.92"
140169,EDF ENERGY===================,1786484431,1,206.05,ELECTRICITY,15/04/13,"4,120.98"
140169,EDF ENERGY===================,1786484431,2,"3,914.93",ELECTRICITY,15/04/13,
140169,EDF ENERGY===================,1793376228,1,"9,962.69",ELECTRICITY,15/04/13,"9,962.69"
140169,EDF ENERGY===================,1813823621,1,"15,586.97",ELECTRICITY,15/04/13,"15,586.97"
050413H,SAFEGUARD PEST CON. & ENV.LTD,209966,1,"4,774.00",STRATEGIC (NON CYCLICAL),15/04/13,"4,774.00"
110413F,OPERATIONAL RESEARCH IN HEALTH,24X/LFBD1/5,1,"3,120.00",CONSULTANTS,15/04/13,"3,120.00"
800018705,ADECCO UK LIMITED=============,26365732,1,"1,466.50",FRS STAFF AGENCY,15/04/13,"1,466.50"
800018704,ADECCO UK LIMITED=============,26365733,1,"1,466.50",FRS STAFF AGENCY,15/04/13,"1,466.50"
800018703,ADECCO UK LIMITED=============,26365734,1,"1,508.40",FRS STAFF AGENCY,15/04/13,"1,508.40"
800018702,ADECCO UK LIMITED=============,26365735,1,"1,550.30",FRS STAFF AGENCY,15/04/13,"1,550.30"
800018708,ADECCO UK LIMITED=============,26365736,1,"1,042.32",FRS STAFF AGENCY,15/04/13,"1,042.32"
800018707,ADECCO UK LIMITED=============,26365737,1,"1,042.32",FRS STAFF AGENCY,15/04/13,"1,042.32"
800018709,ADECCO UK LIMITED=============,26365738,1,"1,074.64",FRS STAFF AGENCY,15/04/13,"1,074.64"
800018706,ADECCO UK LIMITED=============,26365739,1,"1,435.08",FRS STAFF AGENCY,15/04/13,"1,435.08"
800018683,ADECCO UK LIMITED=============,26366552,1,963.60,FRS STAFF AGENCY,15/04/13,963.60
800018695,ADECCO UK LIMITED=============,26366553,1,"1,124.55",FRS STAFF AGENCY,15/04/13,"1,124.55"
800018696,ADECCO UK LIMITED=============,26366554,1,"1,874.25",FRS STAFF AGENCY,15/04/13,"1,874.25"
800018681,ADECCO UK LIMITED=============,26370184,1,470.68,FRS STAFF AGENCY,15/04/13,470.68
800018682,ADECCO UK LIMITED=============,26370185,1,470.68,FRS STAFF AGENCY,15/04/13,470.68
800018684,ADECCO UK LIMITED=============,26370186,1,719.45,FRS STAFF AGENCY,15/04/13,719.45
800018685,ADECCO UK LIMITED=============,26370187,1,178.48,FRS STAFF AGENCY,15/04/13,"1,115.50"
800018685,ADECCO UK LIMITED=============,26370187,2,937.02,FRS STAFF AGENCY,15/04/13,
800018686,ADECCO UK LIMITED=============,26370188,1,"1,114.75",FRS STAFF AGENCY,15/04/13,"1,114.75"
800018687,ADECCO UK LIMITED=============,26370189,1,470.68,FRS STAFF AGENCY,15/04/13,470.68
800018689,ADECCO UK LIMITED=============,26370191,1,487.49,FRS STAFF AGENCY,15/04/13,487.49
800018690,ADECCO UK LIMITED=============,26370192,1,301.14,FRS STAFF AGENCY,15/04/13,301.14
800018691,ADECCO UK LIMITED=============,26370193,1,736.40,FRS STAFF AGENCY,15/04/13,736.40
800018692,ADECCO UK LIMITED=============,26370194,1,500.10,FRS STAFF AGENCY,15/04/13,500.10
800018693,ADECCO UK LIMITED=============,26370195,1,784.51,FRS STAFF AGENCY,15/04/13,784.51
800018694,ADECCO UK LIMITED=============,26370196,1,419.75,FRS STAFF AGENCY,15/04/13,419.75
800018697,ADECCO UK LIMITED=============,26370197,1,"1,499.40",FRS STAFF AGENCY,15/04/13,"1,499.40"
800018700,ADECCO UK LIMITED=============,26370199,1,470.68,FRS STAFF AGENCY,15/04/13,470.68
800018701,ADECCO UK LIMITED=============,26370200,1,318.36,FRS STAFF AGENCY,15/04/13,318.36
140165,WATER AUDIT SERVICES LTD,2829,1,251.21,WATER & SEWERAGE RATES,15/04/13,251.21
140165,WATER AUDIT SERVICES LTD,2831,1,251.31,WATER & SEWERAGE RATES,15/04/13,251.31
100413C,OPERATIONAL RESEARCH IN HEALTH,29X/LFB1/31,1,"6,458.60",CONSULTANTS,15/04/13,"9,373.33"
100413C,OPERATIONAL RESEARCH IN HEALTH,29X/LFB1/31,2,"2,914.73",CONSULTANTS,15/04/13,
140168,REACTIVE ROOFING (UK) LIMITED,3036,1,"1,727.20",TACTICAL DAY TO DAY,15/04/13,"2,099.20"
140168,REACTIVE ROOFING (UK) LIMITED,3036,2,372.00,TACTICAL DAY TO DAY,15/04/13,
080413E,W.GILCHRIST & CO,3452,1,381.00,REPAIR & MAINTENANCE,15/04/13,746.00
080413E,W.GILCHRIST & CO,3452,2,365.00,REPAIR & MAINTENANCE,15/04/13,
110413F,ELECTROBASE R P,36575,1,737.00,GENERAL CONSUMABLES,15/04/13,737.00
110413F,GRAHAM MALTBY,40,1,"7,547.09",CONSULTANTS,15/04/13,"8,015.00"
110413F,GRAHAM MALTBY,40,2,467.91,CONSULTANTS,15/04/13,
100413C,GRAHAM MALTBY,41,1,"3,000.00",CONSULTANTS,15/04/13,"3,000.00"
100413C,R J HOLLAND LTD===============,4690,1,"1,796.00",STRATEGIC (NON CYCLICAL),15/04/13,"1,796.00"
100413C,R J HOLLAND LTD===============,4701,1,"2,058.00",STRATEGIC (NON CYCLICAL),15/04/13,"2,058.00"
100413C,R J HOLLAND LTD===============,4706,1,"5,580.00",STRATEGIC (NON CYCLICAL),15/04/13,"5,580.00"
100413C,R J HOLLAND LTD===============,4719,1,845.00,STRATEGIC (NON CYCLICAL),15/04/13,845.00
140169,THAMES WATER UTILITIES LTD====,5107790166B,1,"1,106.59",WATER & SEWERAGE RATES,15/04/13,"1,106.59"
100413C,URS SCOTT WILSON LIMITED,5462150,1,"2,723.01",STRATEGIC (NON CYCLICAL),15/04/13,"2,723.01"
100413C,URS SCOTT WILSON LIMITED,5462311,1,72.21,PROFESSIONAL FEES - MISC,15/04/13,"1,516.48"
100413C,URS SCOTT WILSON LIMITED,5462311,2,72.28,PROFESSIONAL FEES - MISC,15/04/13,
100413C,URS SCOTT WILSON LIMITED,5462311,3,72.21,PROFESSIONAL FEES - MISC,15/04/13,
100413C,URS SCOTT WILSON LIMITED,5462311,4,72.21,PROFESSIONAL FEES - MISC,15/04/13,
100413C,URS SCOTT WILSON LIMITED,5462311,5,72.21,PROFESSIONAL FEES - MISC,15/04/13,
100413C,URS SCOTT WILSON LIMITED,5462311,6,72.21,PROFESSIONAL FEES - MISC,15/04/13,
100413C,URS SCOTT WILSON LIMITED,5462311,7,72.21,PROFESSIONAL FEES - MISC,15/04/13,
100413C,URS SCOTT WILSON LIMITED,5462311,8,72.21,PROFESSIONAL FEES - MISC,15/04/13,
100413C,URS SCOTT WILSON LIMITED,5462311,9,72.21,PROFESSIONAL FEES - MISC,15/04/13,
100413C,URS SCOTT WILSON LIMITED,5462311,10,72.21,PROFESSIONAL FEES - MISC,15/04/13,
100413C,URS SCOTT WILSON LIMITED,5462311,11,72.21,PROFESSIONAL FEES - MISC,15/04/13,
100413C,URS SCOTT WILSON LIMITED,5462311,12,72.21,PROFESSIONAL FEES - MISC,15/04/13,
100413C,URS SCOTT WILSON LIMITED,5462311,13,72.21,PROFESSIONAL FEES - MISC,15/04/13,
100413C,URS SCOTT WILSON LIMITED,5462311,14,72.21,PROFESSIONAL FEES - MISC,15/04/13,
100413C,URS SCOTT WILSON LIMITED,5462311,15,72.21,PROFESSIONAL FEES - MISC,15/04/13,
100413C,URS SCOTT WILSON LIMITED,5462311,16,72.21,PROFESSIONAL FEES - MISC,15/04/13,
100413C,URS SCOTT WILSON LIMITED,5462311,17,72.21,PROFESSIONAL FEES - MISC,15/04/13,
100413C,URS SCOTT WILSON LIMITED,5462311,18,72.21,PROFESSIONAL FEES - MISC,15/04/13,
100413C,URS SCOTT WILSON LIMITED,5462311,19,72.21,PROFESSIONAL FEES - MISC,15/04/13,
100413C,URS SCOTT WILSON LIMITED,5462311,20,72.21,PROFESSIONAL FEES - MISC,15/04/13,
100413C,URS SCOTT WILSON LIMITED,5462311,21,72.21,PROFESSIONAL FEES - MISC,15/04/13,
100413C,URS SCOTT WILSON LIMITED,5462901,1,368.86,STRATEGIC (NON CYCLICAL),15/04/13,368.86
100413C,URS SCOTT WILSON LIMITED,5462911,1,359.06,STRATEGIC (NON CYCLICAL),15/04/13,359.06
100413C,URS SCOTT WILSON LIMITED,5465675,1,537.99,STRATEGIC (NON CYCLICAL),15/04/13,537.99
100413C,URS SCOTT WILSON LIMITED,5465773,1,"1,074.13",STRATEGIC (NON CYCLICAL),15/04/13,"1,074.13"
100413C,URS SCOTT WILSON LIMITED,5466998,1,"2,247.21",PROF FEES-MISCELLANEOUS,15/04/13,"2,247.21"
040413H,SIEMENS ENTERPRISE COMM LTD===,549G6000844110,1,622.50,PROFESSIONAL DEVELOPMENT,15/04/13,"2,345.00"
040413H,SIEMENS ENTERPRISE COMM LTD===,549G6000844110,2,125.00,PROFESSIONAL DEVELOPMENT,15/04/13,
040413H,SIEMENS ENTERPRISE COMM LTD===,549G6000844110,3,425.00,PROFESSIONAL DEVELOPMENT,15/04/13,
040413H,SIEMENS ENTERPRISE COMM LTD===,549G6000844110,4,622.50,CONSULTANTS,15/04/13,
040413H,SIEMENS ENTERPRISE COMM LTD===,549G6000844110,5,125.00,CONSULTANTS,15/04/13,
040413H,SIEMENS ENTERPRISE COMM LTD===,549G6000844110,6,425.00,CONSULTANTS,15/04/13,
110413F,DISCLOSURE SCOTLAND===========,561074,1,525.00,CRB CHECKS,15/04/13,525.00
040413H,MERLIN ELECTRICAL SERVICES LTD,5827,1,260.00,STRATEGIC (NON CYCLICAL),15/04/13,260.00
100413C,LIEC PLC======================,66312,1,"18,562.00",PUBLIC RELATIONS,15/04/13,"18,562.00"
100413C,MAYORS OFF FOR POLICING&CRIME,6800087573,1,"2,500.00",CONSULTANTS,15/04/13,"2,500.00"
090413H,SWEETT  UK LTD,7022704,1,"10,270.00",STAFF CHARGES-PROPERTY,15/04/13,"10,775.00"
090413H,SWEETT  UK LTD,7022704,2,505.00,STAFF CHARGES-PROPERTY,15/04/13,
100413C,SWEETT  UK LTD,7022712,1,820.97,PROFESSIONAL FEES - MISC,15/04/13,820.97
110413F,SWEETT  UK LTD,7022833,1,"3,628.98",STRATEGIC (NON CYCLICAL),15/04/13,"3,628.98"
100413C,SWEETT  UK LTD,7022981,1,"5,239.44",PROF FEES-MISCELLANEOUS,15/04/13,"5,239.44"
110413F,DRAEGER SAFETY UK LIMITED=====,90408545,1,"1,108.00",PROTECTIVE EQUIPT - PARTS,15/04/13,"1,316.70"
110413F,DRAEGER SAFETY UK LIMITED=====,90408545,2,208.70,PROTECTIVE EQUIPT - PARTS,15/04/13,
080413H,COMPUTACENTRE================,90480558,1,"1,570.00",MAINTENANCE & SUPPORT,15/04/13,"53,420.00"
080413H,COMPUTACENTRE================,90480558,2,"2,350.00",MAINTENANCE & SUPPORT,15/04/13,
080413H,COMPUTACENTRE================,90480558,3,"3,900.00",MAINTENANCE & SUPPORT,15/04/13,
080413H,COMPUTACENTRE================,90480558,4,"3,150.00",MAINTENANCE & SUPPORT,15/04/13,
080413H,COMPUTACENTRE================,90480558,5,335.00,MAINTENANCE & SUPPORT,15/04/13,
080413H,COMPUTACENTRE================,90480558,6,"3,940.00",MAINTENANCE & SUPPORT,15/04/13,
080413H,COMPUTACENTRE================,90480558,7,"33,000.00",MAINTENANCE & SUPPORT,15/04/13,
080413H,COMPUTACENTRE================,90480558,8,"3,290.00",MAINTENANCE & SUPPORT,15/04/13,
080413H,COMPUTACENTRE================,90480558,9,"1,190.00",MAINTENANCE & SUPPORT,15/04/13,
080413H,COMPUTACENTRE================,90480558,10,300.00,MAINTENANCE & SUPPORT,15/04/13,
080413H,COMPUTACENTRE================,90480558,11,395.00,MAINTENANCE & SUPPORT,15/04/13,
140169,THAMES WATER UTILITIES LTD====,95240-85193L,1,906.82,WATER & SEWERAGE RATES,15/04/13,906.82
080413E,LPFA CONTRIBUTIONS ACCOUNT====,BD436,1,"67,046.53",PENSION SERVICES,15/04/13,"67,046.53"
110413F,NETCALL TELECOM LIMITED,BILL002444,1,"5,690.00",TELECOMMUNICATIONS,15/04/13,"12,575.00"
110413F,NETCALL TELECOM LIMITED,BILL002444,2,"6,885.00",TELECOMMUNICATIONS,15/04/13,
100413C,THAMES WATER UTILITIES LTD====,CBA1303180,1,511.50,CURRENT HYDRANT COSTS,15/04/13,511.50
100413C,THAMES WATER UTILITIES LTD====,CBA1303181,1,280.00,CURRENT HYDRANT COSTS,15/04/13,280.00
100413C,THAMES WATER UTILITIES LTD====,CBA1303182,1,"1,800.00",CURRENT HYDRANT COSTS,15/04/13,"1,800.00"
100413C,THAMES WATER UTILITIES LTD====,CBA1303183,1,"1,082.00",CURRENT HYDRANT COSTS,15/04/13,"1,082.00"
100413C,THAMES WATER UTILITIES LTD====,CBA1303189,1,"1,082.00",CURRENT HYDRANT COSTS,15/04/13,"1,082.00"
100413C,THAMES WATER UTILITIES LTD====,CBA1303190,1,616.00,HYDRANTS,15/04/13,616.00
100413C,THAMES WATER UTILITIES LTD====,CBA1303191,1,511.50,CURRENT HYDRANT COSTS,15/04/13,511.50
100413C,KIER BUILDING SERV ENGINEERS==,F00041243,1,"3,076.00",CATERING FIXTURES,15/04/13,"3,076.00"
100413C,KIER BUILDING SERV ENGINEERS==,F00041244,1,"2,343.00",CATERING FIXTURES,15/04/13,"2,343.00"
100413C,KIER BUILDING SERV ENGINEERS==,F00041245,1,"1,179.00",STRATEGIC (NON CYCLICAL),15/04/13,"1,179.00"
100413C,KIER BUILDING SERV ENGINEERS==,F00041246,1,"2,202.00",STRATEGIC (NON CYCLICAL),15/04/13,"2,202.00"
100413C,KIER BUILDING SERV ENGINEERS==,F00041247,1,"1,336.00",CATERING FIXTURES,15/04/13,"1,336.00"
100413C,KIER BUILDING SERV ENGINEERS==,F00041248,1,"2,428.00",CATERING FIXTURES,15/04/13,"2,428.00"
050413G,FC MEDIA LTD,FCM10-275,1,"15,150.00",FILM & VIDEO,15/04/13,"15,150.00"
100413C,WM ENGINEERING SERVICES LTD===,I-4439,1,"1,548.00",TACTICAL DAY TO DAY,15/04/13,"1,548.00"
100413C,PURDY CONTRACTS LTD,IN227059,1,"6,618.00",DAY TO DAY MINOR IMPS,15/04/13,"17,410.34"
100413C,PURDY CONTRACTS LTD,IN227059,2,"10,792.34",STRATEGIC (NON CYCLICAL),15/04/13,
100413C,BENNETT MECHANICAL SERVICES LT,L4846,1,"32,310.44",DEVELOPMENT  EXPENSES-CONTRACT,15/04/13,"32,310.44"
100413C,BENNETT MECHANICAL SERVICES LT,L4848,1,"14,699.32",DEVELOPMENT  EXPENSES-CONTRACT,15/04/13,"14,699.32"
080413E,SPECIALIST COMPUTER CENTRES===,OP/L636273,1,"36,304.00",PROF FEES-MISCELLANEOUS,15/04/13,"161,137.92"
080413E,SPECIALIST COMPUTER CENTRES===,OP/L636273,2,"2,269.00",PROF FEES-MISCELLANEOUS,15/04/13,
080413E,SPECIALIST COMPUTER CENTRES===,OP/L636273,3,801.36,PROF FEES-MISCELLANEOUS,15/04/13,
080413E,SPECIALIST COMPUTER CENTRES===,OP/L636273,4,"4,053.42",PROF FEES-MISCELLANEOUS,15/04/13,
080413E,SPECIALIST COMPUTER CENTRES===,OP/L636273,5,"36,304.00",PROF FEES-MISCELLANEOUS,15/04/13,
080413E,SPECIALIST COMPUTER CENTRES===,OP/L636273,6,801.36,PROF FEES-MISCELLANEOUS,15/04/13,
080413E,SPECIALIST COMPUTER CENTRES===,OP/L636273,7,"7,720.66",PURCHASES-COMPUTER/EQUIPMENT,15/04/13,
080413E,SPECIALIST COMPUTER CENTRES===,OP/L636273,8,"2,269.00",PURCHASES-COMPUTER/EQUIPMENT,15/04/13,
080413E,SPECIALIST COMPUTER CENTRES===,OP/L636273,9,"7,720.66",PURCHASES-COMPUTER/EQUIPMENT,15/04/13,
080413E,SPECIALIST COMPUTER CENTRES===,OP/L636273,10,"4,053.42",PURCHASES-COMPUTER/EQUIPMENT,15/04/13,
080413E,SPECIALIST COMPUTER CENTRES===,OP/L636273,11,"19,184.20",PURCHASES-COMPUTER/EQUIPMENT,15/04/13,
080413E,SPECIALIST COMPUTER CENTRES===,OP/L636273,12,"7,761.46",PURCHASES-COMPUTER/EQUIPMENT,15/04/13,
080413E,SPECIALIST COMPUTER CENTRES===,OP/L636273,13,48.24,PURCHASES-COMPUTER/EQUIPMENT,15/04/13,
080413E,SPECIALIST COMPUTER CENTRES===,OP/L636273,14,801.36,PURCHASES-COMPUTER/EQUIPMENT,15/04/13,
080413E,SPECIALIST COMPUTER CENTRES===,OP/L636273,15,"1,625.26",PURCHASES-COMPUTER/EQUIPMENT,15/04/13,
080413E,SPECIALIST COMPUTER CENTRES===,OP/L636273,16,"19,184.20",PURCHASES-COMPUTER/EQUIPMENT,15/04/13,
080413E,SPECIALIST COMPUTER CENTRES===,OP/L636273,17,"7,761.46",PURCHASES-COMPUTER/EQUIPMENT,15/04/13,
080413E,SPECIALIST COMPUTER CENTRES===,OP/L636273,18,48.24,PURCHASES-COMPUTER/EQUIPMENT,15/04/13,
080413E,SPECIALIST COMPUTER CENTRES===,OP/L636273,19,801.36,PURCHASES-COMPUTER/EQUIPMENT,15/04/13,
080413E,SPECIALIST COMPUTER CENTRES===,OP/L636273,20,"1,625.26",PURCHASES-COMPUTER/EQUIPMENT,15/04/13,
100413C,ALLSTAR BUSINESS SOLUTIONS LTD,P2000568675,1,388.91,FUEL,15/04/13,"28,179.44"
100413C,ALLSTAR BUSINESS SOLUTIONS LTD,P2000568675,2,150.01,FUEL,15/04/13,
100413C,ALLSTAR BUSINESS SOLUTIONS LTD,P2000568675,3,156.23,FUEL,15/04/13,
100413C,ALLSTAR BUSINESS SOLUTIONS LTD,P2000568675,4,577.23,FUEL,15/04/13,
100413C,ALLSTAR BUSINESS SOLUTIONS LTD,P2000568675,5,221.83,FUEL,15/04/13,
100413C,ALLSTAR BUSINESS SOLUTIONS LTD,P2000568675,6,108.72,FUEL,15/04/13,
100413C,ALLSTAR BUSINESS SOLUTIONS LTD,P2000568675,7,137.01,FUEL,15/04/13,
100413C,ALLSTAR BUSINESS SOLUTIONS LTD,P2000568675,8,529.09,FUEL,15/04/13,
100413C,ALLSTAR BUSINESS SOLUTIONS LTD,P2000568675,9,153.70,FUEL,15/04/13,
100413C,ALLSTAR BUSINESS SOLUTIONS LTD,P2000568675,10,413.38,FUEL,15/04/13,
100413C,ALLSTAR BUSINESS SOLUTIONS LTD,P2000568675,11,422.64,FUEL,15/04/13,
100413C,ALLSTAR BUSINESS SOLUTIONS LTD,P2000568675,12,583.47,FUEL,15/04/13,
100413C,ALLSTAR BUSINESS SOLUTIONS LTD,P2000568675,13,402.38,FUEL,15/04/13,
100413C,ALLSTAR BUSINESS SOLUTIONS LTD,P2000568675,14,483.47,FUEL,15/04/13,
100413C,ALLSTAR BUSINESS SOLUTIONS LTD,P2000568675,15,231.39,FUEL,15/04/13,
100413C,ALLSTAR BUSINESS SOLUTIONS LTD,P2000568675,16,413.36,FUEL,15/04/13,
100413C,ALLSTAR BUSINESS SOLUTIONS LTD,P2000568675,17,170.69,FUEL,15/04/13,
100413C,ALLSTAR BUSINESS SOLUTIONS LTD,P2000568675,18,209.09,FUEL,15/04/13,
100413C,ALLSTAR BUSINESS SOLUTIONS LTD,P2000568675,19,71.67,FUEL,15/04/13,
100413C,ALLSTAR BUSINESS SOLUTIONS LTD,P2000568675,20,181.86,FUEL,15/04/13,
100413C,ALLSTAR BUSINESS SOLUTIONS LTD,P2000568675,21,122.21,FUEL,15/04/13,
100413C,ALLSTAR BUSINESS SOLUTIONS LTD,P2000568675,22,398.46,FUEL,15/04/13,
100413C,ALLSTAR BUSINESS SOLUTIONS LTD,P2000568675,23,214.24,FUEL,15/04/13,
100413C,ALLSTAR BUSINESS SOLUTIONS LTD,P2000568675,24,254.45,FUEL,15/04/13,
100413C,ALLSTAR BUSINESS SOLUTIONS LTD,P2000568675,25,361.62,FUEL,15/04/13,
100413C,ALLSTAR BUSINESS SOLUTIONS LTD,P2000568675,26,263.49,FUEL,15/04/13,
100413C,ALLSTAR BUSINESS SOLUTIONS LTD,P2000568675,27,277.24,FUEL,15/04/13,
100413C,ALLSTAR BUSINESS SOLUTIONS LTD,P2000568675,28,348.92,FUEL,15/04/13,
100413C,ALLSTAR BUSINESS SOLUTIONS LTD,P2000568675,29,278.01,FUEL,15/04/13,
100413C,ALLSTAR BUSINESS SOLUTIONS LTD,P2000568675,30,288.45,FUEL,15/04/13,
100413C,ALLSTAR BUSINESS SOLUTIONS LTD,P2000568675,31,512.07,FUEL,15/04/13,
100413C,ALLSTAR BUSINESS SOLUTIONS LTD,P2000568675,32,394.87,FUEL,15/04/13,
100413C,ALLSTAR BUSINESS SOLUTIONS LTD,P2000568675,33,309.08,FUEL,15/04/13,
100413C,ALLSTAR BUSINESS SOLUTIONS LTD,P2000568675,34,334.37,FUEL,15/04/13,
100413C,ALLSTAR BUSINESS SOLUTIONS LTD,P2000568675,35,665.09,FUEL,15/04/13,
100413C,ALLSTAR BUSINESS SOLUTIONS LTD,P2000568675,36,219.65,FUEL,15/04/13,
100413C,ALLSTAR BUSINESS SOLUTIONS LTD,P2000568675,37,448.64,FUEL,15/04/13,
100413C,ALLSTAR BUSINESS SOLUTIONS LTD,P2000568675,38,138.16,FUEL,15/04/13,
100413C,ALLSTAR BUSINESS SOLUTIONS LTD,P2000568675,39,100.18,FUEL,15/04/13,
100413C,ALLSTAR BUSINESS SOLUTIONS LTD,P2000568675,40,673.27,FUEL,15/04/13,
100413C,ALLSTAR BUSINESS SOLUTIONS LTD,P2000568675,41,205.69,FUEL,15/04/13,
100413C,ALLSTAR BUSINESS SOLUTIONS LTD,P2000568675,42,191.25,FUEL,15/04/13,
100413C,ALLSTAR BUSINESS SOLUTIONS LTD,P2000568675,43,287.40,FUEL,15/04/13,
100413C,ALLSTAR BUSINESS SOLUTIONS LTD,P2000568675,44,188.32,FUEL,15/04/13,
100413C,ALLSTAR BUSINESS SOLUTIONS LTD,P2000568675,45,143.74,FUEL,15/04/13,
100413C,ALLSTAR BUSINESS SOLUTIONS LTD,P2000568675,46,235.05,FUEL,15/04/13,
100413C,ALLSTAR BUSINESS SOLUTIONS LTD,P2000568675,47,280.55,FUEL,15/04/13,
100413C,ALLSTAR BUSINESS SOLUTIONS LTD,P2000568675,48,132.35,FUEL,15/04/13,
100413C,ALLSTAR BUSINESS SOLUTIONS LTD,P2000568675,49,189.51,FUEL,15/04/13,
100413C,ALLSTAR BUSINESS SOLUTIONS LTD,P2000568675,50,91.75,FUEL,15/04/13,
100413C,ALLSTAR BUSINESS SOLUTIONS LTD,P2000568675,51,602.08,FUEL,15/04/13,
100413C,ALLSTAR BUSINESS SOLUTIONS LTD,P2000568675,52,210.84,FUEL,15/04/13,
100413C,ALLSTAR BUSINESS SOLUTIONS LTD,P2000568675,53,708.21,FUEL,15/04/13,
100413C,ALLSTAR BUSINESS SOLUTIONS LTD,P2000568675,54,245.10,FUEL,15/04/13,
100413C,ALLSTAR BUSINESS SOLUTIONS LTD,P2000568675,55,594.17,FUEL,15/04/13,
100413C,ALLSTAR BUSINESS SOLUTIONS LTD,P2000568675,56,413.12,FUEL,15/04/13,
100413C,ALLSTAR BUSINESS SOLUTIONS LTD,P2000568675,57,131.03,FUEL,15/04/13,
100413C,ALLSTAR BUSINESS SOLUTIONS LTD,P2000568675,58,395.89,FUEL,15/04/13,
100413C,ALLSTAR BUSINESS SOLUTIONS LTD,P2000568675,59,317.79,FUEL,15/04/13,
100413C,ALLSTAR BUSINESS SOLUTIONS LTD,P2000568675,60,332.21,FUEL,15/04/13,
100413C,ALLSTAR BUSINESS SOLUTIONS LTD,P2000568675,61,155.96,FUEL,15/04/13,
100413C,ALLSTAR BUSINESS SOLUTIONS LTD,P2000568675,62,94.22,FUEL,15/04/13,
100413C,ALLSTAR BUSINESS SOLUTIONS LTD,P2000568675,63,345.02,FUEL,15/04/13,
100413C,ALLSTAR BUSINESS SOLUTIONS LTD,P2000568675,64,36.19,FUEL,15/04/13,
100413C,ALLSTAR BUSINESS SOLUTIONS LTD,P2000568675,65,181.76,FUEL,15/04/13,
100413C,ALLSTAR BUSINESS SOLUTIONS LTD,P2000568675,66,187.56,FUEL,15/04/13,
100413C,ALLSTAR BUSINESS SOLUTIONS LTD,P2000568675,67,186.41,FUEL,15/04/13,
100413C,ALLSTAR BUSINESS SOLUTIONS LTD,P2000568675,68,113.36,FUEL,15/04/13,
100413C,ALLSTAR BUSINESS SOLUTIONS LTD,P2000568675,69,151.43,FUEL,15/04/13,
100413C,ALLSTAR BUSINESS SOLUTIONS LTD,P2000568675,70,88.65,FUEL,15/04/13,
100413C,ALLSTAR BUSINESS SOLUTIONS LTD,P2000568675,71,106.58,FUEL,15/04/13,
100413C,ALLSTAR BUSINESS SOLUTIONS LTD,P2000568675,72,327.61,FUEL,15/04/13,
100413C,ALLSTAR BUSINESS SOLUTIONS LTD,P2000568675,73,259.53,FUEL,15/04/13,
100413C,ALLSTAR BUSINESS SOLUTIONS LTD,P2000568675,74,"1,354.10",FUEL,15/04/13,
100413C,ALLSTAR BUSINESS SOLUTIONS LTD,P2000568675,75,57.14,FUEL,15/04/13,
100413C,ALLSTAR BUSINESS SOLUTIONS LTD,P2000568675,76,145.26,FUEL,15/04/13,
100413C,ALLSTAR BUSINESS SOLUTIONS LTD,P2000568675,77,140.10,FUEL,15/04/13,
100413C,ALLSTAR BUSINESS SOLUTIONS LTD,P2000568675,78,95.06,FUEL,15/04/13,
100413C,ALLSTAR BUSINESS SOLUTIONS LTD,P2000568675,79,122.90,FUEL,15/04/13,
100413C,ALLSTAR BUSINESS SOLUTIONS LTD,P2000568675,80,66.35,FUEL,15/04/13,
100413C,ALLSTAR BUSINESS SOLUTIONS LTD,P2000568675,81,107.55,FUEL,15/04/13,
100413C,ALLSTAR BUSINESS SOLUTIONS LTD,P2000568675,82,136.71,FUEL,15/04/13,
100413C,ALLSTAR BUSINESS SOLUTIONS LTD,P2000568675,83,292.97,FUEL,15/04/13,
100413C,ALLSTAR BUSINESS SOLUTIONS LTD,P2000568675,84,337.55,FUEL,15/04/13,
100413C,ALLSTAR BUSINESS SOLUTIONS LTD,P2000568675,85,170.36,FUEL,15/04/13,
100413C,ALLSTAR BUSINESS SOLUTIONS LTD,P2000568675,86,351.23,FUEL,15/04/13,
100413C,ALLSTAR BUSINESS SOLUTIONS LTD,P2000568675,87,87.49,FUEL,15/04/13,
100413C,ALLSTAR BUSINESS SOLUTIONS LTD,P2000568675,88,147.52,FUEL,15/04/13,
100413C,ALLSTAR BUSINESS SOLUTIONS LTD,P2000568675,89,48.34,FUEL,15/04/13,
100413C,ALLSTAR BUSINESS SOLUTIONS LTD,P2000568675,90,190.47,FUEL,15/04/13,
100413C,ALLSTAR BUSINESS SOLUTIONS LTD,P2000568675,91,175.23,FUEL,15/04/13,
100413C,ALLSTAR BUSINESS SOLUTIONS LTD,P2000568675,92,95.78,FUEL,15/04/13,
100413C,ALLSTAR BUSINESS SOLUTIONS LTD,P2000568675,93,104.60,FUEL,15/04/13,
100413C,ALLSTAR BUSINESS SOLUTIONS LTD,P2000568675,94,152.46,FUEL,15/04/13,
100413C,ALLSTAR BUSINESS SOLUTIONS LTD,P2000568675,95,311.50,FUEL,15/04/13,
100413C,ALLSTAR BUSINESS SOLUTIONS LTD,P2000568675,96,301.82,FUEL,15/04/13,
100413C,ALLSTAR BUSINESS SOLUTIONS LTD,P2000568675,97,106.49,FUEL,15/04/13,
100413C,ALLSTAR BUSINESS SOLUTIONS LTD,P2000568675,98,23.97,FUEL,15/04/13,
100413C,ALLSTAR BUSINESS SOLUTIONS LTD,P2000568675,99,68.33,FUEL,15/04/13,
100413C,ALLSTAR BUSINESS SOLUTIONS LTD,P2000568675,100,86.92,FUEL,15/04/13,
100413C,ALLSTAR BUSINESS SOLUTIONS LTD,P2000568675,101,66.43,FUEL,15/04/13,
100413C,ALLSTAR BUSINESS SOLUTIONS LTD,P2000568675,102,114.04,FUEL,15/04/13,
100413C,ALLSTAR BUSINESS SOLUTIONS LTD,P2000568675,103,29.18,FUEL,15/04/13,
100413C,ALLSTAR BUSINESS SOLUTIONS LTD,P2000568675,104,86.10,FUEL,15/04/13,
100413C,ALLSTAR BUSINESS SOLUTIONS LTD,P2000568675,105,26.59,FUEL,15/04/13,
100413C,ALLSTAR BUSINESS SOLUTIONS LTD,P2000568675,106,192.27,FUEL,15/04/13,
100413C,ALLSTAR BUSINESS SOLUTIONS LTD,P2000568675,107,154.36,FUEL,15/04/13,
100413C,ALLSTAR BUSINESS SOLUTIONS LTD,P2000568675,108,142.65,FUEL,15/04/13,
100413C,ALLSTAR BUSINESS SOLUTIONS LTD,P2000568675,109,94.53,FUEL,15/04/13,
100413C,ALLSTAR BUSINESS SOLUTIONS LTD,P2000568675,110,318.47,FUEL,15/04/13,
100413C,ALLSTAR BUSINESS SOLUTIONS LTD,P2000568675,111,73.29,FUEL,15/04/13,
100413C,ALLSTAR BUSINESS SOLUTIONS LTD,P2000568675,112,135.18,FUEL,15/04/13,
100413C,ALLSTAR BUSINESS SOLUTIONS LTD,P2000568675,113,127.21,FUEL,15/04/13,
100413C,ALLSTAR BUSINESS SOLUTIONS LTD,P2000568675,114,172.51,FUEL,15/04/13,
100413C,ALLSTAR BUSINESS SOLUTIONS LTD,P2000568675,115,429.50,FUEL,15/04/13,
100413C,LEXISNEXIS VISUALFILES,PA992058,1,460.00,SUBSCRIPTIONS,15/04/13,460.00
100413C,PILLINGER CONTROLS LTD========,PI71274,1,"1,391.26",STRATEGIC (NON CYCLICAL),15/04/13,"1,391.26"
110413F,BABCOCK CRITICAL SERVICES LTD,SIINF01108,1,"1,284.64",PURCHASES - SOFTWARE,15/04/13,"1,284.64"
100413C,BABCOCK SUPPORT SERVICES,SIINF01113,1,"2,592.00",STRATEGIC (NON CYCLICAL),15/04/13,"2,592.00"
270313E,BABCOCK CRITICAL SERVICES LTD,SIMP010703,1,"3,670.75",LOST & NFWT OPS EQUIPMENT,15/04/13,"3,670.75"
090413H,SUNLIGHT SERVICE GROUP LTD====,SN1300092,1,"9,548.54",LAUNDRY,15/04/13,"9,548.54"
902277,LAING & BUISSON LTD,AD5747,1,590.00,PROFESSIONAL DEVELOPMENT,17/04/13,590.00
902277,GRAND PALACE BANQUETING SUITE,AD5748,1,800.00,ADVERTISING,17/04/13,800.00
150413C,GOVNET COMMUNICATIONS=========,00000850329,1,301.75,PROFESSIONAL DEVELOPMENT,18/04/13,301.75
090413H,HEALTH MANAGEMENT LIMITED=====,0000095300,1,"107,035.75",OHS CONTRACT,18/04/13,"107,035.75"
120413C,*OCS GROUP UK LTD,0000160324,1,"3,664.25",REFRESHMENTS,18/04/13,"3,664.25"
140172,THAMES WATER UTILITIES LTD====,0423030577B,1,498.97,WATER & SEWERAGE RATES,18/04/13,498.97
110413H,AFFINITY WATER,101020917,1,533.00,CURRENT HYDRANT COSTS,18/04/13,533.00
150413H,*APTCO========================,101576,1,360.00,OPERATIONAL EQUIP-PURCHASE,18/04/13,360.00
150413C,MOOLANDS LTD,10339,1,"1,290.00",STRATEGIC (NON CYCLICAL),18/04/13,"1,290.00"
110413H,DELOITTE LLP,1110913307,1,"6,001.54",PROFESSIONAL SERVICES,18/04/13,"6,001.54"
110413H,DELOITTE LLP,1110913315,1,"22,574.60",PROFESSIONAL SERVICES,18/04/13,"22,574.60"
110413H,DELOITTE LLP,1110913319,1,"10,803.04",PROFESSIONAL SERVICES,18/04/13,"10,803.04"
110413H,DELOITTE LLP,1110914088,1,"5,974.01",PROFESSIONAL SERVICES,18/04/13,"5,974.01"
110413H,DELOITTE LLP,1110914089,1,"15,416.80",PROFESSIONAL SERVICES,18/04/13,"15,416.80"
120413C,INFOR (UNITED KINGDOM) LIMITED,11302141-GB04G,1,"3,210.00",MAINTENANCE & SUPPORT,18/04/13,"3,210.00"
080413E,SAFEGUARD PEST CON. & ENV.LTD,115837,1,460.00,PEST CONTROL,18/04/13,460.00
160413G,ATKINS LIMITED================,12056756,1,"7,051.40",CONSULTANTS,18/04/13,"7,051.40"
160413G,ATKINS LIMITED================,12057496,1,"11,415.50",CONSULTANTS,18/04/13,"11,415.50"
120413C,AUTOPAGE LTD==================,1303802,1,635.00,MAINTENANCE & SUPPORT,18/04/13,815.00
120413C,AUTOPAGE LTD==================,1303802,2,180.00,MAINTENANCE & SUPPORT,18/04/13,
040413H,HOTSEAT=======================,1361,1,"2,400.00",PROFESSIONAL DEVELOPMENT,18/04/13,"2,400.00"
110413H,RESPIREX======================,141755,1,125.31,REPAIR & MAINTENANCE,18/04/13,362.33
110413H,RESPIREX======================,141755,2,237.02,REPAIR & MAINTENANCE,18/04/13,
110413H,RESPIREX======================,141756,1,237.02,REPAIR & MAINTENANCE,18/04/13,495.71
110413H,RESPIREX======================,141756,2,237.02,REPAIR & MAINTENANCE,18/04/13,
110413H,RESPIREX======================,141756,3,21.67,REPAIR & MAINTENANCE,18/04/13,
150413C,GP CONTRACTS==================,14674,1,260.00,PURCHASES-FURNITURE,18/04/13,260.00
120413C,DRON & WRIGHT=================,16353,1,357.13,PROFESSIONAL SERVICES,18/04/13,785.00
120413C,DRON & WRIGHT=================,16353,2,427.87,PROFESSIONAL SERVICES,18/04/13,
150413H,CARPETS & FLOOR COVERS DIRECT=,1641,1,"1,628.66",FIXTURES & FITTINGS,18/04/13,"1,628.66"
120413C,BEAUMONT CONSTRUCTION SERVICES,1642,1,"2,936.20",STRATEGIC (NON CYCLICAL),18/04/13,"2,936.20"
150413C,BEAUMONT CONSTRUCTION SERVICES,1650,1,"6,219.24",STRATEGIC (NON CYCLICAL),18/04/13,"6,219.24"
080413E,ASPEN ELECTRONICS LIMITED,166828,1,"8,984.00",RADIO,18/04/13,"11,812.00"
080413E,ASPEN ELECTRONICS LIMITED,166828,2,498.00,RADIO,18/04/13,
080413E,ASPEN ELECTRONICS LIMITED,166828,3,116.00,RADIO,18/04/13,
080413E,ASPEN ELECTRONICS LIMITED,166828,4,"2,214.00",RADIO,18/04/13,
120413C,BEAUMONT CONSTRUCTION SERVICES,1671,1,"5,428.80",STRATEGIC (NON CYCLICAL),18/04/13,"5,428.80"
120413C,BEAUMONT CONSTRUCTION SERVICES,1672,1,"7,361.60",STRATEGIC (NON CYCLICAL),18/04/13,"7,361.60"
120413C,BEAUMONT CONSTRUCTION SERVICES,1673,1,"3,790.13",STRATEGIC (NON CYCLICAL),18/04/13,"3,790.13"
150413C,BEAUMONT CONSTRUCTION SERVICES,1685,1,"4,945.80",STRATEGIC (NON CYCLICAL),18/04/13,"4,945.80"
120413C,BEAUMONT CONSTRUCTION SERVICES,1686,1,"4,459.00",STRATEGIC (NON CYCLICAL),18/04/13,"4,459.00"
150413C,BEAUMONT CONSTRUCTION SERVICES,1687,1,"3,139.60",STRATEGIC (NON CYCLICAL),18/04/13,"3,139.60"
120413C,BEAUMONT CONSTRUCTION SERVICES,1688,1,"5,566.88",STRATEGIC (NON CYCLICAL),18/04/13,"5,566.88"
120413C,BEAUMONT CONSTRUCTION SERVICES,1692,1,"4,250.00",STRATEGIC (NON CYCLICAL),18/04/13,"4,250.00"
100413C,PSYCHOLOGICAL CONSULTANCY LTD,17195,1,"1,464.00",ASSESSMENTS,18/04/13,"1,464.00"
120413C,PKF===========================,1727133,1,"2,498.00",PROFESSIONAL SERVICES,18/04/13,"5,636.00"
120413C,PKF===========================,1727133,2,138.00,PROFESSIONAL SERVICES,18/04/13,
120413C,PKF===========================,1727133,3,"3,000.00",PROFESSIONAL SERVICES,18/04/13,
110413F,EUROWINDOWS LIMITED,17398,1,"48,523.42",DEVELOPMENT  EXPENSES-CONTRACT,18/04/13,"48,523.42"
120413C,GRADIENT CONSULTANTS LLP======,1798,1,52.74,ASBESTOS,18/04/13,"2,372.87"
120413C,GRADIENT CONSULTANTS LLP======,1798,2,242.57,ASBESTOS,18/04/13,
120413C,GRADIENT CONSULTANTS LLP======,1798,3,52.74,ASBESTOS,18/04/13,
120413C,GRADIENT CONSULTANTS LLP======,1798,4,242.57,ASBESTOS,18/04/13,
120413C,GRADIENT CONSULTANTS LLP======,1798,5,290.02,ASBESTOS,18/04/13,
120413C,GRADIENT CONSULTANTS LLP======,1798,6,448.23,ASBESTOS,18/04/13,
120413C,GRADIENT CONSULTANTS LLP======,1798,7,104.40,ASBESTOS,18/04/13,
120413C,GRADIENT CONSULTANTS LLP======,1798,8,104.40,ASBESTOS,18/04/13,
120413C,GRADIENT CONSULTANTS LLP======,1798,9,104.40,ASBESTOS,18/04/13,
120413C,GRADIENT CONSULTANTS LLP======,1798,10,104.40,ASBESTOS,18/04/13,
120413C,GRADIENT CONSULTANTS LLP======,1798,11,104.40,ASBESTOS,18/04/13,
120413C,GRADIENT CONSULTANTS LLP======,1798,12,104.40,ASBESTOS,18/04/13,
120413C,GRADIENT CONSULTANTS LLP======,1798,13,104.40,ASBESTOS,18/04/13,
120413C,GRADIENT CONSULTANTS LLP======,1798,14,104.40,ASBESTOS,18/04/13,
120413C,GRADIENT CONSULTANTS LLP======,1798,15,104.40,ASBESTOS,18/04/13,
120413C,GRADIENT CONSULTANTS LLP======,1798,16,104.40,ASBESTOS,18/04/13,
150413C,DELTOR COMMUNICATIONS LTD.===,20555,1,474.00,GENERAL CONSUMABLES,18/04/13,474.00
120413C,MITIE TECH FACILITIES MNGT LT,220190411,1,"17,590.76",DEVELOPMENT  EXPENSES-CONTRACT,18/04/13,"200,000.00"
120413C,MITIE TECH FACILITIES MNGT LT,220190411,2,"8,555.11",DEVELOPMENT  EXPENSES-CONTRACT,18/04/13,
120413C,MITIE TECH FACILITIES MNGT LT,220190411,3,"9,215.67",DEVELOPMENT  EXPENSES-CONTRACT,18/04/13,
120413C,MITIE TECH FACILITIES MNGT LT,220190411,4,"4,986.84",DEVELOPMENT  EXPENSES-CONTRACT,18/04/13,
120413C,MITIE TECH FACILITIES MNGT LT,220190411,5,"31,943.88",DEVELOPMENT  EXPENSES-CONTRACT,18/04/13,
120413C,MITIE TECH FACILITIES MNGT LT,220190411,6,"6,569.74",DEVELOPMENT  EXPENSES-CONTRACT,18/04/13,
120413C,MITIE TECH FACILITIES MNGT LT,220190411,7,"5,841.25",DEVELOPMENT  EXPENSES-CONTRACT,18/04/13,
120413C,MITIE TECH FACILITIES MNGT LT,220190411,8,"7,883.02",DEVELOPMENT  EXPENSES-CONTRACT,18/04/13,
120413C,MITIE TECH FACILITIES MNGT LT,220190411,9,"13,686.52",DEVELOPMENT  EXPENSES-CONTRACT,18/04/13,
120413C,MITIE TECH FACILITIES MNGT LT,220190411,10,"15,836.72",DEVELOPMENT  EXPENSES-CONTRACT,18/04/13,
120413C,MITIE TECH FACILITIES MNGT LT,220190411,11,"18,503.42",DEVELOPMENT  EXPENSES-CONTRACT,18/04/13,
120413C,MITIE TECH FACILITIES MNGT LT,220190411,12,"7,636.63",DEVELOPMENT  EXPENSES-CONTRACT,18/04/13,
120413C,MITIE TECH FACILITIES MNGT LT,220190411,13,"10,458.79",DEVELOPMENT  EXPENSES-CONTRACT,18/04/13,
120413C,MITIE TECH FACILITIES MNGT LT,220190411,14,"30,223.81",DEVELOPMENT  EXPENSES-CONTRACT,18/04/13,
120413C,MITIE TECH FACILITIES MNGT LT,220190411,15,"11,067.84",DEVELOPMENT - EX-CONTRACTOR,18/04/13,
120413C,ADT FIRE & SECURITY===========,23667179-18,1,92.88,STRATEGIC (CYCLICAL),18/04/13,"1,507.17"
120413C,ADT FIRE & SECURITY===========,23667179-18,2,"1,131.70",STRATEGIC (CYCLICAL),18/04/13,
120413C,ADT FIRE & SECURITY===========,23667179-18,3,282.59,STRATEGIC (CYCLICAL),18/04/13,
150413C,MCGRATH BROS (WASTE CONTROL) L,286061,1,261.80,REFUSE COLLECTION,18/04/13,"16,855.95"
150413C,MCGRATH BROS (WASTE CONTROL) L,286061,2,109.40,REFUSE COLLECTION,18/04/13,
150413C,MCGRATH BROS (WASTE CONTROL) L,286061,3,204.20,REFUSE COLLECTION,18/04/13,
150413C,MCGRATH BROS (WASTE CONTROL) L,286061,4,80.60,REFUSE COLLECTION,18/04/13,
150413C,MCGRATH BROS (WASTE CONTROL) L,286061,5,109.40,REFUSE COLLECTION,18/04/13,
150413C,MCGRATH BROS (WASTE CONTROL) L,286061,6,80.60,REFUSE COLLECTION,18/04/13,
150413C,MCGRATH BROS (WASTE CONTROL) L,286061,7,121.55,REFUSE COLLECTION,18/04/13,
150413C,MCGRATH BROS (WASTE CONTROL) L,286061,8,141.00,REFUSE COLLECTION,18/04/13,
150413C,MCGRATH BROS (WASTE CONTROL) L,286061,9,109.40,REFUSE COLLECTION,18/04/13,
150413C,MCGRATH BROS (WASTE CONTROL) L,286061,10,80.60,REFUSE COLLECTION,18/04/13,
150413C,MCGRATH BROS (WASTE CONTROL) L,286061,11,80.60,REFUSE COLLECTION,18/04/13,
150413C,MCGRATH BROS (WASTE CONTROL) L,286061,12,112.20,REFUSE COLLECTION,18/04/13,
150413C,MCGRATH BROS (WASTE CONTROL) L,286061,13,141.00,REFUSE COLLECTION,18/04/13,
150413C,MCGRATH BROS (WASTE CONTROL) L,286061,14,261.80,REFUSE COLLECTION,18/04/13,
150413C,MCGRATH BROS (WASTE CONTROL) L,286061,15,109.40,REFUSE COLLECTION,18/04/13,
150413C,MCGRATH BROS (WASTE CONTROL) L,286061,16,276.20,REFUSE COLLECTION,18/04/13,
150413C,MCGRATH BROS (WASTE CONTROL) L,286061,17,80.60,REFUSE COLLECTION,18/04/13,
150413C,MCGRATH BROS (WASTE CONTROL) L,286061,18,261.80,REFUSE COLLECTION,18/04/13,
150413C,MCGRATH BROS (WASTE CONTROL) L,286061,19,261.80,REFUSE COLLECTION,18/04/13,
150413C,MCGRATH BROS (WASTE CONTROL) L,286061,20,325.00,REFUSE COLLECTION,18/04/13,
150413C,MCGRATH BROS (WASTE CONTROL) L,286061,21,141.00,REFUSE COLLECTION,18/04/13,
150413C,MCGRATH BROS (WASTE CONTROL) L,286061,22,80.60,REFUSE COLLECTION,18/04/13,
150413C,MCGRATH BROS (WASTE CONTROL) L,286061,23,80.60,REFUSE COLLECTION,18/04/13,
150413C,MCGRATH BROS (WASTE CONTROL) L,286061,24,80.60,REFUSE COLLECTION,18/04/13,
150413C,MCGRATH BROS (WASTE CONTROL) L,286061,25,80.60,REFUSE COLLECTION,18/04/13,
150413C,MCGRATH BROS (WASTE CONTROL) L,286061,26,109.40,REFUSE COLLECTION,18/04/13,
150413C,MCGRATH BROS (WASTE CONTROL) L,286061,27,80.60,REFUSE COLLECTION,18/04/13,
150413C,MCGRATH BROS (WASTE CONTROL) L,286061,28,261.80,REFUSE COLLECTION,18/04/13,
150413C,MCGRATH BROS (WASTE CONTROL) L,286061,29,184.20,REFUSE COLLECTION,18/04/13,
150413C,MCGRATH BROS (WASTE CONTROL) L,286061,30,80.60,REFUSE COLLECTION,18/04/13,
150413C,MCGRATH BROS (WASTE CONTROL) L,286061,31,109.40,REFUSE COLLECTION,18/04/13,
150413C,MCGRATH BROS (WASTE CONTROL) L,286061,32,261.80,REFUSE COLLECTION,18/04/13,
150413C,MCGRATH BROS (WASTE CONTROL) L,286061,33,109.40,REFUSE COLLECTION,18/04/13,
150413C,MCGRATH BROS (WASTE CONTROL) L,286061,34,109.40,REFUSE COLLECTION,18/04/13,
150413C,MCGRATH BROS (WASTE CONTROL) L,286061,35,141.00,REFUSE COLLECTION,18/04/13,
150413C,MCGRATH BROS (WASTE CONTROL) L,286061,36,109.40,REFUSE COLLECTION,18/04/13,
150413C,MCGRATH BROS (WASTE CONTROL) L,286061,37,141.00,REFUSE COLLECTION,18/04/13,
150413C,MCGRATH BROS (WASTE CONTROL) L,286061,38,112.20,REFUSE COLLECTION,18/04/13,
150413C,MCGRATH BROS (WASTE CONTROL) L,286061,39,80.60,REFUSE COLLECTION,18/04/13,
150413C,MCGRATH BROS (WASTE CONTROL) L,286061,40,198.60,REFUSE COLLECTION,18/04/13,
150413C,MCGRATH BROS (WASTE CONTROL) L,286061,41,198.60,REFUSE COLLECTION,18/04/13,
150413C,MCGRATH BROS (WASTE CONTROL) L,286061,42,109.40,REFUSE COLLECTION,18/04/13,
150413C,MCGRATH BROS (WASTE CONTROL) L,286061,43,80.60,REFUSE COLLECTION,18/04/13,
150413C,MCGRATH BROS (WASTE CONTROL) L,286061,44,80.60,REFUSE COLLECTION,18/04/13,
150413C,MCGRATH BROS (WASTE CONTROL) L,286061,45,261.80,REFUSE COLLECTION,18/04/13,
150413C,MCGRATH BROS (WASTE CONTROL) L,286061,46,198.60,REFUSE COLLECTION,18/04/13,
150413C,MCGRATH BROS (WASTE CONTROL) L,286061,47,109.40,REFUSE COLLECTION,18/04/13,
150413C,MCGRATH BROS (WASTE CONTROL) L,286061,48,80.60,REFUSE COLLECTION,18/04/13,
150413C,MCGRATH BROS (WASTE CONTROL) L,286061,49,80.60,REFUSE COLLECTION,18/04/13,
150413C,MCGRATH BROS (WASTE CONTROL) L,286061,50,109.40,REFUSE COLLECTION,18/04/13,
150413C,MCGRATH BROS (WASTE CONTROL) L,286061,51,261.80,REFUSE COLLECTION,18/04/13,
150413C,MCGRATH BROS (WASTE CONTROL) L,286061,52,80.60,REFUSE COLLECTION,18/04/13,
150413C,MCGRATH BROS (WASTE CONTROL) L,286061,53,80.60,REFUSE COLLECTION,18/04/13,
150413C,MCGRATH BROS (WASTE CONTROL) L,286061,54,109.40,REFUSE COLLECTION,18/04/13,
150413C,MCGRATH BROS (WASTE CONTROL) L,286061,55,80.60,REFUSE COLLECTION,18/04/13,
150413C,MCGRATH BROS (WASTE CONTROL) L,286061,56,112.20,REFUSE COLLECTION,18/04/13,
150413C,MCGRATH BROS (WASTE CONTROL) L,286061,57,80.60,REFUSE COLLECTION,18/04/13,
150413C,MCGRATH BROS (WASTE CONTROL) L,286061,58,141.00,REFUSE COLLECTION,18/04/13,
150413C,MCGRATH BROS (WASTE CONTROL) L,286061,59,80.60,REFUSE COLLECTION,18/04/13,
150413C,MCGRATH BROS (WASTE CONTROL) L,286061,60,261.80,REFUSE COLLECTION,18/04/13,
150413C,MCGRATH BROS (WASTE CONTROL) L,286061,61,109.40,REFUSE COLLECTION,18/04/13,
150413C,MCGRATH BROS (WASTE CONTROL) L,286061,62,109.40,REFUSE COLLECTION,18/04/13,
150413C,MCGRATH BROS (WASTE CONTROL) L,286061,63,80.60,REFUSE COLLECTION,18/04/13,
150413C,MCGRATH BROS (WASTE CONTROL) L,286061,64,261.80,REFUSE COLLECTION,18/04/13,
150413C,MCGRATH BROS (WASTE CONTROL) L,286061,65,80.60,REFUSE COLLECTION,18/04/13,
150413C,MCGRATH BROS (WASTE CONTROL) L,286061,66,261.80,REFUSE COLLECTION,18/04/13,
150413C,MCGRATH BROS (WASTE CONTROL) L,286061,67,80.60,REFUSE COLLECTION,18/04/13,
150413C,MCGRATH BROS (WASTE CONTROL) L,286061,68,109.40,REFUSE COLLECTION,18/04/13,
150413C,MCGRATH BROS (WASTE CONTROL) L,286061,69,109.40,REFUSE COLLECTION,18/04/13,
150413C,MCGRATH BROS (WASTE CONTROL) L,286061,70,109.40,REFUSE COLLECTION,18/04/13,
150413C,MCGRATH BROS (WASTE CONTROL) L,286061,71,109.40,REFUSE COLLECTION,18/04/13,
150413C,MCGRATH BROS (WASTE CONTROL) L,286061,72,80.60,REFUSE COLLECTION,18/04/13,
150413C,MCGRATH BROS (WASTE CONTROL) L,286061,73,282.00,REFUSE COLLECTION,18/04/13,
150413C,MCGRATH BROS (WASTE CONTROL) L,286061,74,80.60,REFUSE COLLECTION,18/04/13,
150413C,MCGRATH BROS (WASTE CONTROL) L,286061,75,109.40,REFUSE COLLECTION,18/04/13,
150413C,MCGRATH BROS (WASTE CONTROL) L,286061,76,112.20,REFUSE COLLECTION,18/04/13,
150413C,MCGRATH BROS (WASTE CONTROL) L,286061,77,109.40,REFUSE COLLECTION,18/04/13,
150413C,MCGRATH BROS (WASTE CONTROL) L,286061,78,112.20,REFUSE COLLECTION,18/04/13,
150413C,MCGRATH BROS (WASTE CONTROL) L,286061,79,80.60,REFUSE COLLECTION,18/04/13,
150413C,MCGRATH BROS (WASTE CONTROL) L,286061,80,80.60,REFUSE COLLECTION,18/04/13,
150413C,MCGRATH BROS (WASTE CONTROL) L,286061,81,80.60,REFUSE COLLECTION,18/04/13,
150413C,MCGRATH BROS (WASTE CONTROL) L,286061,82,80.60,REFUSE COLLECTION,18/04/13,
150413C,MCGRATH BROS (WASTE CONTROL) L,286061,83,261.80,REFUSE COLLECTION,18/04/13,
150413C,MCGRATH BROS (WASTE CONTROL) L,286061,84,261.80,REFUSE COLLECTION,18/04/13,
150413C,MCGRATH BROS (WASTE CONTROL) L,286061,85,109.40,REFUSE COLLECTION,18/04/13,
150413C,MCGRATH BROS (WASTE CONTROL) L,286061,86,80.60,REFUSE COLLECTION,18/04/13,
150413C,MCGRATH BROS (WASTE CONTROL) L,286061,87,112.20,REFUSE COLLECTION,18/04/13,
150413C,MCGRATH BROS (WASTE CONTROL) L,286061,88,109.40,REFUSE COLLECTION,18/04/13,
150413C,MCGRATH BROS (WASTE CONTROL) L,286061,89,80.60,REFUSE COLLECTION,18/04/13,
150413C,MCGRATH BROS (WASTE CONTROL) L,286061,90,489.20,REFUSE COLLECTION,18/04/13,
150413C,MCGRATH BROS (WASTE CONTROL) L,286061,91,80.60,REFUSE COLLECTION,18/04/13,
150413C,MCGRATH BROS (WASTE CONTROL) L,286061,92,80.60,REFUSE COLLECTION,18/04/13,
150413C,MCGRATH BROS (WASTE CONTROL) L,286061,93,261.80,REFUSE COLLECTION,18/04/13,
150413C,MCGRATH BROS (WASTE CONTROL) L,286061,94,80.60,REFUSE COLLECTION,18/04/13,
150413C,MCGRATH BROS (WASTE CONTROL) L,286061,95,109.40,REFUSE COLLECTION,18/04/13,
150413C,MCGRATH BROS (WASTE CONTROL) L,286061,96,109.40,REFUSE COLLECTION,18/04/13,
150413C,MCGRATH BROS (WASTE CONTROL) L,286061,97,261.80,REFUSE COLLECTION,18/04/13,
150413C,MCGRATH BROS (WASTE CONTROL) L,286061,98,109.40,REFUSE COLLECTION,18/04/13,
150413C,MCGRATH BROS (WASTE CONTROL) L,286061,99,"1,525.00",REFUSE COLLECTION,18/04/13,
150413C,MCGRATH BROS (WASTE CONTROL) L,286061,100,80.60,REFUSE COLLECTION,18/04/13,
150413C,MCGRATH BROS (WASTE CONTROL) L,286061,101,109.40,REFUSE COLLECTION,18/04/13,
150413C,MCGRATH BROS (WASTE CONTROL) L,286061,102,109.40,REFUSE COLLECTION,18/04/13,
150413C,MCGRATH BROS (WASTE CONTROL) L,286061,103,282.00,REFUSE COLLECTION,18/04/13,
150413C,MCGRATH BROS (WASTE CONTROL) L,286061,104,80.60,REFUSE COLLECTION,18/04/13,
150413C,MCGRATH BROS (WASTE CONTROL) L,286061,105,112.20,REFUSE COLLECTION,18/04/13,
150413C,MCGRATH BROS (WASTE CONTROL) L,286061,106,109.40,REFUSE COLLECTION,18/04/13,
150413C,MCGRATH BROS (WASTE CONTROL) L,286061,107,204.20,REFUSE COLLECTION,18/04/13,
150413C,MCGRATH BROS (WASTE CONTROL) L,286061,108,109.40,REFUSE COLLECTION,18/04/13,
150413C,MCGRATH BROS (WASTE CONTROL) L,286061,109,109.40,REFUSE COLLECTION,18/04/13,
150413C,MCGRATH BROS (WASTE CONTROL) L,286061,110,112.20,REFUSE COLLECTION,18/04/13,
150413C,MCGRATH BROS (WASTE CONTROL) L,286061,111,80.60,REFUSE COLLECTION,18/04/13,
150413C,MCGRATH BROS (WASTE CONTROL) L,286061,112,80.60,REFUSE COLLECTION,18/04/13,
150413C,MCGRATH BROS (WASTE CONTROL) L,286061,113,80.60,REFUSE COLLECTION,18/04/13,
150413C,MCGRATH BROS (WASTE CONTROL) L,286061,114,80.60,REFUSE COLLECTION,18/04/13,
120413C,CIPFA BUSINESS,3078536,1,"2,420.00",SUBSCRIPTIONS,18/04/13,"2,420.00"
120413C,CIPFA BUSINESS,3080259,1,"5,120.00",SUBSCRIPTIONS,18/04/13,"5,120.00"
110413H,HUNTERS CONTRACTS LIMITED,341513,1,694.80,OFFICE FURNITURE,18/04/13,694.80
110413H,HUNTERS CONTRACTS LIMITED,341521,1,338.40,OFFICE FURNITURE,18/04/13,507.60
110413H,HUNTERS CONTRACTS LIMITED,341521,2,169.20,OFFICE FURNITURE,18/04/13,
110413H,HUNTERS CONTRACTS LIMITED,341522,1,347.40,OFFICE FURNITURE,18/04/13,347.40
120413C,KNIGHTON CLEANING SERVICES LTD,34349,1,140.00,SPECIAL CLEANS,18/04/13,"5,740.00"
120413C,KNIGHTON CLEANING SERVICES LTD,34349,2,140.00,SPECIAL CLEANS,18/04/13,
120413C,KNIGHTON CLEANING SERVICES LTD,34349,3,140.00,SPECIAL CLEANS,18/04/13,
120413C,KNIGHTON CLEANING SERVICES LTD,34349,4,140.00,SPECIAL CLEANS,18/04/13,
120413C,KNIGHTON CLEANING SERVICES LTD,34349,5,140.00,SPECIAL CLEANS,18/04/13,
120413C,KNIGHTON CLEANING SERVICES LTD,34349,6,140.00,SPECIAL CLEANS,18/04/13,
120413C,KNIGHTON CLEANING SERVICES LTD,34349,7,140.00,SPECIAL CLEANS,18/04/13,
120413C,KNIGHTON CLEANING SERVICES LTD,34349,8,140.00,SPECIAL CLEANS,18/04/13,
120413C,KNIGHTON CLEANING SERVICES LTD,34349,9,140.00,SPECIAL CLEANS,18/04/13,
120413C,KNIGHTON CLEANING SERVICES LTD,34349,10,140.00,SPECIAL CLEANS,18/04/13,
120413C,KNIGHTON CLEANING SERVICES LTD,34349,11,140.00,SPECIAL CLEANS,18/04/13,
120413C,KNIGHTON CLEANING SERVICES LTD,34349,12,140.00,SPECIAL CLEANS,18/04/13,
120413C,KNIGHTON CLEANING SERVICES LTD,34349,13,140.00,SPECIAL CLEANS,18/04/13,
120413C,KNIGHTON CLEANING SERVICES LTD,34349,14,140.00,SPECIAL CLEANS,18/04/13,
120413C,KNIGHTON CLEANING SERVICES LTD,34349,15,140.00,SPECIAL CLEANS,18/04/13,
120413C,KNIGHTON CLEANING SERVICES LTD,34349,16,140.00,SPECIAL CLEANS,18/04/13,
120413C,KNIGHTON CLEANING SERVICES LTD,34349,17,140.00,SPECIAL CLEANS,18/04/13,
120413C,KNIGHTON CLEANING SERVICES LTD,34349,18,140.00,SPECIAL CLEANS,18/04/13,
120413C,KNIGHTON CLEANING SERVICES LTD,34349,19,140.00,SPECIAL CLEANS,18/04/13,
120413C,KNIGHTON CLEANING SERVICES LTD,34349,20,140.00,SPECIAL CLEANS,18/04/13,
120413C,KNIGHTON CLEANING SERVICES LTD,34349,21,140.00,SPECIAL CLEANS,18/04/13,
120413C,KNIGHTON CLEANING SERVICES LTD,34349,22,140.00,SPECIAL CLEANS,18/04/13,
120413C,KNIGHTON CLEANING SERVICES LTD,34349,23,140.00,SPECIAL CLEANS,18/04/13,
120413C,KNIGHTON CLEANING SERVICES LTD,34349,24,140.00,SPECIAL CLEANS,18/04/13,
120413C,KNIGHTON CLEANING SERVICES LTD,34349,25,140.00,SPECIAL CLEANS,18/04/13,
120413C,KNIGHTON CLEANING SERVICES LTD,34349,26,140.00,SPECIAL CLEANS,18/04/13,
120413C,KNIGHTON CLEANING SERVICES LTD,34349,27,140.00,SPECIAL CLEANS,18/04/13,
120413C,KNIGHTON CLEANING SERVICES LTD,34349,28,140.00,SPECIAL CLEANS,18/04/13,
120413C,KNIGHTON CLEANING SERVICES LTD,34349,29,140.00,SPECIAL CLEANS,18/04/13,
120413C,KNIGHTON CLEANING SERVICES LTD,34349,30,140.00,SPECIAL CLEANS,18/04/13,
120413C,KNIGHTON CLEANING SERVICES LTD,34349,31,140.00,SPECIAL CLEANS,18/04/13,
120413C,KNIGHTON CLEANING SERVICES LTD,34349,32,140.00,SPECIAL CLEANS,18/04/13,
120413C,KNIGHTON CLEANING SERVICES LTD,34349,33,140.00,SPECIAL CLEANS,18/04/13,
120413C,KNIGHTON CLEANING SERVICES LTD,34349,34,140.00,SPECIAL CLEANS,18/04/13,
120413C,KNIGHTON CLEANING SERVICES LTD,34349,35,140.00,SPECIAL CLEANS,18/04/13,
120413C,KNIGHTON CLEANING SERVICES LTD,34349,36,140.00,SPECIAL CLEANS,18/04/13,
120413C,KNIGHTON CLEANING SERVICES LTD,34349,37,140.00,SPECIAL CLEANS,18/04/13,
120413C,KNIGHTON CLEANING SERVICES LTD,34349,38,140.00,SPECIAL CLEANS,18/04/13,
120413C,KNIGHTON CLEANING SERVICES LTD,34349,39,140.00,SPECIAL CLEANS,18/04/13,
120413C,KNIGHTON CLEANING SERVICES LTD,34349,40,140.00,SPECIAL CLEANS,18/04/13,
120413C,KNIGHTON CLEANING SERVICES LTD,34349,41,140.00,SPECIAL CLEANS,18/04/13,
120413C,KNIGHTON CLEANING SERVICES LTD,34350,1,150.00,SPECIAL CLEANS,18/04/13,"6,000.00"
120413C,KNIGHTON CLEANING SERVICES LTD,34350,2,150.00,SPECIAL CLEANS,18/04/13,
120413C,KNIGHTON CLEANING SERVICES LTD,34350,3,150.00,SPECIAL CLEANS,18/04/13,
120413C,KNIGHTON CLEANING SERVICES LTD,34350,4,150.00,SPECIAL CLEANS,18/04/13,
120413C,KNIGHTON CLEANING SERVICES LTD,34350,5,150.00,SPECIAL CLEANS,18/04/13,
120413C,KNIGHTON CLEANING SERVICES LTD,34350,6,150.00,SPECIAL CLEANS,18/04/13,
120413C,KNIGHTON CLEANING SERVICES LTD,34350,7,150.00,SPECIAL CLEANS,18/04/13,
120413C,KNIGHTON CLEANING SERVICES LTD,34350,8,150.00,SPECIAL CLEANS,18/04/13,
120413C,KNIGHTON CLEANING SERVICES LTD,34350,9,150.00,SPECIAL CLEANS,18/04/13,
120413C,KNIGHTON CLEANING SERVICES LTD,34350,10,150.00,SPECIAL CLEANS,18/04/13,
120413C,KNIGHTON CLEANING SERVICES LTD,34350,11,150.00,SPECIAL CLEANS,18/04/13,
120413C,KNIGHTON CLEANING SERVICES LTD,34350,12,150.00,SPECIAL CLEANS,18/04/13,
120413C,KNIGHTON CLEANING SERVICES LTD,34350,13,150.00,SPECIAL CLEANS,18/04/13,
120413C,KNIGHTON CLEANING SERVICES LTD,34350,14,150.00,SPECIAL CLEANS,18/04/13,
120413C,KNIGHTON CLEANING SERVICES LTD,34350,15,150.00,SPECIAL CLEANS,18/04/13,
120413C,KNIGHTON CLEANING SERVICES LTD,34350,16,150.00,SPECIAL CLEANS,18/04/13,
120413C,KNIGHTON CLEANING SERVICES LTD,34350,17,150.00,SPECIAL CLEANS,18/04/13,
120413C,KNIGHTON CLEANING SERVICES LTD,34350,18,150.00,SPECIAL CLEANS,18/04/13,
120413C,KNIGHTON CLEANING SERVICES LTD,34350,19,150.00,SPECIAL CLEANS,18/04/13,
120413C,KNIGHTON CLEANING SERVICES LTD,34350,20,150.00,SPECIAL CLEANS,18/04/13,
120413C,KNIGHTON CLEANING SERVICES LTD,34350,21,150.00,SPECIAL CLEANS,18/04/13,
120413C,KNIGHTON CLEANING SERVICES LTD,34350,22,150.00,SPECIAL CLEANS,18/04/13,
120413C,KNIGHTON CLEANING SERVICES LTD,34350,23,150.00,SPECIAL CLEANS,18/04/13,
120413C,KNIGHTON CLEANING SERVICES LTD,34350,24,150.00,SPECIAL CLEANS,18/04/13,
120413C,KNIGHTON CLEANING SERVICES LTD,34350,25,150.00,SPECIAL CLEANS,18/04/13,
120413C,KNIGHTON CLEANING SERVICES LTD,34350,26,150.00,SPECIAL CLEANS,18/04/13,
120413C,KNIGHTON CLEANING SERVICES LTD,34350,27,150.00,SPECIAL CLEANS,18/04/13,
120413C,KNIGHTON CLEANING SERVICES LTD,34350,28,150.00,SPECIAL CLEANS,18/04/13,
120413C,KNIGHTON CLEANING SERVICES LTD,34350,29,150.00,SPECIAL CLEANS,18/04/13,
120413C,KNIGHTON CLEANING SERVICES LTD,34350,30,150.00,SPECIAL CLEANS,18/04/13,
120413C,KNIGHTON CLEANING SERVICES LTD,34350,31,150.00,SPECIAL CLEANS,18/04/13,
120413C,KNIGHTON CLEANING SERVICES LTD,34350,32,150.00,SPECIAL CLEANS,18/04/13,
120413C,KNIGHTON CLEANING SERVICES LTD,34350,33,150.00,SPECIAL CLEANS,18/04/13,
120413C,KNIGHTON CLEANING SERVICES LTD,34350,34,150.00,SPECIAL CLEANS,18/04/13,
120413C,KNIGHTON CLEANING SERVICES LTD,34350,35,150.00,SPECIAL CLEANS,18/04/13,
120413C,KNIGHTON CLEANING SERVICES LTD,34350,36,150.00,SPECIAL CLEANS,18/04/13,
120413C,KNIGHTON CLEANING SERVICES LTD,34350,37,150.00,SPECIAL CLEANS,18/04/13,
120413C,KNIGHTON CLEANING SERVICES LTD,34350,38,150.00,SPECIAL CLEANS,18/04/13,
120413C,KNIGHTON CLEANING SERVICES LTD,34350,39,150.00,SPECIAL CLEANS,18/04/13,
120413C,KNIGHTON CLEANING SERVICES LTD,34350,40,150.00,SPECIAL CLEANS,18/04/13,
120413C,KNIGHTON CLEANING SERVICES LTD,34401,1,"2,581.33",GENERAL CLEANS,18/04/13,"106,176.98"
120413C,KNIGHTON CLEANING SERVICES LTD,34401,2,"2,454.22",GENERAL CLEANS,18/04/13,
120413C,KNIGHTON CLEANING SERVICES LTD,34401,3,"1,732.86",GENERAL CLEANS,18/04/13,
120413C,KNIGHTON CLEANING SERVICES LTD,34401,4,"1,155.69",GENERAL CLEANS,18/04/13,
120413C,KNIGHTON CLEANING SERVICES LTD,34401,5,"1,379.62",GENERAL CLEANS,18/04/13,
120413C,KNIGHTON CLEANING SERVICES LTD,34401,6,940.90,GENERAL CLEANS,18/04/13,
120413C,KNIGHTON CLEANING SERVICES LTD,34401,7,"1,400.94",GENERAL CLEANS,18/04/13,
120413C,KNIGHTON CLEANING SERVICES LTD,34401,8,"1,266.84",GENERAL CLEANS,18/04/13,
120413C,KNIGHTON CLEANING SERVICES LTD,34401,9,910.42,GENERAL CLEANS,18/04/13,
120413C,KNIGHTON CLEANING SERVICES LTD,34401,10,962.77,GENERAL CLEANS,18/04/13,
120413C,KNIGHTON CLEANING SERVICES LTD,34401,11,"2,243.51",GENERAL CLEANS,18/04/13,
120413C,KNIGHTON CLEANING SERVICES LTD,34401,12,"1,407.56",GENERAL CLEANS,18/04/13,
120413C,KNIGHTON CLEANING SERVICES LTD,34401,13,"1,514.77",GENERAL CLEANS,18/04/13,
120413C,KNIGHTON CLEANING SERVICES LTD,34401,14,"1,276.42",GENERAL CLEANS,18/04/13,
120413C,KNIGHTON CLEANING SERVICES LTD,34401,15,"2,306.76",GENERAL CLEANS,18/04/13,
120413C,KNIGHTON CLEANING SERVICES LTD,34401,16,"2,771.22",GENERAL CLEANS,18/04/13,
120413C,KNIGHTON CLEANING SERVICES LTD,34401,17,915.16,GENERAL CLEANS,18/04/13,
120413C,KNIGHTON CLEANING SERVICES LTD,34401,18,"1,752.23",GENERAL CLEANS,18/04/13,
120413C,KNIGHTON CLEANING SERVICES LTD,34401,19,914.58,GENERAL CLEANS,18/04/13,
120413C,KNIGHTON CLEANING SERVICES LTD,34401,20,"1,816.79",GENERAL CLEANS,18/04/13,
120413C,KNIGHTON CLEANING SERVICES LTD,34401,21,"2,165.07",GENERAL CLEANS,18/04/13,
120413C,KNIGHTON CLEANING SERVICES LTD,34401,22,898.83,GENERAL CLEANS,18/04/13,
120413C,KNIGHTON CLEANING SERVICES LTD,34401,23,"2,814.27",GENERAL CLEANS,18/04/13,
120413C,KNIGHTON CLEANING SERVICES LTD,34401,24,"2,235.16",GENERAL CLEANS,18/04/13,
120413C,KNIGHTON CLEANING SERVICES LTD,34401,25,"1,136.33",GENERAL CLEANS,18/04/13,
120413C,KNIGHTON CLEANING SERVICES LTD,34401,26,"1,137.72",GENERAL CLEANS,18/04/13,
120413C,KNIGHTON CLEANING SERVICES LTD,34401,27,"1,281.29",GENERAL CLEANS,18/04/13,
120413C,KNIGHTON CLEANING SERVICES LTD,34401,28,"2,119.50",GENERAL CLEANS,18/04/13,
120413C,KNIGHTON CLEANING SERVICES LTD,34401,29,"1,280.70",GENERAL CLEANS,18/04/13,
120413C,KNIGHTON CLEANING SERVICES LTD,34401,30,974.14,GENERAL CLEANS,18/04/13,
120413C,KNIGHTON CLEANING SERVICES LTD,34401,31,"1,174.56",GENERAL CLEANS,18/04/13,
120413C,KNIGHTON CLEANING SERVICES LTD,34401,32,"1,644.19",GENERAL CLEANS,18/04/13,
120413C,KNIGHTON CLEANING SERVICES LTD,34401,33,922.90,GENERAL CLEANS,18/04/13,
120413C,KNIGHTON CLEANING SERVICES LTD,34401,34,"1,946.37",GENERAL CLEANS,18/04/13,
120413C,KNIGHTON CLEANING SERVICES LTD,34401,35,"1,524.10",GENERAL CLEANS,18/04/13,
120413C,KNIGHTON CLEANING SERVICES LTD,34401,36,"1,702.92",GENERAL CLEANS,18/04/13,
120413C,KNIGHTON CLEANING SERVICES LTD,34401,37,934.81,GENERAL CLEANS,18/04/13,
120413C,KNIGHTON CLEANING SERVICES LTD,34401,38,"1,028.50",GENERAL CLEANS,18/04/13,
120413C,KNIGHTON CLEANING SERVICES LTD,34401,39,"1,030.04",GENERAL CLEANS,18/04/13,
120413C,KNIGHTON CLEANING SERVICES LTD,34401,40,"1,143.64",GENERAL CLEANS,18/04/13,
120413C,KNIGHTON CLEANING SERVICES LTD,34401,41,"1,162.33",GENERAL CLEANS,18/04/13,
120413C,KNIGHTON CLEANING SERVICES LTD,34401,42,792.08,GENERAL CLEANS,18/04/13,
120413C,KNIGHTON CLEANING SERVICES LTD,34401,43,"1,815.00",GENERAL CLEANS,18/04/13,
120413C,KNIGHTON CLEANING SERVICES LTD,34401,44,"1,646.06",GENERAL CLEANS,18/04/13,
120413C,KNIGHTON CLEANING SERVICES LTD,34401,45,"1,155.16",GENERAL CLEANS,18/04/13,
120413C,KNIGHTON CLEANING SERVICES LTD,34401,46,"3,380.88",GENERAL CLEANS,18/04/13,
120413C,KNIGHTON CLEANING SERVICES LTD,34401,47,"1,265.06",GENERAL CLEANS,18/04/13,
120413C,KNIGHTON CLEANING SERVICES LTD,34401,48,"1,900.80",GENERAL CLEANS,18/04/13,
120413C,KNIGHTON CLEANING SERVICES LTD,34401,49,"1,279.97",GENERAL CLEANS,18/04/13,
120413C,KNIGHTON CLEANING SERVICES LTD,34401,50,"1,246.08",GENERAL CLEANS,18/04/13,
120413C,KNIGHTON CLEANING SERVICES LTD,34401,51,"1,153.76",GENERAL CLEANS,18/04/13,
120413C,KNIGHTON CLEANING SERVICES LTD,34401,52,"1,546.69",GENERAL CLEANS,18/04/13,
120413C,KNIGHTON CLEANING SERVICES LTD,34401,53,"2,674.18",GENERAL CLEANS,18/04/13,
120413C,KNIGHTON CLEANING SERVICES LTD,34401,54,"1,026.34",GENERAL CLEANS,18/04/13,
120413C,KNIGHTON CLEANING SERVICES LTD,34401,55,"2,264.70",GENERAL CLEANS,18/04/13,
120413C,KNIGHTON CLEANING SERVICES LTD,34401,56,"1,045.77",GENERAL CLEANS,18/04/13,
120413C,KNIGHTON CLEANING SERVICES LTD,34401,57,813.57,GENERAL CLEANS,18/04/13,
120413C,KNIGHTON CLEANING SERVICES LTD,34401,58,805.25,GENERAL CLEANS,18/04/13,
120413C,KNIGHTON CLEANING SERVICES LTD,34401,59,941.48,GENERAL CLEANS,18/04/13,
120413C,KNIGHTON CLEANING SERVICES LTD,34401,60,"2,831.29",GENERAL CLEANS,18/04/13,
120413C,KNIGHTON CLEANING SERVICES LTD,34401,61,"1,094.28",GENERAL CLEANS,18/04/13,
120413C,KNIGHTON CLEANING SERVICES LTD,34401,62,"1,845.58",GENERAL CLEANS,18/04/13,
120413C,KNIGHTON CLEANING SERVICES LTD,34401,63,"3,184.58",GENERAL CLEANS,18/04/13,
120413C,KNIGHTON CLEANING SERVICES LTD,34401,64,920.28,GENERAL CLEANS,18/04/13,
120413C,KNIGHTON CLEANING SERVICES LTD,34401,65,772.17,GENERAL CLEANS,18/04/13,
120413C,KNIGHTON CLEANING SERVICES LTD,34401,66,"1,813.75",GENERAL CLEANS,18/04/13,
120413C,KNIGHTON CLEANING SERVICES LTD,34401,67,"1,267.13",GENERAL CLEANS,18/04/13,
120413C,KNIGHTON CLEANING SERVICES LTD,34401,68,961.70,GENERAL CLEANS,18/04/13,
120413C,KNIGHTON CLEANING SERVICES LTD,34401,69,"1,239.88",GENERAL CLEANS,18/04/13,
120413C,KNIGHTON CLEANING SERVICES LTD,34401,70,"1,531.55",GENERAL CLEANS,18/04/13,
120413C,KNIGHTON CLEANING SERVICES LTD,34402,1,"1,159.15",GENERAL CLEANS,18/04/13,"88,125.66"
120413C,KNIGHTON CLEANING SERVICES LTD,34402,2,"1,256.77",GENERAL CLEANS,18/04/13,
120413C,KNIGHTON CLEANING SERVICES LTD,34402,3,"1,178.92",GENERAL CLEANS,18/04/13,
120413C,KNIGHTON CLEANING SERVICES LTD,34402,4,"1,432.68",GENERAL CLEANS,18/04/13,
120413C,KNIGHTON CLEANING SERVICES LTD,34402,5,679.24,GENERAL CLEANS,18/04/13,
120413C,KNIGHTON CLEANING SERVICES LTD,34402,6,"1,634.76",GENERAL CLEANS,18/04/13,
120413C,KNIGHTON CLEANING SERVICES LTD,34402,7,"2,386.68",GENERAL CLEANS,18/04/13,
120413C,KNIGHTON CLEANING SERVICES LTD,34402,8,"2,391.08",GENERAL CLEANS,18/04/13,
120413C,KNIGHTON CLEANING SERVICES LTD,34402,9,"3,768.61",GENERAL CLEANS,18/04/13,
120413C,KNIGHTON CLEANING SERVICES LTD,34402,10,"1,181.45",GENERAL CLEANS,18/04/13,
120413C,KNIGHTON CLEANING SERVICES LTD,34402,11,"1,016.09",GENERAL CLEANS,18/04/13,
120413C,KNIGHTON CLEANING SERVICES LTD,34402,12,"1,297.70",GENERAL CLEANS,18/04/13,
120413C,KNIGHTON CLEANING SERVICES LTD,34402,13,"1,441.58",GENERAL CLEANS,18/04/13,
120413C,KNIGHTON CLEANING SERVICES LTD,34402,14,"1,188.89",GENERAL CLEANS,18/04/13,
120413C,KNIGHTON CLEANING SERVICES LTD,34402,15,"1,233.66",GENERAL CLEANS,18/04/13,
120413C,KNIGHTON CLEANING SERVICES LTD,34402,16,"1,255.31",GENERAL CLEANS,18/04/13,
120413C,KNIGHTON CLEANING SERVICES LTD,34402,17,"1,676.35",GENERAL CLEANS,18/04/13,
120413C,KNIGHTON CLEANING SERVICES LTD,34402,18,"1,343.82",GENERAL CLEANS,18/04/13,
120413C,KNIGHTON CLEANING SERVICES LTD,34402,19,673.87,GENERAL CLEANS,18/04/13,
120413C,KNIGHTON CLEANING SERVICES LTD,34402,20,"13,681.29",GENERAL CLEANS,18/04/13,
120413C,KNIGHTON CLEANING SERVICES LTD,34402,21,"1,349.12",GENERAL CLEANS,18/04/13,
120413C,KNIGHTON CLEANING SERVICES LTD,34402,22,485.71,GENERAL CLEANS,18/04/13,
120413C,KNIGHTON CLEANING SERVICES LTD,34402,23,"1,785.33",GENERAL CLEANS,18/04/13,
120413C,KNIGHTON CLEANING SERVICES LTD,34402,24,"3,713.63",GENERAL CLEANS,18/04/13,
120413C,KNIGHTON CLEANING SERVICES LTD,34402,25,711.13,GENERAL CLEANS,18/04/13,
120413C,KNIGHTON CLEANING SERVICES LTD,34402,26,"2,021.05",GENERAL CLEANS,18/04/13,
120413C,KNIGHTON CLEANING SERVICES LTD,34402,27,974.76,GENERAL CLEANS,18/04/13,
120413C,KNIGHTON CLEANING SERVICES LTD,34402,28,"1,508.95",GENERAL CLEANS,18/04/13,
120413C,KNIGHTON CLEANING SERVICES LTD,34402,29,"1,541.10",GENERAL CLEANS,18/04/13,
120413C,KNIGHTON CLEANING SERVICES LTD,34402,30,"1,049.89",GENERAL CLEANS,18/04/13,
120413C,KNIGHTON CLEANING SERVICES LTD,34402,31,"2,309.31",GENERAL CLEANS,18/04/13,
120413C,KNIGHTON CLEANING SERVICES LTD,34402,32,"1,451.49",GENERAL CLEANS,18/04/13,
120413C,KNIGHTON CLEANING SERVICES LTD,34402,33,"1,072.57",GENERAL CLEANS,18/04/13,
120413C,KNIGHTON CLEANING SERVICES LTD,34402,34,"1,359.11",GENERAL CLEANS,18/04/13,
120413C,KNIGHTON CLEANING SERVICES LTD,34402,35,"1,436.46",GENERAL CLEANS,18/04/13,
120413C,KNIGHTON CLEANING SERVICES LTD,34402,36,"9,086.16",GENERAL CLEANS,18/04/13,
120413C,KNIGHTON CLEANING SERVICES LTD,34402,37,858.79,GENERAL CLEANS,18/04/13,
120413C,KNIGHTON CLEANING SERVICES LTD,34402,38,"1,085.29",GENERAL CLEANS,18/04/13,
120413C,KNIGHTON CLEANING SERVICES LTD,34402,39,"2,182.38",GENERAL CLEANS,18/04/13,
120413C,KNIGHTON CLEANING SERVICES LTD,34402,40,"1,234.73",GENERAL CLEANS,18/04/13,
120413C,KNIGHTON CLEANING SERVICES LTD,34402,41,945.62,GENERAL CLEANS,18/04/13,
120413C,KNIGHTON CLEANING SERVICES LTD,34402,42,"1,848.17",GENERAL CLEANS,18/04/13,
120413C,KNIGHTON CLEANING SERVICES LTD,34402,43,"1,519.80",GENERAL CLEANS,18/04/13,
120413C,KNIGHTON CLEANING SERVICES LTD,34402,44,"1,514.75",GENERAL CLEANS,18/04/13,
120413C,KNIGHTON CLEANING SERVICES LTD,34402,45,"1,421.86",GENERAL CLEANS,18/04/13,
120413C,KNIGHTON CLEANING SERVICES LTD,34402,46,"1,188.29",GENERAL CLEANS,18/04/13,
120413C,KNIGHTON CLEANING SERVICES LTD,34402,47,592.31,GENERAL CLEANS,18/04/13,
140172,OPHTHALMIC TECHNOLOGIES LTD,34534,1,"1,660.42",MEDICAL EXPENSES,18/04/13,"1,660.42"
120413C,SPORTSAFE UK LTD==============,443585,1,51.80,GYM EQUIPMENT,18/04/13,360.80
120413C,SPORTSAFE UK LTD==============,443585,2,125.00,GYM EQUIPMENT,18/04/13,
120413C,SPORTSAFE UK LTD==============,443585,3,184.00,GYM EQUIPMENT,18/04/13,
120413C,SPORTSAFE UK LTD==============,443627,1,98.00,GYM EQUIPMENT,18/04/13,572.07
120413C,SPORTSAFE UK LTD==============,443627,2,66.25,GYM EQUIPMENT,18/04/13,
120413C,SPORTSAFE UK LTD==============,443627,3,13.90,GYM EQUIPMENT,18/04/13,
120413C,SPORTSAFE UK LTD==============,443627,4,92.00,GYM EQUIPMENT,18/04/13,
120413C,SPORTSAFE UK LTD==============,443627,5,19.92,GYM EQUIPMENT,18/04/13,
120413C,SPORTSAFE UK LTD==============,443627,6,184.00,GYM EQUIPMENT,18/04/13,
120413C,SPORTSAFE UK LTD==============,443627,7,98.00,GYM EQUIPMENT,18/04/13,
150413C,R J HOLLAND LTD===============,4607,1,"8,781.00",STRATEGIC (NON CYCLICAL),18/04/13,"9,699.00"
150413C,R J HOLLAND LTD===============,4607,2,918.00,STRATEGIC (NON CYCLICAL),18/04/13,
150413C,R J HOLLAND LTD===============,4707,1,"2,105.00",OPERATIONAL EQUIP-PURCHASE,18/04/13,"7,719.00"
150413C,R J HOLLAND LTD===============,4707,2,"2,105.00",OPERATIONAL EQUIP-PURCHASE,18/04/13,
150413C,R J HOLLAND LTD===============,4707,3,"3,509.00",OPERATIONAL EQUIP-PURCHASE,18/04/13,
150413H,CORE SURVEYSLTD===============,4960,1,750.00,DEVELOPMENT  EXPENSES-CONTRACT,18/04/13,750.00
120413C,URS SCOTT WILSON LIMITED,5396401,1,"2,651.36",PROF FEES-MISCELLANEOUS,18/04/13,"2,651.36"
120413C,URS SCOTT WILSON LIMITED,5461123,1,703.77,STRATEGIC (NON CYCLICAL),18/04/13,703.77
120413C,URS SCOTT WILSON LIMITED,5461650,1,"1,136.74",STRATEGIC (NON CYCLICAL),18/04/13,"1,136.74"
120413C,URS SCOTT WILSON LIMITED,5461703,1,729.70,STRATEGIC (NON CYCLICAL),18/04/13,729.70
120413C,INDEC BECKENHAM LTD===========,5534,1,"2,900.00",DEVELOPMENT  EXPENSES-CONTRACT,18/04/13,"2,900.00"
140172,THAMES WATER UTILITIES LTD====,5552098535E,1,696.46,WATER & SEWERAGE RATES,18/04/13,696.46
150413C,SOLACE========================,5725,1,485.00,PROFESSIONAL DEVELOPMENT,18/04/13,845.00
150413C,SOLACE========================,5725,2,360.00,PROFESSIONAL DEVELOPMENT,18/04/13,
140172,EDF ENERGY CUST. FIELD SERVICE,600004041,1,432.00,ELECTRICITY,18/04/13,432.00
140172,EDF ENERGY CUST. FIELD SERVICE,600004042,1,432.00,ELECTRICITY,18/04/13,432.00
140172,EDF ENERGY CUST. FIELD SERVICE,600004043,1,432.00,ELECTRICITY,18/04/13,432.00
110413H,GAS & AIR SERVICES (UK)=======,6056,1,"1,321.42",REPAIR & MAINTENANCE,18/04/13,"1,321.42"
140172,THAMES WATER UTILITIES LTD====,6366176423D,1,"2,467.27",WATER & SEWERAGE RATES,18/04/13,"2,467.27"
150413C,MOORE STEPHENS CONSULTING LTD=,67312,1,"6,500.00",MAINTENANCE & SUPPORT,18/04/13,"6,500.00"
120413C,MOORE STEPHENS CONSULTING LTD=,673166,1,"2,000.00",CONSULTANTS,18/04/13,"3,500.00"
120413C,MOORE STEPHENS CONSULTING LTD=,673166,2,250.00,CONSULTANTS,18/04/13,
120413C,MOORE STEPHENS CONSULTING LTD=,673166,3,750.00,CONSULTANTS,18/04/13,
120413C,MOORE STEPHENS CONSULTING LTD=,673166,4,500.00,CONSULTANTS,18/04/13,
120413C,SWEETT  UK LTD,7022592,1,"1,800.00",STRATEGIC (NON CYCLICAL),18/04/13,"1,800.00"
120413C,SWEETT  UK LTD,7022706,1,"6,935.00",PROF FEES-MISCELLANEOUS,18/04/13,"6,935.00"
120413C,SWEETT  UK LTD,7022708,1,"7,235.00",PROF FEES-MISCELLANEOUS,18/04/13,"7,235.00"
120413C,SWEETT  UK LTD,7022709,1,"6,635.00",PROF FEES-MISCELLANEOUS,18/04/13,"6,635.00"
120413C,SWEETT  UK LTD,7022711,1,"6,035.00",PROF FEES-MISCELLANEOUS,18/04/13,"6,035.00"
120413C,SWEETT  UK LTD,7023101,1,900.00,STRATEGIC (NON CYCLICAL),18/04/13,900.00
140172,THAMES WATER UTILITIES LTD====,7216970523B,1,395.66,WATER & SEWERAGE RATES,18/04/13,395.66
140178,THOMPSONS SOLICITORS==========,9010,1,"5,600.00",CLAIMANT COSTS AGREED,18/04/13,"5,600.00"
110413H,DRAEGER SAFETY UK LIMITED=====,90408615,1,52.91,PROTECTIVE EQUIPT - PARTS,18/04/13,749.41
110413H,DRAEGER SAFETY UK LIMITED=====,90408615,2,141.00,PROTECTIVE EQUIPT - PARTS,18/04/13,
110413H,DRAEGER SAFETY UK LIMITED=====,90408615,3,555.50,PROTECTIVE EQUIPT - PARTS,18/04/13,
110413H,DRAEGER SAFETY UK LIMITED=====,90408634,1,253.35,PROTECTIVE EQUIPT - PARTS,18/04/13,253.35
110413H,DRAEGER SAFETY UK LIMITED=====,90408738,1,"1,289.77",PROTECTIVE EQUIPT - PARTS,18/04/13,"1,289.77"
110413H,DRAEGER SAFETY UK LIMITED=====,90408739,1,"1,289.80",PROTECTIVE EQUIPT - PARTS,18/04/13,"1,289.80"
110413H,DRAEGER SAFETY UK LIMITED=====,90408785,1,"3,224.50",PROTECTIVE EQUIPT - PARTS,18/04/13,"3,224.50"
110413H,DRAEGER SAFETY UK LIMITED=====,90408846,1,20.00,PROTECTIVE EQUIPT - PARTS,18/04/13,488.48
110413H,DRAEGER SAFETY UK LIMITED=====,90408846,2,468.48,PROTECTIVE EQUIPT - PARTS,18/04/13,
150413C,NORTHUMBRIAN WATER LTD========,912878878,1,301.00,CURRENT HYDRANT COSTS,18/04/13,301.00
150413C,NORTHUMBRIAN WATER LTD========,912878886,1,893.00,CURRENT HYDRANT COSTS,18/04/13,893.00
150413C,NORTHUMBRIAN WATER LTD========,912878894,1,316.00,CURRENT HYDRANT COSTS,18/04/13,316.00
150413C,NORTHUMBRIAN WATER LTD========,912878959,1,344.00,CURRENT HYDRANT COSTS,18/04/13,344.00
150413C,NORTHUMBRIAN WATER LTD========,912878991,1,893.00,CURRENT HYDRANT COSTS,18/04/13,893.00
150413C,NORTHUMBRIAN WATER LTD========,912879009,1,893.00,CURRENT HYDRANT COSTS,18/04/13,893.00
800018426,*GET YOURSELF NOTICED LTD,9508,1,"1,490.00",OPERATIONAL EQUIP-PURCHASE,18/04/13,"1,490.00"
150413H,REAM CONTRACTS LTD============,9829,1,"7,857.37",DEVELOPMENT  EXPENSES-CONTRACT,18/04/13,"7,857.37"
120413C,BRISTOL UNIFORMS LTD==========,BC-01-12-S1109,1,404.34,CLOTHING,18/04/13,404.34
120413C,E&S B DAVIS LTD,DAV/41700,1,360.00,OPERATIONAL EQUIP-PURCHASE,18/04/13,360.00
160413G,FOOTPRINT UNIFORMS============,F3995,1,69.00,CLOTHING,18/04/13,322.00
160413G,FOOTPRINT UNIFORMS============,F3995,2,253.00,CLOTHING,18/04/13,
120413C,ERNST AND YOUNG,GB10100045031,1,"22,494.00",EXTERNAL AUDIT,18/04/13,"22,494.00"
160413G,WM ENGINEERING SERVICES LTD===,I-4442,1,261.00,TACTICAL DAY TO DAY,18/04/13,261.00
120413C,WM ENGINEERING SERVICES LTD===,I-4445,1,268.20,TACTICAL DAY TO DAY,18/04/13,268.20
110413H,WM ENGINEERING SERVICES LTD===,I-4486,1,263.00,TACTICAL DAY TO DAY,18/04/13,263.00
120413C,BENNETT MECHANICAL SERVICES LT,L4847,1,"55,518.00",DEVELOPMENT  EXPENSES-CONTRACT,18/04/13,"55,518.00"
150413C,ALLSTAR BUSINESS SOLUTIONS LTD,P2000618375,1,166.04,FUEL,18/04/13,"21,707.21"
150413C,ALLSTAR BUSINESS SOLUTIONS LTD,P2000618375,2,104.48,FUEL,18/04/13,
150413C,ALLSTAR BUSINESS SOLUTIONS LTD,P2000618375,3,123.34,FUEL,18/04/13,
150413C,ALLSTAR BUSINESS SOLUTIONS LTD,P2000618375,4,286.28,FUEL,18/04/13,
150413C,ALLSTAR BUSINESS SOLUTIONS LTD,P2000618375,5,199.28,FUEL,18/04/13,
150413C,ALLSTAR BUSINESS SOLUTIONS LTD,P2000618375,6,131.85,FUEL,18/04/13,
150413C,ALLSTAR BUSINESS SOLUTIONS LTD,P2000618375,7,111.28,FUEL,18/04/13,
150413C,ALLSTAR BUSINESS SOLUTIONS LTD,P2000618375,8,260.21,FUEL,18/04/13,
150413C,ALLSTAR BUSINESS SOLUTIONS LTD,P2000618375,9,140.80,FUEL,18/04/13,
150413C,ALLSTAR BUSINESS SOLUTIONS LTD,P2000618375,10,230.58,FUEL,18/04/13,
150413C,ALLSTAR BUSINESS SOLUTIONS LTD,P2000618375,11,393.87,FUEL,18/04/13,
150413C,ALLSTAR BUSINESS SOLUTIONS LTD,P2000618375,12,634.27,FUEL,18/04/13,
150413C,ALLSTAR BUSINESS SOLUTIONS LTD,P2000618375,13,256.09,FUEL,18/04/13,
150413C,ALLSTAR BUSINESS SOLUTIONS LTD,P2000618375,14,221.09,FUEL,18/04/13,
150413C,ALLSTAR BUSINESS SOLUTIONS LTD,P2000618375,15,185.11,FUEL,18/04/13,
150413C,ALLSTAR BUSINESS SOLUTIONS LTD,P2000618375,16,615.91,FUEL,18/04/13,
150413C,ALLSTAR BUSINESS SOLUTIONS LTD,P2000618375,17,80.32,FUEL,18/04/13,
150413C,ALLSTAR BUSINESS SOLUTIONS LTD,P2000618375,18,72.30,FUEL,18/04/13,
150413C,ALLSTAR BUSINESS SOLUTIONS LTD,P2000618375,19,62.75,FUEL,18/04/13,
150413C,ALLSTAR BUSINESS SOLUTIONS LTD,P2000618375,20,102.96,FUEL,18/04/13,
150413C,ALLSTAR BUSINESS SOLUTIONS LTD,P2000618375,21,158.71,FUEL,18/04/13,
150413C,ALLSTAR BUSINESS SOLUTIONS LTD,P2000618375,22,327.86,FUEL,18/04/13,
150413C,ALLSTAR BUSINESS SOLUTIONS LTD,P2000618375,23,166.30,FUEL,18/04/13,
150413C,ALLSTAR BUSINESS SOLUTIONS LTD,P2000618375,24,236.44,FUEL,18/04/13,
150413C,ALLSTAR BUSINESS SOLUTIONS LTD,P2000618375,25,202.07,FUEL,18/04/13,
150413C,ALLSTAR BUSINESS SOLUTIONS LTD,P2000618375,26,194.98,FUEL,18/04/13,
150413C,ALLSTAR BUSINESS SOLUTIONS LTD,P2000618375,27,141.56,FUEL,18/04/13,
150413C,ALLSTAR BUSINESS SOLUTIONS LTD,P2000618375,28,286.00,FUEL,18/04/13,
150413C,ALLSTAR BUSINESS SOLUTIONS LTD,P2000618375,29,281.52,FUEL,18/04/13,
150413C,ALLSTAR BUSINESS SOLUTIONS LTD,P2000618375,30,214.83,FUEL,18/04/13,
150413C,ALLSTAR BUSINESS SOLUTIONS LTD,P2000618375,31,446.76,FUEL,18/04/13,
150413C,ALLSTAR BUSINESS SOLUTIONS LTD,P2000618375,32,320.10,FUEL,18/04/13,
150413C,ALLSTAR BUSINESS SOLUTIONS LTD,P2000618375,33,339.83,FUEL,18/04/13,
150413C,ALLSTAR BUSINESS SOLUTIONS LTD,P2000618375,34,439.37,FUEL,18/04/13,
150413C,ALLSTAR BUSINESS SOLUTIONS LTD,P2000618375,35,571.12,FUEL,18/04/13,
150413C,ALLSTAR BUSINESS SOLUTIONS LTD,P2000618375,36,90.56,FUEL,18/04/13,
150413C,ALLSTAR BUSINESS SOLUTIONS LTD,P2000618375,37,341.39,FUEL,18/04/13,
150413C,ALLSTAR BUSINESS SOLUTIONS LTD,P2000618375,38,102.12,FUEL,18/04/13,
150413C,ALLSTAR BUSINESS SOLUTIONS LTD,P2000618375,39,138.97,FUEL,18/04/13,
150413C,ALLSTAR BUSINESS SOLUTIONS LTD,P2000618375,40,617.29,FUEL,18/04/13,
150413C,ALLSTAR BUSINESS SOLUTIONS LTD,P2000618375,41,114.65,FUEL,18/04/13,
150413C,ALLSTAR BUSINESS SOLUTIONS LTD,P2000618375,42,166.08,FUEL,18/04/13,
150413C,ALLSTAR BUSINESS SOLUTIONS LTD,P2000618375,43,206.36,FUEL,18/04/13,
150413C,ALLSTAR BUSINESS SOLUTIONS LTD,P2000618375,44,242.24,FUEL,18/04/13,
150413C,ALLSTAR BUSINESS SOLUTIONS LTD,P2000618375,45,99.21,FUEL,18/04/13,
150413C,ALLSTAR BUSINESS SOLUTIONS LTD,P2000618375,46,234.06,FUEL,18/04/13,
150413C,ALLSTAR BUSINESS SOLUTIONS LTD,P2000618375,47,248.41,FUEL,18/04/13,
150413C,ALLSTAR BUSINESS SOLUTIONS LTD,P2000618375,48,128.54,FUEL,18/04/13,
150413C,ALLSTAR BUSINESS SOLUTIONS LTD,P2000618375,49,159.77,FUEL,18/04/13,
150413C,ALLSTAR BUSINESS SOLUTIONS LTD,P2000618375,50,109.39,FUEL,18/04/13,
150413C,ALLSTAR BUSINESS SOLUTIONS LTD,P2000618375,51,354.23,FUEL,18/04/13,
150413C,ALLSTAR BUSINESS SOLUTIONS LTD,P2000618375,52,202.92,FUEL,18/04/13,
150413C,ALLSTAR BUSINESS SOLUTIONS LTD,P2000618375,53,373.52,FUEL,18/04/13,
150413C,ALLSTAR BUSINESS SOLUTIONS LTD,P2000618375,54,414.48,FUEL,18/04/13,
150413C,ALLSTAR BUSINESS SOLUTIONS LTD,P2000618375,55,258.28,FUEL,18/04/13,
150413C,ALLSTAR BUSINESS SOLUTIONS LTD,P2000618375,56,233.15,FUEL,18/04/13,
150413C,ALLSTAR BUSINESS SOLUTIONS LTD,P2000618375,57,61.68,FUEL,18/04/13,
150413C,ALLSTAR BUSINESS SOLUTIONS LTD,P2000618375,58,248.88,FUEL,18/04/13,
150413C,ALLSTAR BUSINESS SOLUTIONS LTD,P2000618375,59,111.52,FUEL,18/04/13,
150413C,ALLSTAR BUSINESS SOLUTIONS LTD,P2000618375,60,329.08,FUEL,18/04/13,
150413C,ALLSTAR BUSINESS SOLUTIONS LTD,P2000618375,61,113.00,FUEL,18/04/13,
150413C,ALLSTAR BUSINESS SOLUTIONS LTD,P2000618375,62,123.62,FUEL,18/04/13,
150413C,ALLSTAR BUSINESS SOLUTIONS LTD,P2000618375,63,326.38,FUEL,18/04/13,
150413C,ALLSTAR BUSINESS SOLUTIONS LTD,P2000618375,64,97.73,FUEL,18/04/13,
150413C,ALLSTAR BUSINESS SOLUTIONS LTD,P2000618375,65,151.73,FUEL,18/04/13,
150413C,ALLSTAR BUSINESS SOLUTIONS LTD,P2000618375,66,111.64,FUEL,18/04/13,
150413C,ALLSTAR BUSINESS SOLUTIONS LTD,P2000618375,67,129.18,FUEL,18/04/13,
150413C,ALLSTAR BUSINESS SOLUTIONS LTD,P2000618375,68,72.76,FUEL,18/04/13,
150413C,ALLSTAR BUSINESS SOLUTIONS LTD,P2000618375,69,76.47,FUEL,18/04/13,
150413C,ALLSTAR BUSINESS SOLUTIONS LTD,P2000618375,70,83.33,FUEL,18/04/13,
150413C,ALLSTAR BUSINESS SOLUTIONS LTD,P2000618375,71,141.97,FUEL,18/04/13,
150413C,ALLSTAR BUSINESS SOLUTIONS LTD,P2000618375,72,178.13,FUEL,18/04/13,
150413C,ALLSTAR BUSINESS SOLUTIONS LTD,P2000618375,73,251.98,FUEL,18/04/13,
150413C,ALLSTAR BUSINESS SOLUTIONS LTD,P2000618375,74,969.34,FUEL,18/04/13,
150413C,ALLSTAR BUSINESS SOLUTIONS LTD,P2000618375,75,89.06,FUEL,18/04/13,
150413C,ALLSTAR BUSINESS SOLUTIONS LTD,P2000618375,76,200.15,FUEL,18/04/13,
150413C,ALLSTAR BUSINESS SOLUTIONS LTD,P2000618375,77,70.86,FUEL,18/04/13,
150413C,ALLSTAR BUSINESS SOLUTIONS LTD,P2000618375,78,140.26,FUEL,18/04/13,
150413C,ALLSTAR BUSINESS SOLUTIONS LTD,P2000618375,79,41.78,FUEL,18/04/13,
150413C,ALLSTAR BUSINESS SOLUTIONS LTD,P2000618375,80,190.68,FUEL,18/04/13,
150413C,ALLSTAR BUSINESS SOLUTIONS LTD,P2000618375,81,71.79,FUEL,18/04/13,
150413C,ALLSTAR BUSINESS SOLUTIONS LTD,P2000618375,82,267.52,FUEL,18/04/13,
150413C,ALLSTAR BUSINESS SOLUTIONS LTD,P2000618375,83,182.47,FUEL,18/04/13,
150413C,ALLSTAR BUSINESS SOLUTIONS LTD,P2000618375,84,121.30,FUEL,18/04/13,
150413C,ALLSTAR BUSINESS SOLUTIONS LTD,P2000618375,85,316.29,FUEL,18/04/13,
150413C,ALLSTAR BUSINESS SOLUTIONS LTD,P2000618375,86,41.67,FUEL,18/04/13,
150413C,ALLSTAR BUSINESS SOLUTIONS LTD,P2000618375,87,164.58,FUEL,18/04/13,
150413C,ALLSTAR BUSINESS SOLUTIONS LTD,P2000618375,88,48.30,FUEL,18/04/13,
150413C,ALLSTAR BUSINESS SOLUTIONS LTD,P2000618375,89,105.33,FUEL,18/04/13,
150413C,ALLSTAR BUSINESS SOLUTIONS LTD,P2000618375,90,75.00,FUEL,18/04/13,
150413C,ALLSTAR BUSINESS SOLUTIONS LTD,P2000618375,91,38.82,FUEL,18/04/13,
150413C,ALLSTAR BUSINESS SOLUTIONS LTD,P2000618375,92,95.75,FUEL,18/04/13,
150413C,ALLSTAR BUSINESS SOLUTIONS LTD,P2000618375,93,289.37,FUEL,18/04/13,
150413C,ALLSTAR BUSINESS SOLUTIONS LTD,P2000618375,94,39.23,FUEL,18/04/13,
150413C,ALLSTAR BUSINESS SOLUTIONS LTD,P2000618375,95,7.71,FUEL,18/04/13,
150413C,ALLSTAR BUSINESS SOLUTIONS LTD,P2000618375,96,137.09,FUEL,18/04/13,
150413C,ALLSTAR BUSINESS SOLUTIONS LTD,P2000618375,97,38.23,FUEL,18/04/13,
150413C,ALLSTAR BUSINESS SOLUTIONS LTD,P2000618375,98,52.35,FUEL,18/04/13,
150413C,ALLSTAR BUSINESS SOLUTIONS LTD,P2000618375,99,119.73,FUEL,18/04/13,
150413C,ALLSTAR BUSINESS SOLUTIONS LTD,P2000618375,100,78.08,FUEL,18/04/13,
150413C,ALLSTAR BUSINESS SOLUTIONS LTD,P2000618375,101,290.17,FUEL,18/04/13,
150413C,ALLSTAR BUSINESS SOLUTIONS LTD,P2000618375,102,13.87,FUEL,18/04/13,
150413C,ALLSTAR BUSINESS SOLUTIONS LTD,P2000618375,103,56.35,FUEL,18/04/13,
150413C,ALLSTAR BUSINESS SOLUTIONS LTD,P2000618375,104,250.02,FUEL,18/04/13,
150413C,ALLSTAR BUSINESS SOLUTIONS LTD,P2000618375,105,147.12,FUEL,18/04/13,
150413C,ALLSTAR BUSINESS SOLUTIONS LTD,P2000618375,106,353.79,FUEL,18/04/13,
150413C,ALLSTAR BUSINESS SOLUTIONS LTD,P2000618375,107,381.05,FUEL,18/04/13,
150413C,ALLSTAR BUSINESS SOLUTIONS LTD,P2000618375,108,71.14,FUEL,18/04/13,
080413E,PULLMAN MOTORS================,PULL 157,1,900.00,OPERATIONAL EQUIP-PURCHASE,18/04/13,900.00
080413E,PULLMAN MOTORS================,PULL 159,1,600.00,OPERATIONAL EQUIP-PURCHASE,18/04/13,600.00
100413C,SECURITAS SECURITY SERVICES LT,S-SIN0121591,1,"129,092.63",GENERAL,18/04/13,"129,092.63"
080413H,GROUND CONTROL UMITED,SIN017053,1,12.59,GROUNDS MAINTENANCE,18/04/13,"1,016.86"
080413H,GROUND CONTROL UMITED,SIN017053,2,12.59,GROUNDS MAINTENANCE,18/04/13,
080413H,GROUND CONTROL UMITED,SIN017053,3,55.56,GROUNDS MAINTENANCE,18/04/13,
080413H,GROUND CONTROL UMITED,SIN017053,4,12.59,GROUNDS MAINTENANCE,18/04/13,
080413H,GROUND CONTROL UMITED,SIN017053,5,40.29,GROUNDS MAINTENANCE,18/04/13,
080413H,GROUND CONTROL UMITED,SIN017053,6,40.29,GROUNDS MAINTENANCE,18/04/13,
080413H,GROUND CONTROL UMITED,SIN017053,7,12.59,GROUNDS MAINTENANCE,18/04/13,
080413H,GROUND CONTROL UMITED,SIN017053,8,12.59,GROUNDS MAINTENANCE,18/04/13,
080413H,GROUND CONTROL UMITED,SIN017053,9,52.20,GROUNDS MAINTENANCE,18/04/13,
080413H,GROUND CONTROL UMITED,SIN017053,10,12.59,GROUNDS MAINTENANCE,18/04/13,
080413H,GROUND CONTROL UMITED,SIN017053,11,12.59,GROUNDS MAINTENANCE,18/04/13,
080413H,GROUND CONTROL UMITED,SIN017053,12,58.50,GROUNDS MAINTENANCE,18/04/13,
080413H,GROUND CONTROL UMITED,SIN017053,13,43.81,GROUNDS MAINTENANCE,18/04/13,
080413H,GROUND CONTROL UMITED,SIN017053,14,47.59,GROUNDS MAINTENANCE,18/04/13,
080413H,GROUND CONTROL UMITED,SIN017053,15,12.59,GROUNDS MAINTENANCE,18/04/13,
080413H,GROUND CONTROL UMITED,SIN017053,16,12.59,GROUNDS MAINTENANCE,18/04/13,
080413H,GROUND CONTROL UMITED,SIN017053,17,12.59,GROUNDS MAINTENANCE,18/04/13,
080413H,GROUND CONTROL UMITED,SIN017053,18,47.59,GROUNDS MAINTENANCE,18/04/13,
080413H,GROUND CONTROL UMITED,SIN017053,19,15.00,GROUNDS MAINTENANCE,18/04/13,
080413H,GROUND CONTROL UMITED,SIN017053,20,12.59,GROUNDS MAINTENANCE,18/04/13,
080413H,GROUND CONTROL UMITED,SIN017053,21,12.59,GROUNDS MAINTENANCE,18/04/13,
080413H,GROUND CONTROL UMITED,SIN017053,22,48.84,GROUNDS MAINTENANCE,18/04/13,
080413H,GROUND CONTROL UMITED,SIN017053,23,12.59,GROUNDS MAINTENANCE,18/04/13,
080413H,GROUND CONTROL UMITED,SIN017053,24,12.59,GROUNDS MAINTENANCE,18/04/13,
080413H,GROUND CONTROL UMITED,SIN017053,25,12.59,GROUNDS MAINTENANCE,18/04/13,
080413H,GROUND CONTROL UMITED,SIN017053,26,47.59,GROUNDS MAINTENANCE,18/04/13,
080413H,GROUND CONTROL UMITED,SIN017053,27,43.81,GROUNDS MAINTENANCE,18/04/13,
080413H,GROUND CONTROL UMITED,SIN017053,28,12.59,GROUNDS MAINTENANCE,18/04/13,
080413H,GROUND CONTROL UMITED,SIN017053,29,43.81,GROUNDS MAINTENANCE,18/04/13,
080413H,GROUND CONTROL UMITED,SIN017053,30,15.00,GROUNDS MAINTENANCE,18/04/13,
080413H,GROUND CONTROL UMITED,SIN017053,31,47.59,GROUNDS MAINTENANCE,18/04/13,
080413H,GROUND CONTROL UMITED,SIN017053,32,47.59,GROUNDS MAINTENANCE,18/04/13,
080413H,GROUND CONTROL UMITED,SIN017053,33,47.59,GROUNDS MAINTENANCE,18/04/13,
080413H,GROUND CONTROL UMITED,SIN017053,34,12.59,GROUNDS MAINTENANCE,18/04/13,
080413H,GROUND CONTROL UMITED,SIN017053,35,47.59,GROUNDS MAINTENANCE,18/04/13,
080413H,GROUND CONTROL UMITED,SIN017053,36,12.59,GROUNDS MAINTENANCE,18/04/13,
080413H,GROUND CONTROL UMITED,SIN017054,1,77.37,GROUNDS MAINTENANCE,18/04/13,818.01
080413H,GROUND CONTROL UMITED,SIN017054,2,12.59,GROUNDS MAINTENANCE,18/04/13,
080413H,GROUND CONTROL UMITED,SIN017054,3,12.59,GROUNDS MAINTENANCE,18/04/13,
080413H,GROUND CONTROL UMITED,SIN017054,4,47.92,GROUNDS MAINTENANCE,18/04/13,
080413H,GROUND CONTROL UMITED,SIN017054,5,9.57,GROUNDS MAINTENANCE,18/04/13,
080413H,GROUND CONTROL UMITED,SIN017054,6,33.48,GROUNDS MAINTENANCE,18/04/13,
080413H,GROUND CONTROL UMITED,SIN017054,7,13.85,GROUNDS MAINTENANCE,18/04/13,
080413H,GROUND CONTROL UMITED,SIN017054,8,13.85,GROUNDS MAINTENANCE,18/04/13,
080413H,GROUND CONTROL UMITED,SIN017054,9,40.03,GROUNDS MAINTENANCE,18/04/13,
080413H,GROUND CONTROL UMITED,SIN017054,10,40.03,GROUNDS MAINTENANCE,18/04/13,
080413H,GROUND CONTROL UMITED,SIN017054,11,12.59,GROUNDS MAINTENANCE,18/04/13,
080413H,GROUND CONTROL UMITED,SIN017054,12,12.59,GROUNDS MAINTENANCE,18/04/13,
080413H,GROUND CONTROL UMITED,SIN017054,13,43.81,GROUNDS MAINTENANCE,18/04/13,
080413H,GROUND CONTROL UMITED,SIN017054,14,40.03,GROUNDS MAINTENANCE,18/04/13,
080413H,GROUND CONTROL UMITED,SIN017054,15,12.59,GROUNDS MAINTENANCE,18/04/13,
080413H,GROUND CONTROL UMITED,SIN017054,16,12.59,GROUNDS MAINTENANCE,18/04/13,
080413H,GROUND CONTROL UMITED,SIN017054,17,12.59,GROUNDS MAINTENANCE,18/04/13,
080413H,GROUND CONTROL UMITED,SIN017054,18,12.59,GROUNDS MAINTENANCE,18/04/13,
080413H,GROUND CONTROL UMITED,SIN017054,19,12.59,GROUNDS MAINTENANCE,18/04/13,
080413H,GROUND CONTROL UMITED,SIN017054,20,12.59,GROUNDS MAINTENANCE,18/04/13,
080413H,GROUND CONTROL UMITED,SIN017054,21,12.59,GROUNDS MAINTENANCE,18/04/13,
080413H,GROUND CONTROL UMITED,SIN017054,22,12.59,GROUNDS MAINTENANCE,18/04/13,
080413H,GROUND CONTROL UMITED,SIN017054,23,62.69,GROUNDS MAINTENANCE,18/04/13,
080413H,GROUND CONTROL UMITED,SIN017054,24,12.59,GROUNDS MAINTENANCE,18/04/13,
080413H,GROUND CONTROL UMITED,SIN017054,25,12.59,GROUNDS MAINTENANCE,18/04/13,
080413H,GROUND CONTROL UMITED,SIN017054,26,12.59,GROUNDS MAINTENANCE,18/04/13,
080413H,GROUND CONTROL UMITED,SIN017054,27,33.48,GROUNDS MAINTENANCE,18/04/13,
080413H,GROUND CONTROL UMITED,SIN017054,28,12.59,GROUNDS MAINTENANCE,18/04/13,
080413H,GROUND CONTROL UMITED,SIN017054,29,33.48,GROUNDS MAINTENANCE,18/04/13,
080413H,GROUND CONTROL UMITED,SIN017054,30,37.26,GROUNDS MAINTENANCE,18/04/13,
080413H,GROUND CONTROL UMITED,SIN017054,31,37.26,GROUNDS MAINTENANCE,18/04/13,
080413H,GROUND CONTROL UMITED,SIN017054,32,12.59,GROUNDS MAINTENANCE,18/04/13,
080413H,GROUND CONTROL UMITED,SIN017054,33,12.59,GROUNDS MAINTENANCE,18/04/13,
080413H,GROUND CONTROL UMITED,SIN017054,34,12.59,GROUNDS MAINTENANCE,18/04/13,
080413H,GROUND CONTROL UMITED,SIN017054,35,6.30,GROUNDS MAINTENANCE,18/04/13,
080413H,GROUND CONTROL UMITED,SIN017054,36,8.39,GROUNDS MAINTENANCE,18/04/13,
120413C,GROUND CONTROL UMITED,SIN017372,1,490.00,GROUNDS MAINTENANCE,18/04/13,490.00
140174,UKRO==========================,UKRO4JULY,1,700.00,PROFESSIONAL DEVELOPMENT,18/04/13,700.00
150413H,ADVANCED FURNITURE============,0000050288,1,810.00,OFFICE FURNITURE,22/04/13,810.00
150413H,ADVANCED FURNITURE============,0000050289,1,675.00,OFFICE FURNITURE,22/04/13,675.00
180413F,ENTEL UK LTD==================,0000125476,1,44.50,RADIO,22/04/13,318.82
180413F,ENTEL UK LTD==================,0000125476,2,68.66,RADIO,22/04/13,
180413F,ENTEL UK LTD==================,0000125476,3,106.66,RADIO,22/04/13,
180413F,ENTEL UK LTD==================,0000125476,4,41.30,RADIO,22/04/13,
180413F,ENTEL UK LTD==================,0000125476,5,48.70,RADIO,22/04/13,
180413F,ENTEL UK LTD==================,0000125476,6,9.00,RADIO,22/04/13,
140176,OGILVIE FLEET LTD=============,00229395,1,"5,356.96",LEASE CAR CHARGES,22/04/13,"5,371.68"
140176,OGILVIE FLEET LTD=============,00229395,2,14.72,P/PAYMTS-CAR LEASG-RENTAL,22/04/13,
140176,OGILVIE FLEET LTD=============,00229395,3,-494.47,VAT CAR LEASING,22/04/13,
140176,OGILVIE FLEET LTD=============,00229395,4,494.47,LEASE CAR CHARGES,22/04/13,
140176,OGILVIE FLEET LTD=============,00231964,1,"4,934.28",LEASE CAR CHARGES,22/04/13,"5,190.24"
140176,OGILVIE FLEET LTD=============,00231964,2,255.96,P/PAYMTS-CAR LEASG-RENTAL,22/04/13,
140176,OGILVIE FLEET LTD=============,00231964,3,-472.22,VAT CAR LEASING,22/04/13,
140176,OGILVIE FLEET LTD=============,00231964,4,472.22,LEASE CAR CHARGES,22/04/13,
100413C,HAYS ACCOUNTANCY & FINANCE====,1003064315,1,696.00,FRS STAFF AGENCY,22/04/13,696.00
160413H,*SPRUE SAFETY PRODUCTS LTD====,1044502,1,758.40,FIRE DETECTORS,22/04/13,758.40
180413F,*SPRUE SAFETY PRODUCTS LTD====,1045525,1,594.00,FIRE DETECTORS,22/04/13,594.00
160413H,*SPRUE SAFETY PRODUCTS LTD====,1045526,1,"3,458.00",FIRE DETECTORS,22/04/13,"3,458.00"
160413H,*SPRUE SAFETY PRODUCTS LTD====,1045527,1,"1,390.65",FIRE DETECTORS,22/04/13,"1,390.65"
160413H,*SPRUE SAFETY PRODUCTS LTD====,1045536,1,"2,052.00",FIRE DETECTORS,22/04/13,"2,052.00"
800018711,JAMES HUNTER (OUTFITTERS) LTD=,106894,1,303.41,CLOTHING,22/04/13,303.41
800018728,JAMES HUNTER (OUTFITTERS) LTD=,106911,1,308.66,CLOTHING,22/04/13,308.66
180413F,ACL ELECTRICAL LIMITED,10955,1,"8,445.00",DAY TO DAY MINOR IMPS,22/04/13,"8,445.00"
160413C,MARTIN LAVELL LTD=============,1221857,1,363.20,BOOKS & JOURNALS,22/04/13,363.20
800018536,PRIMEPEACE LTD================,130301,1,"1,790.00",MAINTENANCE & SUPPORT,22/04/13,"28,452.50"
800018536,PRIMEPEACE LTD================,130301,2,447.50,MAINTENANCE & SUPPORT,22/04/13,
800018536,PRIMEPEACE LTD================,130301,3,"5,907.00",MAINTENANCE & SUPPORT,22/04/13,
800018536,PRIMEPEACE LTD================,130301,4,"8,055.00",MAINTENANCE & SUPPORT,22/04/13,
800018536,PRIMEPEACE LTD================,130301,5,"1,253.00",MAINTENANCE & SUPPORT,22/04/13,
800018536,PRIMEPEACE LTD================,130301,6,"11,000.00",MAINTENANCE & SUPPORT,22/04/13,
180413F,PA ASSOCIATES (UK) LTD========,13040,1,"2,367.50",CONSULTANTS,22/04/13,"2,367.50"
120413C,PENTAX EUROPE IMAGING SYSTEMS,1400096807,1,330.00,OPERATIONAL EQUIP-PURCHASE,22/04/13,330.00
160413C,IRON MOUNTAIN (UK) LTD========,16174195,1,"2,575.57",MAINTENANCE & SUPPORT,22/04/13,"2,575.57"
170413H,BT REDCARE====================,20018498,1,943.00,TELECOMMUNICATIONS,22/04/13,943.00
170413H,BT REDCARE====================,20018499,1,"2,977.05",TELECOMMUNICATIONS,22/04/13,"2,977.05"
160413C,BRISTOL UNIFORMS LTD==========,213407,1,"1,797.00",CLOTHING,22/04/13,"1,797.00"
160413C,STORM TECHNOLOGIES============,218219,1,600.90,ACQUISITIONS,22/04/13,600.90
180413F,ARKAS LIMITED=================,23420,1,968.50,DEVELOPMENT  EXPENSES-CONTRACT,22/04/13,"1,558.50"
180413F,ARKAS LIMITED=================,23420,2,590.00,DEVELOPMENT  EXPENSES-CONTRACT,22/04/13,
180413F,ARKAS LIMITED=================,23421,1,"1,575.50",DEVELOPMENT  EXPENSES-CONTRACT,22/04/13,"1,575.50"
160413C,PRECISE MEDIA MONITORING LTD==,237398,1,"1,256.01",PRESS OFFICE,22/04/13,"1,256.01"
170413H,J & B BRAIDWAY LTD,245,1,139.30,CLOTHING,22/04/13,417.90
170413H,J & B BRAIDWAY LTD,245,2,139.30,CLOTHING,22/04/13,
170413H,J & B BRAIDWAY LTD,245,3,139.30,CLOTHING,22/04/13,
170413H,TEAM PURPLE LIMITED===========,2488,1,38.00,CLOTHING,22/04/13,285.10
170413H,TEAM PURPLE LIMITED===========,2488,2,139.00,CLOTHING,22/04/13,
170413H,TEAM PURPLE LIMITED===========,2488,3,108.10,CLOTHING,22/04/13,
800018885,ADECCO UK LIMITED=============,26377164,1,537.92,FRS STAFF AGENCY,22/04/13,537.92
800018886,ADECCO UK LIMITED=============,26377165,1,453.33,FRS STAFF AGENCY,22/04/13,453.33
800018887,ADECCO UK LIMITED=============,26377166,1,"1,499.40",FRS STAFF AGENCY,22/04/13,"1,499.40"
800018888,ADECCO UK LIMITED=============,26377167,1,347.76,FRS STAFF AGENCY,22/04/13,347.76
800018890,ADECCO UK LIMITED=============,26377169,1,"1,197.41",FRS STAFF AGENCY,22/04/13,"1,197.41"
800018891,ADECCO UK LIMITED=============,26377170,1,470.68,FRS STAFF AGENCY,22/04/13,470.68
800018892,ADECCO UK LIMITED=============,26377171,1,487.49,FRS STAFF AGENCY,22/04/13,487.49
800018893,ADECCO UK LIMITED=============,26377172,1,260.82,FRS STAFF AGENCY,22/04/13,260.82
800018894,ADECCO UK LIMITED=============,26377173,1,937.02,FRS STAFF AGENCY,22/04/13,937.02
800018895,ADECCO UK LIMITED=============,26377174,1,"1,445.40",FRS STAFF AGENCY,22/04/13,"1,445.40"
800018896,ADECCO UK LIMITED=============,26377175,1,"1,114.75",FRS STAFF AGENCY,22/04/13,"1,114.75"
800018897,ADECCO UK LIMITED=============,26377176,1,470.68,FRS STAFF AGENCY,22/04/13,470.68
800018901,ADECCO UK LIMITED=============,26380147,1,904.96,FRS STAFF AGENCY,22/04/13,904.96
800018902,ADECCO UK LIMITED=============,26380148,1,678.72,FRS STAFF AGENCY,22/04/13,678.72
800018906,ADECCO UK LIMITED=============,26380149,1,743.36,FRS STAFF AGENCY,22/04/13,743.36
800018907,ADECCO UK LIMITED=============,26380150,1,993.84,FRS STAFF AGENCY,22/04/13,993.84
800018908,ADECCO UK LIMITED=============,26380151,1,727.43,FRS STAFF AGENCY,22/04/13,727.43
800018898,ADECCO UK LIMITED=============,26380154,1,"1,292.20",FRS STAFF AGENCY,22/04/13,"1,292.20"
800018899,ADECCO UK LIMITED=============,26380155,1,"1,292.20",FRS STAFF AGENCY,22/04/13,"1,292.20"
800018900,ADECCO UK LIMITED=============,26380156,1,"1,292.20",FRS STAFF AGENCY,22/04/13,"1,292.20"
800018903,ADECCO UK LIMITED=============,26380157,1,"1,508.40",FRS STAFF AGENCY,22/04/13,"1,508.40"
800018904,ADECCO UK LIMITED=============,26380158,1,"1,099.88",FRS STAFF AGENCY,22/04/13,"1,099.88"
800018905,ADECCO UK LIMITED=============,26380159,1,"1,288.43",FRS STAFF AGENCY,22/04/13,"1,288.43"
800018909,ADECCO UK LIMITED=============,26380160,1,585.90,FRS STAFF AGENCY,22/04/13,585.90
160413C,MACE LIMITED,26915/0413098,1,"8,295.00",STRATEGIC (NON CYCLICAL),22/04/13,"8,295.00"
140169,WATER AUDIT SERVICES LTD,2844,1,250.27,WATER & SEWERAGE RATES,22/04/13,250.27
180413F,ELECTROBASE R P,36576,1,"1,743.00",GENERAL CONSUMABLES,22/04/13,"1,743.00"
170413H,CANON (UK) LTD===============,401360870,1,266.88,OFFICE EQUIPMENT,22/04/13,275.72
170413H,CANON (UK) LTD===============,401360870,2,8.84,OFFICE EQUIPMENT,22/04/13,
140178,CENTRAL LAW TRAINING LTD======,4091296,1,495.00,PROFESSIONAL DEVELOPMENT,22/04/13,495.00
160413C,URS SCOTT WILSON LIMITED,5388451,1,"3,738.75",STRATEGIC (NON CYCLICAL),22/04/13,"3,738.75"
800018545,*GREENHAM TRADING LTD=========,5582226,1,14.05,HYGIENE,22/04/13,252.56
800018545,*GREENHAM TRADING LTD=========,5582226,2,59.28,HYGIENE,22/04/13,
800018545,*GREENHAM TRADING LTD=========,5582226,3,1.04,CATERING EQUIPMENT,22/04/13,
800018545,*GREENHAM TRADING LTD=========,5582226,4,31.86,HYGIENE,22/04/13,
800018545,*GREENHAM TRADING LTD=========,5582226,5,0.42,HYGIENE,22/04/13,
800018545,*GREENHAM TRADING LTD=========,5582226,6,66.24,OPERATIONAL EQUIP-PURCHASE,22/04/13,
800018545,*GREENHAM TRADING LTD=========,5582226,7,15.54,HYGIENE,22/04/13,
800018545,*GREENHAM TRADING LTD=========,5582226,8,42.80,HYGIENE,22/04/13,
800018545,*GREENHAM TRADING LTD=========,5582226,9,7.92,HYGIENE,22/04/13,
800018545,*GREENHAM TRADING LTD=========,5582226,10,13.41,OPERATIONAL EQUIP-PURCHASE,22/04/13,
100413C,MERLIN ELECTRICAL SERVICES LTD,5838,1,438.38,STRATEGIC (NON CYCLICAL),22/04/13,438.38
160413C,INTRAMARK LTD=================,61569,1,445.10,UNIFORMS - POMS,22/04/13,445.10
170413H,MOORE STEPHENS CONSULTING LTD=,673108,1,500.00,TELECOMMUNICATIONS,22/04/13,500.00
170413H,MOORE STEPHENS CONSULTING LTD=,673169,1,"10,000.00",TELECOMMUNICATIONS,22/04/13,"20,000.00"
170413H,MOORE STEPHENS CONSULTING LTD=,673169,2,"10,000.00",TELECOMMUNICATIONS,22/04/13,
180413F,BERKSHIRE HEALTHCARE NHS TRUST,761307,1,"2,633.90",CONSULTANTS,22/04/13,"2,633.90"
140166,SOUTHWARK & SOUTHBANK LIMITED,8,1,"1,141.42",RENTS,22/04/13,"1,141.42"
140178,MISS BO-EUN JUNG==============,8067,1,840.00,PROFESSIONAL FEES ENFORCEMENT,22/04/13,840.00
140178,MISS BO-EUN JUNG==============,8713,1,525.00,PROFESSIONAL FEES ENFORCEMENT,22/04/13,525.00
140176,TV LICENSING==================,900000518MUL,1,"5,092.50",LICENCES,22/04/13,"17,605.50"
140176,TV LICENSING==================,900000518MUL,2,"5,383.50",LICENCES,22/04/13,
140176,TV LICENSING==================,900000518MUL,3,"5,965.50",LICENCES,22/04/13,
